﻿Body Name,Body,Date,Department,Beneficiary,Summary of Purpose (SeRCOP),Amount,Merchant Code,Transaction Number
Sandwell Metropolitan Borough Council,http://www.sandwell.gov.uk/info/200202/performance_and_spending/3233/government_procurement_cards,05-Apr-2021,Total Borough Economy,AMZNMktplace,Neighbourhoods,74.95,MISCELLANEOUS AND SPECIALTY RETAIL STORES,2021-22Q1_PC0001
Sandwell Metropolitan Borough Council,http://www.sandwell.gov.uk/info/200202/performance_and_spending/3233/government_procurement_cards,05-Apr-2021,Total Borough Economy,FACEBK WXVX23KKY2,Neighbourhoods,8.83,ADVERTISING SERVICES,2021-22Q1_PC0002
Sandwell Metropolitan Borough Council,http://www.sandwell.gov.uk/info/200202/performance_and_spending/3233/government_procurement_cards,05-Apr-2021,Total Public Health,FACEBK JW4JG3XMK2,Public Health,9.22,ADVERTISING SERVICES,2021-22Q1_PC0003
Sandwell Metropolitan Borough Council,http://www.sandwell.gov.uk/info/200202/performance_and_spending/3233/government_procurement_cards,05-Apr-2021,Total Business Strategy & Change,AMZNMKTPLACE AMAZON.CO,Assistant Chief Executive (Excl SIU),135.82,MISCELLANEOUS AND SPECIALTY RETAIL STORES,2021-22Q1_PC0004
Sandwell Metropolitan Borough Council,http://www.sandwell.gov.uk/info/200202/performance_and_spending/3233/government_procurement_cards,05-Apr-2021,Total Borough Economy,FACEBK E5FTA4TSL2,Neighbourhoods,7,ADVERTISING SERVICES,2021-22Q1_PC0005
Sandwell Metropolitan Borough Council,http://www.sandwell.gov.uk/info/200202/performance_and_spending/3233/government_procurement_cards,05-Apr-2021,Total ASCHWB,Amazon Prime MU1QD27R4,Total Adult Social Care,7.99,DIRECT MARKETING-CONTINUITY/SUBSCRIPTION MERCHANTS,2021-22Q1_PC0006
Sandwell Metropolitan Borough Council,http://www.sandwell.gov.uk/info/200202/performance_and_spending/3233/government_procurement_cards,05-Apr-2021,Housing & Assets Total,AMZNMktplace,Neighbourhoods,59.99,MISCELLANEOUS AND SPECIALTY RETAIL STORES,2021-22Q1_PC0007
Sandwell Metropolitan Borough Council,http://www.sandwell.gov.uk/info/200202/performance_and_spending/3233/government_procurement_cards,05-Apr-2021,Director of Law & Governance,STORE 4,Assistant Chief Executive (Excl SIU),4,"GROCERY STORES, SUPERMARKETS",2021-22Q1_PC0008
Sandwell Metropolitan Borough Council,http://www.sandwell.gov.uk/info/200202/performance_and_spending/3233/government_procurement_cards,05-Apr-2021,Total Business Strategy & Change,CANVA  03015-6615375,Assistant Chief Executive (Excl SIU),159.87,PHOTOGRAPHIC STUDIOS,2021-22Q1_PC0009
Sandwell Metropolitan Borough Council,http://www.sandwell.gov.uk/info/200202/performance_and_spending/3233/government_procurement_cards,07-Apr-2021,Total Housing Revenue Account,WWW.SANDWELL.GOV.UK,Total Housing Revenue Account,11,GOVERNMENT SERVICES-NOT ELSEWHERE CLASSIFIED,2021-22Q1_PC0010
Sandwell Metropolitan Borough Council,http://www.sandwell.gov.uk/info/200202/performance_and_spending/3233/government_procurement_cards,07-Apr-2021,Total Borough Economy,D4DRIVERS,Neighbourhoods,55,"DOCTORS, (NOT ELSEWHERE CLASSIFIED)",2021-22Q1_PC0011
Sandwell Metropolitan Borough Council,http://www.sandwell.gov.uk/info/200202/performance_and_spending/3233/government_procurement_cards,07-Apr-2021,Total Borough Economy,DVSA  LEARNER,Neighbourhoods,37,GOVERNMENT SERVICES-NOT ELSEWHERE CLASSIFIED,2021-22Q1_PC0012
Sandwell Metropolitan Borough Council,http://www.sandwell.gov.uk/info/200202/performance_and_spending/3233/government_procurement_cards,07-Apr-2021,Total Borough Economy,TIMPSON LTD,Neighbourhoods,34,MISCELLANEOUS AND SPECIALTY RETAIL STORES,2021-22Q1_PC0013
Sandwell Metropolitan Borough Council,http://www.sandwell.gov.uk/info/200202/performance_and_spending/3233/government_procurement_cards,07-Apr-2021,FINANCE (Inc SIU),AMZNMktplace,Assistant Chief Executive (Excl SIU),14.99,MISCELLANEOUS AND SPECIALTY RETAIL STORES,2021-22Q1_PC0014
Sandwell Metropolitan Borough Council,http://www.sandwell.gov.uk/info/200202/performance_and_spending/3233/government_procurement_cards,07-Apr-2021,Total Borough Economy,SCAN COMPUTERS INT LTD,Neighbourhoods,22.88,ELECTRONIC SALES,2021-22Q1_PC0015
Sandwell Metropolitan Borough Council,http://www.sandwell.gov.uk/info/200202/performance_and_spending/3233/government_procurement_cards,07-Apr-2021,Regeneration & Growth,BSI STANDARDS,Regeneration And The Economy,2794.8,BUSINESS SERVICES-NOT ELSEWHERE CLASSIFIED,2021-22Q1_PC0016
Sandwell Metropolitan Borough Council,http://www.sandwell.gov.uk/info/200202/performance_and_spending/3233/government_procurement_cards,07-Apr-2021,Total ASCHWB,LOAVES N FISHES,Total Adult Social Care,45,"ORGANIZATIONS, CHARITABLE AND SOCIAL SERVICES",2021-22Q1_PC0017
Sandwell Metropolitan Borough Council,http://www.sandwell.gov.uk/info/200202/performance_and_spending/3233/government_procurement_cards,07-Apr-2021,Total ASCHWB,LOCTEK INC,Total Adult Social Care,319.98,COMPUTER SOFTWARE STORES,2021-22Q1_PC0018
Sandwell Metropolitan Borough Council,http://www.sandwell.gov.uk/info/200202/performance_and_spending/3233/government_procurement_cards,07-Apr-2021,Individual School Budgets With Inclusion,STK Shutterstock,Individual School Budgets With Inclusion,34.8,"COMMERCIAL ART, GRAPHICS, PHOTOGRAPHY",2021-22Q1_PC0019
Sandwell Metropolitan Borough Council,http://www.sandwell.gov.uk/info/200202/performance_and_spending/3233/government_procurement_cards,07-Apr-2021,Individual School Budgets With Inclusion,WWW.NATIONALTRUST.,Individual School Budgets With Inclusion,126,"ORGANIZATIONS, CHARITABLE AND SOCIAL SERVICES",2021-22Q1_PC0020
Sandwell Metropolitan Borough Council,http://www.sandwell.gov.uk/info/200202/performance_and_spending/3233/government_procurement_cards,07-Apr-2021,Individual School Budgets With Inclusion,WWW.NATIONALTRUST.,Individual School Budgets With Inclusion,72,"ORGANIZATIONS, CHARITABLE AND SOCIAL SERVICES",2021-22Q1_PC0021
Sandwell Metropolitan Borough Council,http://www.sandwell.gov.uk/info/200202/performance_and_spending/3233/government_procurement_cards,07-Apr-2021,Individual School Budgets With Inclusion,WWW.NATIONALTRUST.,Individual School Budgets With Inclusion,120,"ORGANIZATIONS, CHARITABLE AND SOCIAL SERVICES",2021-22Q1_PC0022
Sandwell Metropolitan Borough Council,http://www.sandwell.gov.uk/info/200202/performance_and_spending/3233/government_procurement_cards,07-Apr-2021,Individual School Budgets With Inclusion,AMZNMktplace,Individual School Budgets With Inclusion,72.36,MISCELLANEOUS AND SPECIALTY RETAIL STORES,2021-22Q1_PC0023
Sandwell Metropolitan Borough Council,http://www.sandwell.gov.uk/info/200202/performance_and_spending/3233/government_procurement_cards,07-Apr-2021,Director of Law & Governance,VIKING UK,Assistant Chief Executive (Excl SIU),104.99,STATIONERY/OFFICE SUPPLIES/PRINTING & WRITING PAP.,2021-22Q1_PC0024
Sandwell Metropolitan Borough Council,http://www.sandwell.gov.uk/info/200202/performance_and_spending/3233/government_procurement_cards,07-Apr-2021,Director of Law & Governance,VIKING UK,Assistant Chief Executive (Excl SIU),237.58,STATIONERY/OFFICE SUPPLIES/PRINTING & WRITING PAP.,2021-22Q1_PC0025
Sandwell Metropolitan Borough Council,http://www.sandwell.gov.uk/info/200202/performance_and_spending/3233/government_procurement_cards,08-Apr-2021,Total Housing Revenue Account,POST OFFICE COUNTER,Total Housing Revenue Account,1.4,POSTAL SERVICES-GOVERNMENT ONLY,2021-22Q1_PC0026
Sandwell Metropolitan Borough Council,http://www.sandwell.gov.uk/info/200202/performance_and_spending/3233/government_procurement_cards,08-Apr-2021,Total Housing Revenue Account,POST OFFICE COUNTER,Total Housing Revenue Account,195.5,POSTAL SERVICES-GOVERNMENT ONLY,2021-22Q1_PC0027
Sandwell Metropolitan Borough Council,http://www.sandwell.gov.uk/info/200202/performance_and_spending/3233/government_procurement_cards,08-Apr-2021,Total Borough Economy,AMZNMktplace,Neighbourhoods,9.95,MISCELLANEOUS AND SPECIALTY RETAIL STORES,2021-22Q1_PC0028
Sandwell Metropolitan Borough Council,http://www.sandwell.gov.uk/info/200202/performance_and_spending/3233/government_procurement_cards,08-Apr-2021,Total Borough Economy,WILKO - SELLY OAK,Neighbourhoods,10.3,MISCELLANEOUS GENERAL MERCHANDISE,2021-22Q1_PC0029
Sandwell Metropolitan Borough Council,http://www.sandwell.gov.uk/info/200202/performance_and_spending/3233/government_procurement_cards,08-Apr-2021,Housing & Assets Total,AMZNMktplace,Neighbourhoods,42.99,MISCELLANEOUS AND SPECIALTY RETAIL STORES,2021-22Q1_PC0030
Sandwell Metropolitan Borough Council,http://www.sandwell.gov.uk/info/200202/performance_and_spending/3233/government_procurement_cards,08-Apr-2021,Total Public Health,PARCELFORCE WL,Public Health,50.94,"COURIER SVC-AIR & GROUND, FREIGHT FORWARDERS",2021-22Q1_PC0031
Sandwell Metropolitan Borough Council,http://www.sandwell.gov.uk/info/200202/performance_and_spending/3233/government_procurement_cards,08-Apr-2021,FINANCE (Inc SIU),AMZNMktplace,Assistant Chief Executive (Excl SIU),194.87,MISCELLANEOUS AND SPECIALTY RETAIL STORES,2021-22Q1_PC0032
Sandwell Metropolitan Borough Council,http://www.sandwell.gov.uk/info/200202/performance_and_spending/3233/government_procurement_cards,08-Apr-2021,FINANCE (Inc SIU),AMZNMktplace,Assistant Chief Executive (Excl SIU),129.3,MISCELLANEOUS AND SPECIALTY RETAIL STORES,2021-22Q1_PC0033
Sandwell Metropolitan Borough Council,http://www.sandwell.gov.uk/info/200202/performance_and_spending/3233/government_procurement_cards,08-Apr-2021,FINANCE (Inc SIU),AMZNMktplace,Assistant Chief Executive (Excl SIU),188.82,MISCELLANEOUS AND SPECIALTY RETAIL STORES,2021-22Q1_PC0034
Sandwell Metropolitan Borough Council,http://www.sandwell.gov.uk/info/200202/performance_and_spending/3233/government_procurement_cards,08-Apr-2021,FINANCE (Inc SIU),AMZNMktplace,Assistant Chief Executive (Excl SIU),99.96,MISCELLANEOUS AND SPECIALTY RETAIL STORES,2021-22Q1_PC0035
Sandwell Metropolitan Borough Council,http://www.sandwell.gov.uk/info/200202/performance_and_spending/3233/government_procurement_cards,08-Apr-2021,FINANCE (Inc SIU),AMZNMktplace,Assistant Chief Executive (Excl SIU),51.72,MISCELLANEOUS AND SPECIALTY RETAIL STORES,2021-22Q1_PC0036
Sandwell Metropolitan Borough Council,http://www.sandwell.gov.uk/info/200202/performance_and_spending/3233/government_procurement_cards,08-Apr-2021,Total Borough Economy,SCREWFIX DIRECT,Neighbourhoods,58.79,"BUILDING MATERIALS, LUMBER STORES",2021-22Q1_PC0037
Sandwell Metropolitan Borough Council,http://www.sandwell.gov.uk/info/200202/performance_and_spending/3233/government_procurement_cards,08-Apr-2021,Total Borough Economy,SCREWFIX DIRECT,Neighbourhoods,25.99,"BUILDING MATERIALS, LUMBER STORES",2021-22Q1_PC0038
Sandwell Metropolitan Borough Council,http://www.sandwell.gov.uk/info/200202/performance_and_spending/3233/government_procurement_cards,08-Apr-2021,Total Borough Economy,AMZNMktplace,Neighbourhoods,19.98,MISCELLANEOUS AND SPECIALTY RETAIL STORES,2021-22Q1_PC0039
Sandwell Metropolitan Borough Council,http://www.sandwell.gov.uk/info/200202/performance_and_spending/3233/government_procurement_cards,08-Apr-2021,Total Borough Economy,TOOLSTATION UK,Neighbourhoods,8,HARDWARE STORES,2021-22Q1_PC0040
Sandwell Metropolitan Borough Council,http://www.sandwell.gov.uk/info/200202/performance_and_spending/3233/government_procurement_cards,08-Apr-2021,FINANCE (Inc SIU),AMZNMKTPLACE AMAZON.CO,Total Adult Social Care,32,MISCELLANEOUS AND SPECIALTY RETAIL STORES,2021-22Q1_PC0041
Sandwell Metropolitan Borough Council,http://www.sandwell.gov.uk/info/200202/performance_and_spending/3233/government_procurement_cards,08-Apr-2021,Total ASCHWB,AMZNMktplace,Total Adult Social Care,31.96,MISCELLANEOUS AND SPECIALTY RETAIL STORES,2021-22Q1_PC0042
Sandwell Metropolitan Borough Council,http://www.sandwell.gov.uk/info/200202/performance_and_spending/3233/government_procurement_cards,08-Apr-2021,Childrens Services,POST OFFICE COUNTER,Childrens Services,6.4,POSTAL SERVICES-GOVERNMENT ONLY,2021-22Q1_PC0043
Sandwell Metropolitan Borough Council,http://www.sandwell.gov.uk/info/200202/performance_and_spending/3233/government_procurement_cards,08-Apr-2021,Director of Law & Governance,DANCKERTS FLORIST,Assistant Chief Executive (Excl SIU),100,FLORISTS,2021-22Q1_PC0044
Sandwell Metropolitan Borough Council,http://www.sandwell.gov.uk/info/200202/performance_and_spending/3233/government_procurement_cards,08-Apr-2021,Total Business Strategy & Change,TSOHOST,Assistant Chief Executive (Excl SIU),49.99,DIRECT MARKETING-CONTINUITY/SUBSCRIPTION MERCHANTS,2021-22Q1_PC0045
Sandwell Metropolitan Borough Council,http://www.sandwell.gov.uk/info/200202/performance_and_spending/3233/government_procurement_cards,08-Apr-2021,Corporate Management,HAYMARKET MEDIA GROUP,Corporate Management,176.4,"CONSULTING, MANAGEMENT, AND PUBLIC RELATIONS SVCS",2021-22Q1_PC0046
Sandwell Metropolitan Borough Council,http://www.sandwell.gov.uk/info/200202/performance_and_spending/3233/government_procurement_cards,09-Apr-2021,Resources Capital,Amazon.co.uk M461C0454,#N/A,25.98,DIRECT MARKETING-OTHER DIRECT MARKETERS/NOT ELSEW.,2021-22Q1_PC0047
Sandwell Metropolitan Borough Council,http://www.sandwell.gov.uk/info/200202/performance_and_spending/3233/government_procurement_cards,09-Apr-2021,Total Borough Economy,Amazon.co.uk M454T74D4,Neighbourhoods,34.85,DIRECT MARKETING-OTHER DIRECT MARKETERS/NOT ELSEW.,2021-22Q1_PC0048
Sandwell Metropolitan Borough Council,http://www.sandwell.gov.uk/info/200202/performance_and_spending/3233/government_procurement_cards,09-Apr-2021,Total Borough Economy,AB  ABEBOOKS.UK IOX375,Neighbourhoods,25.59,"BOOKS,PERIODICALS AND NEWSPAPERS",2021-22Q1_PC0049
Sandwell Metropolitan Borough Council,http://www.sandwell.gov.uk/info/200202/performance_and_spending/3233/government_procurement_cards,09-Apr-2021,Regeneration & Growth,THE SMART CARD STORE,Regeneration And The Economy,297.48,OFFICE PHOTOGRAPHIC PHOTOCOPY & MICROFILM EQUIPMT.,2021-22Q1_PC0050
Sandwell Metropolitan Borough Council,http://www.sandwell.gov.uk/info/200202/performance_and_spending/3233/government_procurement_cards,09-Apr-2021,FINANCE (Inc SIU),Amazon Prime M463474D4,Assistant Chief Executive (Excl SIU),7.99,DIRECT MARKETING-CONTINUITY/SUBSCRIPTION MERCHANTS,2021-22Q1_PC0051
Sandwell Metropolitan Borough Council,http://www.sandwell.gov.uk/info/200202/performance_and_spending/3233/government_procurement_cards,09-Apr-2021,Total Borough Economy,SCREWFIX DIRECT,Neighbourhoods,22.45,"BUILDING MATERIALS, LUMBER STORES",2021-22Q1_PC0052
Sandwell Metropolitan Borough Council,http://www.sandwell.gov.uk/info/200202/performance_and_spending/3233/government_procurement_cards,09-Apr-2021,Total Borough Economy,AMZNMKTPLACE AMAZON.CO,Neighbourhoods,11.98,MISCELLANEOUS AND SPECIALTY RETAIL STORES,2021-22Q1_PC0053
Sandwell Metropolitan Borough Council,http://www.sandwell.gov.uk/info/200202/performance_and_spending/3233/government_procurement_cards,09-Apr-2021,Director of Law & Governance,SCREWFIX DIR LTD,Assistant Chief Executive (Excl SIU),68.97,"BUILDING MATERIALS, LUMBER STORES",2021-22Q1_PC0054
Sandwell Metropolitan Borough Council,http://www.sandwell.gov.uk/info/200202/performance_and_spending/3233/government_procurement_cards,09-Apr-2021,Regeneration & Growth,THE COAL AUTHORITY,Regeneration And The Economy,222,GOVERNMENT SERVICES-NOT ELSEWHERE CLASSIFIED,2021-22Q1_PC0055
Sandwell Metropolitan Borough Council,http://www.sandwell.gov.uk/info/200202/performance_and_spending/3233/government_procurement_cards,09-Apr-2021,FINANCE (Inc SIU),OFFICE DEPOT UK,Total Adult Social Care,6.94,STATIONERY/OFFICE SUPPLIES/PRINTING & WRITING PAP.,2021-22Q1_PC0056
Sandwell Metropolitan Borough Council,http://www.sandwell.gov.uk/info/200202/performance_and_spending/3233/government_procurement_cards,09-Apr-2021,Total ASCHWB,AMZNMktplace,Total Adult Social Care,18.39,MISCELLANEOUS AND SPECIALTY RETAIL STORES,2021-22Q1_PC0057
Sandwell Metropolitan Borough Council,http://www.sandwell.gov.uk/info/200202/performance_and_spending/3233/government_procurement_cards,09-Apr-2021,Total ASCHWB,AMZNMKTPLACE AMAZON.CO,Total Adult Social Care,17.02,MISCELLANEOUS AND SPECIALTY RETAIL STORES,2021-22Q1_PC0058
Sandwell Metropolitan Borough Council,http://www.sandwell.gov.uk/info/200202/performance_and_spending/3233/government_procurement_cards,09-Apr-2021,Childrens Services,AMZNMKTPLACE AMAZON.CO,Childrens Services,-30.76,MISCELLANEOUS AND SPECIALTY RETAIL STORES,2021-22Q1_PC0059
Sandwell Metropolitan Borough Council,http://www.sandwell.gov.uk/info/200202/performance_and_spending/3233/government_procurement_cards,09-Apr-2021,Individual School Budgets With Inclusion,Dudley Port DIY,Individual School Budgets With Inclusion,31.44,HARDWARE STORES,2021-22Q1_PC0060
Sandwell Metropolitan Borough Council,http://www.sandwell.gov.uk/info/200202/performance_and_spending/3233/government_procurement_cards,09-Apr-2021,Director of Law & Governance,AMZNMKTPLACE AMAZON.CO,Assistant Chief Executive (Excl SIU),12.99,MISCELLANEOUS AND SPECIALTY RETAIL STORES,2021-22Q1_PC0061
Sandwell Metropolitan Borough Council,http://www.sandwell.gov.uk/info/200202/performance_and_spending/3233/government_procurement_cards,09-Apr-2021,Director of Law & Governance,PREMIER INN,Assistant Chief Executive (Excl SIU),58,PREMIER INN,2021-22Q1_PC0062
Sandwell Metropolitan Borough Council,http://www.sandwell.gov.uk/info/200202/performance_and_spending/3233/government_procurement_cards,12-Apr-2021,Total Borough Economy,Amazon.co.uk M47EZ1Z54,Neighbourhoods,23.91,DIRECT MARKETING-OTHER DIRECT MARKETERS/NOT ELSEW.,2021-22Q1_PC0063
Sandwell Metropolitan Borough Council,http://www.sandwell.gov.uk/info/200202/performance_and_spending/3233/government_procurement_cards,12-Apr-2021,Total Borough Economy,OFFICE DEPOT UK,Neighbourhoods,246.38,STATIONERY/OFFICE SUPPLIES/PRINTING & WRITING PAP.,2021-22Q1_PC0064
Sandwell Metropolitan Borough Council,http://www.sandwell.gov.uk/info/200202/performance_and_spending/3233/government_procurement_cards,12-Apr-2021,Total Borough Economy,GOOGLE  Google Play Ap,Neighbourhoods,16.99,DIGITAL GOODS MULTI CATEGORY,2021-22Q1_PC0065
Sandwell Metropolitan Borough Council,http://www.sandwell.gov.uk/info/200202/performance_and_spending/3233/government_procurement_cards,12-Apr-2021,Total Borough Economy,AMZNMKTPLACE AMAZON.CO,Neighbourhoods,36.08,MISCELLANEOUS AND SPECIALTY RETAIL STORES,2021-22Q1_PC0066
Sandwell Metropolitan Borough Council,http://www.sandwell.gov.uk/info/200202/performance_and_spending/3233/government_procurement_cards,12-Apr-2021,Total Borough Economy,AMZNMktplace,Neighbourhoods,17.75,MISCELLANEOUS AND SPECIALTY RETAIL STORES,2021-22Q1_PC0067
Sandwell Metropolitan Borough Council,http://www.sandwell.gov.uk/info/200202/performance_and_spending/3233/government_procurement_cards,12-Apr-2021,Total Public Health,Amazon.co.uk M478H4JO4,Public Health,206.46,DIRECT MARKETING-OTHER DIRECT MARKETERS/NOT ELSEW.,2021-22Q1_PC0068
Sandwell Metropolitan Borough Council,http://www.sandwell.gov.uk/info/200202/performance_and_spending/3233/government_procurement_cards,12-Apr-2021,Total Public Health,Amazon.co.uk M45D02TJ4,Public Health,49.98,DIRECT MARKETING-OTHER DIRECT MARKETERS/NOT ELSEW.,2021-22Q1_PC0069
Sandwell Metropolitan Borough Council,http://www.sandwell.gov.uk/info/200202/performance_and_spending/3233/government_procurement_cards,12-Apr-2021,Total Public Health,Amazon.co.uk M47OI03S4,Public Health,14.98,DIRECT MARKETING-OTHER DIRECT MARKETERS/NOT ELSEW.,2021-22Q1_PC0070
Sandwell Metropolitan Borough Council,http://www.sandwell.gov.uk/info/200202/performance_and_spending/3233/government_procurement_cards,12-Apr-2021,Regeneration & Growth,OFFICE DEPOT UK,Regeneration And The Economy,83.88,STATIONERY/OFFICE SUPPLIES/PRINTING & WRITING PAP.,2021-22Q1_PC0071
Sandwell Metropolitan Borough Council,http://www.sandwell.gov.uk/info/200202/performance_and_spending/3233/government_procurement_cards,12-Apr-2021,FINANCE (Inc SIU),AMZNMktplace,Assistant Chief Executive (Excl SIU),21.89,MISCELLANEOUS AND SPECIALTY RETAIL STORES,2021-22Q1_PC0072
Sandwell Metropolitan Borough Council,http://www.sandwell.gov.uk/info/200202/performance_and_spending/3233/government_procurement_cards,12-Apr-2021,Total Borough Economy,AMZNMKTPLACE AMAZON.CO,Neighbourhoods,25.8,MISCELLANEOUS AND SPECIALTY RETAIL STORES,2021-22Q1_PC0073
Sandwell Metropolitan Borough Council,http://www.sandwell.gov.uk/info/200202/performance_and_spending/3233/government_procurement_cards,12-Apr-2021,Total Borough Economy,SCREWFIX DIRECT,Neighbourhoods,52.47,"BUILDING MATERIALS, LUMBER STORES",2021-22Q1_PC0074
Sandwell Metropolitan Borough Council,http://www.sandwell.gov.uk/info/200202/performance_and_spending/3233/government_procurement_cards,12-Apr-2021,Total Borough Economy,AMZNMKTPLACE AMAZON.CO,Neighbourhoods,11.85,MISCELLANEOUS AND SPECIALTY RETAIL STORES,2021-22Q1_PC0075
Sandwell Metropolitan Borough Council,http://www.sandwell.gov.uk/info/200202/performance_and_spending/3233/government_procurement_cards,12-Apr-2021,Total Borough Economy,SCREWFIX DIRECT,Neighbourhoods,7.53,"BUILDING MATERIALS, LUMBER STORES",2021-22Q1_PC0076
Sandwell Metropolitan Borough Council,http://www.sandwell.gov.uk/info/200202/performance_and_spending/3233/government_procurement_cards,12-Apr-2021,Total Borough Economy,AMZNMktplace,Neighbourhoods,151.12,MISCELLANEOUS AND SPECIALTY RETAIL STORES,2021-22Q1_PC0077
Sandwell Metropolitan Borough Council,http://www.sandwell.gov.uk/info/200202/performance_and_spending/3233/government_procurement_cards,12-Apr-2021,Total Borough Economy,AMZNMktplace,Neighbourhoods,40.26,MISCELLANEOUS AND SPECIALTY RETAIL STORES,2021-22Q1_PC0078
Sandwell Metropolitan Borough Council,http://www.sandwell.gov.uk/info/200202/performance_and_spending/3233/government_procurement_cards,12-Apr-2021,FINANCE (Inc SIU),AMZNMktplace,Total Adult Social Care,35.99,MISCELLANEOUS AND SPECIALTY RETAIL STORES,2021-22Q1_PC0079
Sandwell Metropolitan Borough Council,http://www.sandwell.gov.uk/info/200202/performance_and_spending/3233/government_procurement_cards,12-Apr-2021,Total ASCHWB,OFFICE DEPOT UK,Total Adult Social Care,22.21,STATIONERY/OFFICE SUPPLIES/PRINTING & WRITING PAP.,2021-22Q1_PC0080
Sandwell Metropolitan Borough Council,http://www.sandwell.gov.uk/info/200202/performance_and_spending/3233/government_procurement_cards,12-Apr-2021,Individual School Budgets With Inclusion,AMZNMktplace,Individual School Budgets With Inclusion,69.82,MISCELLANEOUS AND SPECIALTY RETAIL STORES,2021-22Q1_PC0081
Sandwell Metropolitan Borough Council,http://www.sandwell.gov.uk/info/200202/performance_and_spending/3233/government_procurement_cards,12-Apr-2021,Director of Law & Governance,WWW.RYMAN.CO.UK,Assistant Chief Executive (Excl SIU),230.95,"OFFICE, SCHOOL SUPPLY, AND STATIONERY STORES",2021-22Q1_PC0082
Sandwell Metropolitan Borough Council,http://www.sandwell.gov.uk/info/200202/performance_and_spending/3233/government_procurement_cards,12-Apr-2021,Corporate Management,Amazon.co.uk M47I49NK4,Corporate Management,85.32,DIRECT MARKETING-OTHER DIRECT MARKETERS/NOT ELSEW.,2021-22Q1_PC0083
Sandwell Metropolitan Borough Council,http://www.sandwell.gov.uk/info/200202/performance_and_spending/3233/government_procurement_cards,13-Apr-2021,Total Housing Revenue Account,SCREWFIX DIRECT,Total Housing Revenue Account,259.9,"BUILDING MATERIALS, LUMBER STORES",2021-22Q1_PC0084
Sandwell Metropolitan Borough Council,http://www.sandwell.gov.uk/info/200202/performance_and_spending/3233/government_procurement_cards,13-Apr-2021,Total Housing Revenue Account,ARGOS LTD,Total Housing Revenue Account,14.99,DISCOUNT STORES,2021-22Q1_PC0085
Sandwell Metropolitan Borough Council,http://www.sandwell.gov.uk/info/200202/performance_and_spending/3233/government_procurement_cards,13-Apr-2021,Total Public Health,Adobe.com,Public Health,49.94,DIGITAL GOODS SOFTWARE APPLICATIONS,2021-22Q1_PC0086
Sandwell Metropolitan Borough Council,http://www.sandwell.gov.uk/info/200202/performance_and_spending/3233/government_procurement_cards,13-Apr-2021,Total Public Health,AMZNMKTPLACE AMAZON.CO,Public Health,79.98,MISCELLANEOUS AND SPECIALTY RETAIL STORES,2021-22Q1_PC0087
Sandwell Metropolitan Borough Council,http://www.sandwell.gov.uk/info/200202/performance_and_spending/3233/government_procurement_cards,13-Apr-2021,Total Public Health,AMZNMKTPLACE AMAZON.CO,Public Health,162,MISCELLANEOUS AND SPECIALTY RETAIL STORES,2021-22Q1_PC0088
Sandwell Metropolitan Borough Council,http://www.sandwell.gov.uk/info/200202/performance_and_spending/3233/government_procurement_cards,13-Apr-2021,Regeneration & Growth,AMZNMktplace,Regeneration And The Economy,15.98,MISCELLANEOUS AND SPECIALTY RETAIL STORES,2021-22Q1_PC0089
Sandwell Metropolitan Borough Council,http://www.sandwell.gov.uk/info/200202/performance_and_spending/3233/government_procurement_cards,13-Apr-2021,Regeneration & Growth,AMZNMktplace,Regeneration And The Economy,25.98,MISCELLANEOUS AND SPECIALTY RETAIL STORES,2021-22Q1_PC0090
Sandwell Metropolitan Borough Council,http://www.sandwell.gov.uk/info/200202/performance_and_spending/3233/government_procurement_cards,13-Apr-2021,Regeneration & Growth,AMZNMktplace,Regeneration And The Economy,7.76,MISCELLANEOUS AND SPECIALTY RETAIL STORES,2021-22Q1_PC0091
Sandwell Metropolitan Borough Council,http://www.sandwell.gov.uk/info/200202/performance_and_spending/3233/government_procurement_cards,13-Apr-2021,Total Borough Economy,AMZNMktplace,Neighbourhoods,8.99,MISCELLANEOUS AND SPECIALTY RETAIL STORES,2021-22Q1_PC0092
Sandwell Metropolitan Borough Council,http://www.sandwell.gov.uk/info/200202/performance_and_spending/3233/government_procurement_cards,13-Apr-2021,Total Borough Economy,TOOLSTATION UK,Neighbourhoods,49,HARDWARE STORES,2021-22Q1_PC0093
Sandwell Metropolitan Borough Council,http://www.sandwell.gov.uk/info/200202/performance_and_spending/3233/government_procurement_cards,13-Apr-2021,Regeneration & Growth,AMZNMKTPLACE AMAZON.CO,Regeneration And The Economy,6.99,MISCELLANEOUS AND SPECIALTY RETAIL STORES,2021-22Q1_PC0094
Sandwell Metropolitan Borough Council,http://www.sandwell.gov.uk/info/200202/performance_and_spending/3233/government_procurement_cards,13-Apr-2021,Regeneration & Growth,Amazon.co.uk M44AA1094,Regeneration And The Economy,36.9,DIRECT MARKETING-OTHER DIRECT MARKETERS/NOT ELSEW.,2021-22Q1_PC0095
Sandwell Metropolitan Borough Council,http://www.sandwell.gov.uk/info/200202/performance_and_spending/3233/government_procurement_cards,13-Apr-2021,Childrens Services,ASDA SUPERSTORE,Childrens Services,61,"GROCERY STORES, SUPERMARKETS",2021-22Q1_PC0096
Sandwell Metropolitan Borough Council,http://www.sandwell.gov.uk/info/200202/performance_and_spending/3233/government_procurement_cards,13-Apr-2021,Director of Law & Governance,CARTRIDGEPEOPLE.COM,Assistant Chief Executive (Excl SIU),114.99,STATIONERY/OFFICE SUPPLIES/PRINTING & WRITING PAP.,2021-22Q1_PC0097
Sandwell Metropolitan Borough Council,http://www.sandwell.gov.uk/info/200202/performance_and_spending/3233/government_procurement_cards,13-Apr-2021,Director of Law & Governance,CARTRIDGEPEOPLE.COM,Assistant Chief Executive (Excl SIU),114.99,STATIONERY/OFFICE SUPPLIES/PRINTING & WRITING PAP.,2021-22Q1_PC0098
Sandwell Metropolitan Borough Council,http://www.sandwell.gov.uk/info/200202/performance_and_spending/3233/government_procurement_cards,14-Apr-2021,Total Housing Revenue Account,ARGOS LTD,Total Housing Revenue Account,14.99,DISCOUNT STORES,2021-22Q1_PC0099
Sandwell Metropolitan Borough Council,http://www.sandwell.gov.uk/info/200202/performance_and_spending/3233/government_procurement_cards,14-Apr-2021,Total Housing Revenue Account,ARGOS LTD,Total Housing Revenue Account,14.99,DISCOUNT STORES,2021-22Q1_PC0100
Sandwell Metropolitan Borough Council,http://www.sandwell.gov.uk/info/200202/performance_and_spending/3233/government_procurement_cards,14-Apr-2021,Total Borough Economy,OFFICE DEPOT UK,Neighbourhoods,43.44,STATIONERY/OFFICE SUPPLIES/PRINTING & WRITING PAP.,2021-22Q1_PC0101
Sandwell Metropolitan Borough Council,http://www.sandwell.gov.uk/info/200202/performance_and_spending/3233/government_procurement_cards,14-Apr-2021,Total Borough Economy,SECURITY INDUSTRY,Neighbourhoods,190,"DETECTVE/PROTECTVE AGNCY,SECURITY SRVS, ARMOR CARS",2021-22Q1_PC0102
Sandwell Metropolitan Borough Council,http://www.sandwell.gov.uk/info/200202/performance_and_spending/3233/government_procurement_cards,14-Apr-2021,Total Borough Economy,AMZNMktplace,Neighbourhoods,37.95,MISCELLANEOUS AND SPECIALTY RETAIL STORES,2021-22Q1_PC0103
Sandwell Metropolitan Borough Council,http://www.sandwell.gov.uk/info/200202/performance_and_spending/3233/government_procurement_cards,14-Apr-2021,Total Public Health,AMZNMktplace,Public Health,159.92,MISCELLANEOUS AND SPECIALTY RETAIL STORES,2021-22Q1_PC0104
Sandwell Metropolitan Borough Council,http://www.sandwell.gov.uk/info/200202/performance_and_spending/3233/government_procurement_cards,14-Apr-2021,Total Borough Economy,SCREWFIX DIRECT,Neighbourhoods,64.56,"BUILDING MATERIALS, LUMBER STORES",2021-22Q1_PC0105
Sandwell Metropolitan Borough Council,http://www.sandwell.gov.uk/info/200202/performance_and_spending/3233/government_procurement_cards,14-Apr-2021,Total Borough Economy,WWW.KINGSSEEDS.COM,Neighbourhoods,9.8,DIRECT MARKETING-COMBINATION CATALOG/RETAIL MERCH.,2021-22Q1_PC0106
Sandwell Metropolitan Borough Council,http://www.sandwell.gov.uk/info/200202/performance_and_spending/3233/government_procurement_cards,14-Apr-2021,Total ASCHWB,Amazon.co.uk M48FA21Y4,Total Adult Social Care,38.99,DIRECT MARKETING-OTHER DIRECT MARKETERS/NOT ELSEW.,2021-22Q1_PC0107
Sandwell Metropolitan Borough Council,http://www.sandwell.gov.uk/info/200202/performance_and_spending/3233/government_procurement_cards,14-Apr-2021,Total ASCHWB,OFFICE DEPOT UK,Total Adult Social Care,25.19,STATIONERY/OFFICE SUPPLIES/PRINTING & WRITING PAP.,2021-22Q1_PC0108
Sandwell Metropolitan Borough Council,http://www.sandwell.gov.uk/info/200202/performance_and_spending/3233/government_procurement_cards,14-Apr-2021,Childrens Services,VODAFONE LTD,Childrens Services,23.51,TELECOM INCL PREPAID/RECURRING PHONE SVCS,2021-22Q1_PC0109
Sandwell Metropolitan Borough Council,http://www.sandwell.gov.uk/info/200202/performance_and_spending/3233/government_procurement_cards,14-Apr-2021,Individual School Budgets With Inclusion,AMZNMKTPLACE AMAZON.CO,Individual School Budgets With Inclusion,237.04,MISCELLANEOUS AND SPECIALTY RETAIL STORES,2021-22Q1_PC0110
Sandwell Metropolitan Borough Council,http://www.sandwell.gov.uk/info/200202/performance_and_spending/3233/government_procurement_cards,14-Apr-2021,Individual School Budgets With Inclusion,WICKES BUILDING,Individual School Budgets With Inclusion,246,"BUILDING MATERIALS, LUMBER STORES",2021-22Q1_PC0111
Sandwell Metropolitan Borough Council,http://www.sandwell.gov.uk/info/200202/performance_and_spending/3233/government_procurement_cards,14-Apr-2021,Childrens Services,Amazon.co.uk M40KW0014,Childrens Services,99.95,DIRECT MARKETING-OTHER DIRECT MARKETERS/NOT ELSEW.,2021-22Q1_PC0112
Sandwell Metropolitan Borough Council,http://www.sandwell.gov.uk/info/200202/performance_and_spending/3233/government_procurement_cards,14-Apr-2021,Director of Law & Governance,AMZNMKTPLACE AMAZON.CO,Assistant Chief Executive (Excl SIU),54.81,MISCELLANEOUS AND SPECIALTY RETAIL STORES,2021-22Q1_PC0113
Sandwell Metropolitan Borough Council,http://www.sandwell.gov.uk/info/200202/performance_and_spending/3233/government_procurement_cards,14-Apr-2021,Director of Law & Governance,PROARK UK HOTELS LTD O,Assistant Chief Executive (Excl SIU),175,"LODGING-HOTELS,MOTELS,RESORTS-NOT CLASSIFIED",2021-22Q1_PC0114
Sandwell Metropolitan Borough Council,http://www.sandwell.gov.uk/info/200202/performance_and_spending/3233/government_procurement_cards,14-Apr-2021,Director of Law & Governance,PROARK UK HOTELS LTD O,Assistant Chief Executive (Excl SIU),175,"LODGING-HOTELS,MOTELS,RESORTS-NOT CLASSIFIED",2021-22Q1_PC0115
Sandwell Metropolitan Borough Council,http://www.sandwell.gov.uk/info/200202/performance_and_spending/3233/government_procurement_cards,14-Apr-2021,Director of Law & Governance,STATIONERYU,Assistant Chief Executive (Excl SIU),113.1,"OFFICE, SCHOOL SUPPLY, AND STATIONERY STORES",2021-22Q1_PC0116
Sandwell Metropolitan Borough Council,http://www.sandwell.gov.uk/info/200202/performance_and_spending/3233/government_procurement_cards,15-Apr-2021,Regeneration And The Economy Capital,Amazon Prime M48Q09P54,#N/A,7.99,DIRECT MARKETING-CONTINUITY/SUBSCRIPTION MERCHANTS,2021-22Q1_PC0117
Sandwell Metropolitan Borough Council,http://www.sandwell.gov.uk/info/200202/performance_and_spending/3233/government_procurement_cards,15-Apr-2021,Total Housing Revenue Account,AMZNMktplace,Total Housing Revenue Account,259.98,MISCELLANEOUS AND SPECIALTY RETAIL STORES,2021-22Q1_PC0118
Sandwell Metropolitan Borough Council,http://www.sandwell.gov.uk/info/200202/performance_and_spending/3233/government_procurement_cards,15-Apr-2021,Total Borough Economy,OFFICE DEPOT UK,Total Adult Social Care,4.18,STATIONERY/OFFICE SUPPLIES/PRINTING & WRITING PAP.,2021-22Q1_PC0119
Sandwell Metropolitan Borough Council,http://www.sandwell.gov.uk/info/200202/performance_and_spending/3233/government_procurement_cards,15-Apr-2021,Total Borough Economy,AMZNMktplace,Neighbourhoods,10.99,MISCELLANEOUS AND SPECIALTY RETAIL STORES,2021-22Q1_PC0120
Sandwell Metropolitan Borough Council,http://www.sandwell.gov.uk/info/200202/performance_and_spending/3233/government_procurement_cards,15-Apr-2021,Total Borough Economy,AMZNMktplace,Neighbourhoods,29.98,MISCELLANEOUS AND SPECIALTY RETAIL STORES,2021-22Q1_PC0121
Sandwell Metropolitan Borough Council,http://www.sandwell.gov.uk/info/200202/performance_and_spending/3233/government_procurement_cards,15-Apr-2021,Total Borough Economy,WWW.GOMPELS.CO.UK,Neighbourhoods,118.44,INDUSTRIAL SUPPLIES NOT ELSEWHERE CLASSIFIED,2021-22Q1_PC0122
Sandwell Metropolitan Borough Council,http://www.sandwell.gov.uk/info/200202/performance_and_spending/3233/government_procurement_cards,15-Apr-2021,Total Borough Economy,TERRAQUEST SOLUTIONS L,Neighbourhoods,31.2,"COMPUTERS, COMPUTER PERIPHERAL EQUIPMENT, SOFTWARE",2021-22Q1_PC0123
Sandwell Metropolitan Borough Council,http://www.sandwell.gov.uk/info/200202/performance_and_spending/3233/government_procurement_cards,15-Apr-2021,Total Business Strategy & Change,BACK 2,Assistant Chief Executive (Excl SIU),106.8,"HEALTH PRACTITIONERS, MEDICAL SRVCS-NOT ELSEWHERE",2021-22Q1_PC0124
Sandwell Metropolitan Borough Council,http://www.sandwell.gov.uk/info/200202/performance_and_spending/3233/government_procurement_cards,15-Apr-2021,Regeneration & Growth,Amazon.co.uk M49PX8GQ4,Regeneration And The Economy,56.46,DIRECT MARKETING-OTHER DIRECT MARKETERS/NOT ELSEW.,2021-22Q1_PC0125
Sandwell Metropolitan Borough Council,http://www.sandwell.gov.uk/info/200202/performance_and_spending/3233/government_procurement_cards,15-Apr-2021,Regeneration & Growth,Amazon.co.uk M45AA5GZ4,Regeneration And The Economy,56.46,DIRECT MARKETING-OTHER DIRECT MARKETERS/NOT ELSEW.,2021-22Q1_PC0126
Sandwell Metropolitan Borough Council,http://www.sandwell.gov.uk/info/200202/performance_and_spending/3233/government_procurement_cards,15-Apr-2021,Regeneration & Growth,AMZNMktplace,Regeneration And The Economy,107.94,MISCELLANEOUS AND SPECIALTY RETAIL STORES,2021-22Q1_PC0127
Sandwell Metropolitan Borough Council,http://www.sandwell.gov.uk/info/200202/performance_and_spending/3233/government_procurement_cards,15-Apr-2021,Regeneration & Growth,AMZNMktplace,Regeneration And The Economy,22.72,MISCELLANEOUS AND SPECIALTY RETAIL STORES,2021-22Q1_PC0128
Sandwell Metropolitan Borough Council,http://www.sandwell.gov.uk/info/200202/performance_and_spending/3233/government_procurement_cards,15-Apr-2021,Regeneration & Growth,AMZNMktplace,Regeneration And The Economy,22.72,MISCELLANEOUS AND SPECIALTY RETAIL STORES,2021-22Q1_PC0129
Sandwell Metropolitan Borough Council,http://www.sandwell.gov.uk/info/200202/performance_and_spending/3233/government_procurement_cards,15-Apr-2021,Regeneration & Growth,AMZNMktplace,Regeneration And The Economy,22.72,MISCELLANEOUS AND SPECIALTY RETAIL STORES,2021-22Q1_PC0130
Sandwell Metropolitan Borough Council,http://www.sandwell.gov.uk/info/200202/performance_and_spending/3233/government_procurement_cards,15-Apr-2021,Regeneration & Growth,Amazon.co.uk M42B56GC4,Regeneration And The Economy,10.64,DIRECT MARKETING-OTHER DIRECT MARKETERS/NOT ELSEW.,2021-22Q1_PC0131
Sandwell Metropolitan Borough Council,http://www.sandwell.gov.uk/info/200202/performance_and_spending/3233/government_procurement_cards,15-Apr-2021,Regeneration & Growth,Amazon.co.uk M49CK7G44,Regeneration And The Economy,10.64,DIRECT MARKETING-OTHER DIRECT MARKETERS/NOT ELSEW.,2021-22Q1_PC0132
Sandwell Metropolitan Borough Council,http://www.sandwell.gov.uk/info/200202/performance_and_spending/3233/government_procurement_cards,15-Apr-2021,Regeneration & Growth,Amazon.co.uk M49ZU8GL4,Regeneration And The Economy,10.64,DIRECT MARKETING-OTHER DIRECT MARKETERS/NOT ELSEW.,2021-22Q1_PC0133
Sandwell Metropolitan Borough Council,http://www.sandwell.gov.uk/info/200202/performance_and_spending/3233/government_procurement_cards,15-Apr-2021,Regeneration & Growth,Amazon.co.uk M49BE1GU4,Regeneration And The Economy,10.64,DIRECT MARKETING-OTHER DIRECT MARKETERS/NOT ELSEW.,2021-22Q1_PC0134
Sandwell Metropolitan Borough Council,http://www.sandwell.gov.uk/info/200202/performance_and_spending/3233/government_procurement_cards,15-Apr-2021,Regeneration & Growth,Amazon.co.uk M45Z28GY4,Regeneration And The Economy,10.64,DIRECT MARKETING-OTHER DIRECT MARKETERS/NOT ELSEW.,2021-22Q1_PC0135
Sandwell Metropolitan Borough Council,http://www.sandwell.gov.uk/info/200202/performance_and_spending/3233/government_procurement_cards,15-Apr-2021,Regeneration & Growth,Amazon.co.uk M48ON5G94,Regeneration And The Economy,5.69,DIRECT MARKETING-OTHER DIRECT MARKETERS/NOT ELSEW.,2021-22Q1_PC0136
Sandwell Metropolitan Borough Council,http://www.sandwell.gov.uk/info/200202/performance_and_spending/3233/government_procurement_cards,15-Apr-2021,Regeneration & Growth,Amazon.co.uk M45OC8GU4,Regeneration And The Economy,5.7,DIRECT MARKETING-OTHER DIRECT MARKETERS/NOT ELSEW.,2021-22Q1_PC0137
Sandwell Metropolitan Borough Council,http://www.sandwell.gov.uk/info/200202/performance_and_spending/3233/government_procurement_cards,15-Apr-2021,Regeneration & Growth,Amazon.co.uk M480P8GG4,Regeneration And The Economy,8.16,DIRECT MARKETING-OTHER DIRECT MARKETERS/NOT ELSEW.,2021-22Q1_PC0138
Sandwell Metropolitan Borough Council,http://www.sandwell.gov.uk/info/200202/performance_and_spending/3233/government_procurement_cards,15-Apr-2021,Regeneration & Growth,Amazon.co.uk M46O14GU4,Regeneration And The Economy,5.7,DIRECT MARKETING-OTHER DIRECT MARKETERS/NOT ELSEW.,2021-22Q1_PC0139
Sandwell Metropolitan Borough Council,http://www.sandwell.gov.uk/info/200202/performance_and_spending/3233/government_procurement_cards,15-Apr-2021,Regeneration & Growth,Amazon.co.uk M405W8GB4,Regeneration And The Economy,10.64,DIRECT MARKETING-OTHER DIRECT MARKETERS/NOT ELSEW.,2021-22Q1_PC0140
Sandwell Metropolitan Borough Council,http://www.sandwell.gov.uk/info/200202/performance_and_spending/3233/government_procurement_cards,15-Apr-2021,Regeneration & Growth,Amazon.co.uk M46YO5GP4,Regeneration And The Economy,5.7,DIRECT MARKETING-OTHER DIRECT MARKETERS/NOT ELSEW.,2021-22Q1_PC0141
Sandwell Metropolitan Borough Council,http://www.sandwell.gov.uk/info/200202/performance_and_spending/3233/government_procurement_cards,15-Apr-2021,Regeneration & Growth,Amazon.co.uk M43Z08GV4,Regeneration And The Economy,10.64,DIRECT MARKETING-OTHER DIRECT MARKETERS/NOT ELSEW.,2021-22Q1_PC0142
Sandwell Metropolitan Borough Council,http://www.sandwell.gov.uk/info/200202/performance_and_spending/3233/government_procurement_cards,15-Apr-2021,Regeneration & Growth,Amazon.co.uk M47OX6GN4,Regeneration And The Economy,5.7,DIRECT MARKETING-OTHER DIRECT MARKETERS/NOT ELSEW.,2021-22Q1_PC0143
Sandwell Metropolitan Borough Council,http://www.sandwell.gov.uk/info/200202/performance_and_spending/3233/government_procurement_cards,15-Apr-2021,Regeneration & Growth,Amazon.co.uk M42YB0G74,Regeneration And The Economy,5.7,DIRECT MARKETING-OTHER DIRECT MARKETERS/NOT ELSEW.,2021-22Q1_PC0144
Sandwell Metropolitan Borough Council,http://www.sandwell.gov.uk/info/200202/performance_and_spending/3233/government_procurement_cards,15-Apr-2021,Regeneration & Growth,Amazon.co.uk M48OC8GO4,Regeneration And The Economy,5.72,DIRECT MARKETING-OTHER DIRECT MARKETERS/NOT ELSEW.,2021-22Q1_PC0145
Sandwell Metropolitan Borough Council,http://www.sandwell.gov.uk/info/200202/performance_and_spending/3233/government_procurement_cards,15-Apr-2021,Regeneration & Growth,Amazon.co.uk M46DE8GV4,Regeneration And The Economy,46.06,DIRECT MARKETING-OTHER DIRECT MARKETERS/NOT ELSEW.,2021-22Q1_PC0146
Sandwell Metropolitan Borough Council,http://www.sandwell.gov.uk/info/200202/performance_and_spending/3233/government_procurement_cards,15-Apr-2021,Regeneration & Growth,Amazon.co.uk M426E6G44,Regeneration And The Economy,32.9,DIRECT MARKETING-OTHER DIRECT MARKETERS/NOT ELSEW.,2021-22Q1_PC0147
Sandwell Metropolitan Borough Council,http://www.sandwell.gov.uk/info/200202/performance_and_spending/3233/government_procurement_cards,15-Apr-2021,Regeneration & Growth,AMZNMktplace,Regeneration And The Economy,63.46,MISCELLANEOUS AND SPECIALTY RETAIL STORES,2021-22Q1_PC0148
Sandwell Metropolitan Borough Council,http://www.sandwell.gov.uk/info/200202/performance_and_spending/3233/government_procurement_cards,15-Apr-2021,Regeneration & Growth,AMZNMktplace,Regeneration And The Economy,63.46,MISCELLANEOUS AND SPECIALTY RETAIL STORES,2021-22Q1_PC0149
Sandwell Metropolitan Borough Council,http://www.sandwell.gov.uk/info/200202/performance_and_spending/3233/government_procurement_cards,15-Apr-2021,Regeneration & Growth,AMZNMktplace,Regeneration And The Economy,31.75,MISCELLANEOUS AND SPECIALTY RETAIL STORES,2021-22Q1_PC0150
Sandwell Metropolitan Borough Council,http://www.sandwell.gov.uk/info/200202/performance_and_spending/3233/government_procurement_cards,15-Apr-2021,Regeneration & Growth,AMZNMktplace,Regeneration And The Economy,65.56,MISCELLANEOUS AND SPECIALTY RETAIL STORES,2021-22Q1_PC0151
Sandwell Metropolitan Borough Council,http://www.sandwell.gov.uk/info/200202/performance_and_spending/3233/government_procurement_cards,15-Apr-2021,Regeneration & Growth,AMZNMktplace,Regeneration And The Economy,22.72,MISCELLANEOUS AND SPECIALTY RETAIL STORES,2021-22Q1_PC0152
Sandwell Metropolitan Borough Council,http://www.sandwell.gov.uk/info/200202/performance_and_spending/3233/government_procurement_cards,15-Apr-2021,Regeneration & Growth,Amazon.co.uk M42AV5G94,Regeneration And The Economy,10.49,DIRECT MARKETING-OTHER DIRECT MARKETERS/NOT ELSEW.,2021-22Q1_PC0153
Sandwell Metropolitan Borough Council,http://www.sandwell.gov.uk/info/200202/performance_and_spending/3233/government_procurement_cards,15-Apr-2021,Regeneration & Growth,Amazon.co.uk M44Y21G04,Regeneration And The Economy,8.18,DIRECT MARKETING-OTHER DIRECT MARKETERS/NOT ELSEW.,2021-22Q1_PC0154
Sandwell Metropolitan Borough Council,http://www.sandwell.gov.uk/info/200202/performance_and_spending/3233/government_procurement_cards,15-Apr-2021,FINANCE (Inc SIU),OFFICE DEPOT UK,Assistant Chief Executive (Excl SIU),46.7,STATIONERY/OFFICE SUPPLIES/PRINTING & WRITING PAP.,2021-22Q1_PC0155
Sandwell Metropolitan Borough Council,http://www.sandwell.gov.uk/info/200202/performance_and_spending/3233/government_procurement_cards,15-Apr-2021,FINANCE (Inc SIU),OFFICE DEPOT UK,Assistant Chief Executive (Excl SIU),4.56,STATIONERY/OFFICE SUPPLIES/PRINTING & WRITING PAP.,2021-22Q1_PC0156
Sandwell Metropolitan Borough Council,http://www.sandwell.gov.uk/info/200202/performance_and_spending/3233/government_procurement_cards,15-Apr-2021,Total Borough Economy,HOMEBASE.CO.UK,Neighbourhoods,3.75,HOME SUPPLY WAREHOUSE STORES,2021-22Q1_PC0157
Sandwell Metropolitan Borough Council,http://www.sandwell.gov.uk/info/200202/performance_and_spending/3233/government_procurement_cards,15-Apr-2021,Total Borough Economy,PLASTIC EXPRESS LTD,Neighbourhoods,105.6,HARDWARE EQUIPMENT AND SUPPLIES,2021-22Q1_PC0158
Sandwell Metropolitan Borough Council,http://www.sandwell.gov.uk/info/200202/performance_and_spending/3233/government_procurement_cards,15-Apr-2021,Total Borough Economy,Amazon.co.uk M49754GI4,Neighbourhoods,25.77,DIRECT MARKETING-OTHER DIRECT MARKETERS/NOT ELSEW.,2021-22Q1_PC0159
Sandwell Metropolitan Borough Council,http://www.sandwell.gov.uk/info/200202/performance_and_spending/3233/government_procurement_cards,15-Apr-2021,Total Borough Economy,OFFICE DEPOT UK,Neighbourhoods,99.56,STATIONERY/OFFICE SUPPLIES/PRINTING & WRITING PAP.,2021-22Q1_PC0160
Sandwell Metropolitan Borough Council,http://www.sandwell.gov.uk/info/200202/performance_and_spending/3233/government_procurement_cards,15-Apr-2021,Regeneration & Growth,SEVERN TRENT WATER,Regeneration And The Economy,636.39,"UTLTS-ELCTRC, GAS, HEATING OIL, SANITARY, WATER",2021-22Q1_PC0161
Sandwell Metropolitan Borough Council,http://www.sandwell.gov.uk/info/200202/performance_and_spending/3233/government_procurement_cards,15-Apr-2021,Childrens Services,OFFICE DEPOT UK,Childrens Services,76.86,STATIONERY/OFFICE SUPPLIES/PRINTING & WRITING PAP.,2021-22Q1_PC0162
Sandwell Metropolitan Borough Council,http://www.sandwell.gov.uk/info/200202/performance_and_spending/3233/government_procurement_cards,15-Apr-2021,Childrens Services,Twinkl Limited,Childrens Services,48.48,SCHOOLS & EDUCATIONAL SVC-NOT ELSEWHERE CLASSIFIED,2021-22Q1_PC0163
Sandwell Metropolitan Borough Council,http://www.sandwell.gov.uk/info/200202/performance_and_spending/3233/government_procurement_cards,15-Apr-2021,Individual School Budgets With Inclusion,SCREWFIX DIRECT,Individual School Budgets With Inclusion,77.99,"BUILDING MATERIALS, LUMBER STORES",2021-22Q1_PC0164
Sandwell Metropolitan Borough Council,http://www.sandwell.gov.uk/info/200202/performance_and_spending/3233/government_procurement_cards,15-Apr-2021,Individual School Budgets With Inclusion,STAX TRADE CENTRES LTD,Individual School Budgets With Inclusion,65.75,HOME SUPPLY WAREHOUSE STORES,2021-22Q1_PC0165
Sandwell Metropolitan Borough Council,http://www.sandwell.gov.uk/info/200202/performance_and_spending/3233/government_procurement_cards,15-Apr-2021,Director of Law & Governance,ROYAL IMAGES,Assistant Chief Executive (Excl SIU),823.8,ADVERTISING SERVICES,2021-22Q1_PC0166
Sandwell Metropolitan Borough Council,http://www.sandwell.gov.uk/info/200202/performance_and_spending/3233/government_procurement_cards,15-Apr-2021,Director of Law & Governance,Amazon Prime M42PY2PM4,Assistant Chief Executive (Excl SIU),7.99,DIRECT MARKETING-CONTINUITY/SUBSCRIPTION MERCHANTS,2021-22Q1_PC0167
Sandwell Metropolitan Borough Council,http://www.sandwell.gov.uk/info/200202/performance_and_spending/3233/government_procurement_cards,15-Apr-2021,Director of Law & Governance,Amazon.co.uk M42GA1GC4,Assistant Chief Executive (Excl SIU),17.61,DIRECT MARKETING-OTHER DIRECT MARKETERS/NOT ELSEW.,2021-22Q1_PC0168
Sandwell Metropolitan Borough Council,http://www.sandwell.gov.uk/info/200202/performance_and_spending/3233/government_procurement_cards,16-Apr-2021,Total Borough Economy,Amazon.co.uk M40KD7VE4,Neighbourhoods,9.25,DIRECT MARKETING-OTHER DIRECT MARKETERS/NOT ELSEW.,2021-22Q1_PC0169
Sandwell Metropolitan Borough Council,http://www.sandwell.gov.uk/info/200202/performance_and_spending/3233/government_procurement_cards,16-Apr-2021,Total Public Health,LOCTEK INC,Public Health,199.99,COMPUTER SOFTWARE STORES,2021-22Q1_PC0170
Sandwell Metropolitan Borough Council,http://www.sandwell.gov.uk/info/200202/performance_and_spending/3233/government_procurement_cards,16-Apr-2021,Total Business Strategy & Change,AMZNMKTPLACE AMAZON.CO,Assistant Chief Executive (Excl SIU),83.97,MISCELLANEOUS AND SPECIALTY RETAIL STORES,2021-22Q1_PC0171
Sandwell Metropolitan Borough Council,http://www.sandwell.gov.uk/info/200202/performance_and_spending/3233/government_procurement_cards,16-Apr-2021,Regeneration & Growth,AMZNMKTPLACE AMAZON.CO,Regeneration And The Economy,47.94,MISCELLANEOUS AND SPECIALTY RETAIL STORES,2021-22Q1_PC0172
Sandwell Metropolitan Borough Council,http://www.sandwell.gov.uk/info/200202/performance_and_spending/3233/government_procurement_cards,16-Apr-2021,Regeneration & Growth,AMZNMktplace,Regeneration And The Economy,22.72,MISCELLANEOUS AND SPECIALTY RETAIL STORES,2021-22Q1_PC0173
Sandwell Metropolitan Borough Council,http://www.sandwell.gov.uk/info/200202/performance_and_spending/3233/government_procurement_cards,16-Apr-2021,Regeneration & Growth,Amazon Prime M42896XT4,Regeneration And The Economy,96,DIRECT MARKETING-CONTINUITY/SUBSCRIPTION MERCHANTS,2021-22Q1_PC0174
Sandwell Metropolitan Borough Council,http://www.sandwell.gov.uk/info/200202/performance_and_spending/3233/government_procurement_cards,16-Apr-2021,Regeneration & Growth,AMZNMKTPLACE AMAZON.CO,Regeneration And The Economy,15.98,MISCELLANEOUS AND SPECIALTY RETAIL STORES,2021-22Q1_PC0175
Sandwell Metropolitan Borough Council,http://www.sandwell.gov.uk/info/200202/performance_and_spending/3233/government_procurement_cards,16-Apr-2021,Regeneration & Growth,AMZNMktplace,Regeneration And The Economy,29.12,MISCELLANEOUS AND SPECIALTY RETAIL STORES,2021-22Q1_PC0176
Sandwell Metropolitan Borough Council,http://www.sandwell.gov.uk/info/200202/performance_and_spending/3233/government_procurement_cards,16-Apr-2021,Total Borough Economy,AMZNMKTPLACE AMAZON.CO,Neighbourhoods,143.2,MISCELLANEOUS AND SPECIALTY RETAIL STORES,2021-22Q1_PC0177
Sandwell Metropolitan Borough Council,http://www.sandwell.gov.uk/info/200202/performance_and_spending/3233/government_procurement_cards,16-Apr-2021,FINANCE (Inc SIU),OFFICE DEPOT UK,Total Adult Social Care,30.82,STATIONERY/OFFICE SUPPLIES/PRINTING & WRITING PAP.,2021-22Q1_PC0178
Sandwell Metropolitan Borough Council,http://www.sandwell.gov.uk/info/200202/performance_and_spending/3233/government_procurement_cards,16-Apr-2021,Total ASCHWB,TSOHOST,Total Adult Social Care,923.87,DIRECT MARKETING-CONTINUITY/SUBSCRIPTION MERCHANTS,2021-22Q1_PC0179
Sandwell Metropolitan Borough Council,http://www.sandwell.gov.uk/info/200202/performance_and_spending/3233/government_procurement_cards,16-Apr-2021,Childrens Services,Spotify UK,Childrens Services,9.99,DIGITAL GOODS AUDIOVISUAL MEDIA,2021-22Q1_PC0180
Sandwell Metropolitan Borough Council,http://www.sandwell.gov.uk/info/200202/performance_and_spending/3233/government_procurement_cards,16-Apr-2021,Childrens Services,SCREWFIX DIRECT,Childrens Services,36.98,"BUILDING MATERIALS, LUMBER STORES",2021-22Q1_PC0181
Sandwell Metropolitan Borough Council,http://www.sandwell.gov.uk/info/200202/performance_and_spending/3233/government_procurement_cards,16-Apr-2021,Individual School Budgets With Inclusion,WICKES BUILDING,Individual School Budgets With Inclusion,-18,"BUILDING MATERIALS, LUMBER STORES",2021-22Q1_PC0182
Sandwell Metropolitan Borough Council,http://www.sandwell.gov.uk/info/200202/performance_and_spending/3233/government_procurement_cards,16-Apr-2021,Housing & Assets Total,TRAVELODGE,Neighbourhoods,30.84,TRAVELODGE,2021-22Q1_PC0183
Sandwell Metropolitan Borough Council,http://www.sandwell.gov.uk/info/200202/performance_and_spending/3233/government_procurement_cards,16-Apr-2021,Director of Law & Governance,E A G ENGRAVING,Assistant Chief Executive (Excl SIU),50,"CLOCK, JEWELRY, WATCH, AND SILVERWARE STORE",2021-22Q1_PC0184
Sandwell Metropolitan Borough Council,http://www.sandwell.gov.uk/info/200202/performance_and_spending/3233/government_procurement_cards,16-Apr-2021,Director of Law & Governance,AMZNMktplace,Assistant Chief Executive (Excl SIU),148.59,MISCELLANEOUS AND SPECIALTY RETAIL STORES,2021-22Q1_PC0185
Sandwell Metropolitan Borough Council,http://www.sandwell.gov.uk/info/200202/performance_and_spending/3233/government_procurement_cards,19-Apr-2021,Total Housing Revenue Account,OFFICE DEPOT UK,Total Housing Revenue Account,37.15,STATIONERY/OFFICE SUPPLIES/PRINTING & WRITING PAP.,2021-22Q1_PC0186
Sandwell Metropolitan Borough Council,http://www.sandwell.gov.uk/info/200202/performance_and_spending/3233/government_procurement_cards,19-Apr-2021,Total Housing Revenue Account,OFFICE DEPOT UK,Total Housing Revenue Account,97.87,STATIONERY/OFFICE SUPPLIES/PRINTING & WRITING PAP.,2021-22Q1_PC0187
Sandwell Metropolitan Borough Council,http://www.sandwell.gov.uk/info/200202/performance_and_spending/3233/government_procurement_cards,19-Apr-2021,Total Borough Economy,SAFETYSUPPL,Total Adult Social Care,23.34,DEPARTMENT STORES,2021-22Q1_PC0188
Sandwell Metropolitan Borough Council,http://www.sandwell.gov.uk/info/200202/performance_and_spending/3233/government_procurement_cards,19-Apr-2021,Total Borough Economy,HTTP://WWW.EPOLYBAGS.C,Total Adult Social Care,81,INDUSTRIAL SUPPLIES NOT ELSEWHERE CLASSIFIED,2021-22Q1_PC0189
Sandwell Metropolitan Borough Council,http://www.sandwell.gov.uk/info/200202/performance_and_spending/3233/government_procurement_cards,19-Apr-2021,Total Borough Economy,SCREWFIX DIRECT,Total Adult Social Care,224.33,"BUILDING MATERIALS, LUMBER STORES",2021-22Q1_PC0190
Sandwell Metropolitan Borough Council,http://www.sandwell.gov.uk/info/200202/performance_and_spending/3233/government_procurement_cards,19-Apr-2021,Total Public Health,ADOBE CREATIVE CLOUD,Public Health,49.94,COMPUTER SOFTWARE STORES,2021-22Q1_PC0191
Sandwell Metropolitan Borough Council,http://www.sandwell.gov.uk/info/200202/performance_and_spending/3233/government_procurement_cards,19-Apr-2021,Total Borough Economy,XL DISPLAYS: 31481,Neighbourhoods,85.2,MISCELLANEOUS GENERAL MERCHANDISE,2021-22Q1_PC0192
Sandwell Metropolitan Borough Council,http://www.sandwell.gov.uk/info/200202/performance_and_spending/3233/government_procurement_cards,19-Apr-2021,Total Borough Economy,Amazon.co.uk M46NI1MB4,Neighbourhoods,12.28,DIRECT MARKETING-OTHER DIRECT MARKETERS/NOT ELSEW.,2021-22Q1_PC0193
Sandwell Metropolitan Borough Council,http://www.sandwell.gov.uk/info/200202/performance_and_spending/3233/government_procurement_cards,19-Apr-2021,Total Borough Economy,WETRANSFER,Neighbourhoods,10.75,"COMP PROGRAMING,DATA PRCSNG,INTGRTD SYS DSGN SRVS",2021-22Q1_PC0194
Sandwell Metropolitan Borough Council,http://www.sandwell.gov.uk/info/200202/performance_and_spending/3233/government_procurement_cards,19-Apr-2021,Housing & Assets Total,Amazon.co.uk M41FI4MZ4,Neighbourhoods,248.99,DIRECT MARKETING-OTHER DIRECT MARKETERS/NOT ELSEW.,2021-22Q1_PC0195
Sandwell Metropolitan Borough Council,http://www.sandwell.gov.uk/info/200202/performance_and_spending/3233/government_procurement_cards,19-Apr-2021,Total Public Health,LOCTEK INC,Public Health,279.98,COMPUTER SOFTWARE STORES,2021-22Q1_PC0196
Sandwell Metropolitan Borough Council,http://www.sandwell.gov.uk/info/200202/performance_and_spending/3233/government_procurement_cards,19-Apr-2021,FINANCE (Inc SIU),AMZNMktplace,Assistant Chief Executive (Excl SIU),22.99,MISCELLANEOUS AND SPECIALTY RETAIL STORES,2021-22Q1_PC0197
Sandwell Metropolitan Borough Council,http://www.sandwell.gov.uk/info/200202/performance_and_spending/3233/government_procurement_cards,19-Apr-2021,Total Borough Economy,Amazon.co.uk M432G6MG4,Neighbourhoods,45.72,DIRECT MARKETING-OTHER DIRECT MARKETERS/NOT ELSEW.,2021-22Q1_PC0198
Sandwell Metropolitan Borough Council,http://www.sandwell.gov.uk/info/200202/performance_and_spending/3233/government_procurement_cards,19-Apr-2021,Total Borough Economy,A S CATERING SUPPLIES,Neighbourhoods,38.58,"COMMERCIAL EQUIPMENT, NOT ELSEWHERE CLASSIFIED",2021-22Q1_PC0199
Sandwell Metropolitan Borough Council,http://www.sandwell.gov.uk/info/200202/performance_and_spending/3233/government_procurement_cards,19-Apr-2021,Total ASCHWB,ADOBE CREATIVE CLOUD,Total Adult Social Care,49.94,COMPUTER SOFTWARE STORES,2021-22Q1_PC0200
Sandwell Metropolitan Borough Council,http://www.sandwell.gov.uk/info/200202/performance_and_spending/3233/government_procurement_cards,19-Apr-2021,Total ASCHWB,ADOBE CREATIVE CLOUD,Total Adult Social Care,49.94,COMPUTER SOFTWARE STORES,2021-22Q1_PC0201
Sandwell Metropolitan Borough Council,http://www.sandwell.gov.uk/info/200202/performance_and_spending/3233/government_procurement_cards,19-Apr-2021,Total ASCHWB,AMZNMktplace,Total Adult Social Care,190.68,MISCELLANEOUS AND SPECIALTY RETAIL STORES,2021-22Q1_PC0202
Sandwell Metropolitan Borough Council,http://www.sandwell.gov.uk/info/200202/performance_and_spending/3233/government_procurement_cards,19-Apr-2021,Total ASCHWB,AMZNMKTPLACE AMAZON.CO,Total Adult Social Care,13.38,MISCELLANEOUS AND SPECIALTY RETAIL STORES,2021-22Q1_PC0203
Sandwell Metropolitan Borough Council,http://www.sandwell.gov.uk/info/200202/performance_and_spending/3233/government_procurement_cards,19-Apr-2021,Total ASCHWB,AMZNMKTPLACE AMAZON.CO,Total Adult Social Care,7.48,MISCELLANEOUS AND SPECIALTY RETAIL STORES,2021-22Q1_PC0204
Sandwell Metropolitan Borough Council,http://www.sandwell.gov.uk/info/200202/performance_and_spending/3233/government_procurement_cards,19-Apr-2021,Total ASCHWB,XL DISPLAYS: 31502,Total Adult Social Care,170.4,MISCELLANEOUS GENERAL MERCHANDISE,2021-22Q1_PC0205
Sandwell Metropolitan Borough Council,http://www.sandwell.gov.uk/info/200202/performance_and_spending/3233/government_procurement_cards,19-Apr-2021,Total ASCHWB,OFFICE DEPOT UK,Total Adult Social Care,1680.04,STATIONERY/OFFICE SUPPLIES/PRINTING & WRITING PAP.,2021-22Q1_PC0206
Sandwell Metropolitan Borough Council,http://www.sandwell.gov.uk/info/200202/performance_and_spending/3233/government_procurement_cards,19-Apr-2021,Total ASCHWB,VIKING UK,Total Adult Social Care,305.14,STATIONERY/OFFICE SUPPLIES/PRINTING & WRITING PAP.,2021-22Q1_PC0207
Sandwell Metropolitan Borough Council,http://www.sandwell.gov.uk/info/200202/performance_and_spending/3233/government_procurement_cards,19-Apr-2021,Childrens Services,OFFICE DEPOT UK,Childrens Services,15.86,STATIONERY/OFFICE SUPPLIES/PRINTING & WRITING PAP.,2021-22Q1_PC0208
Sandwell Metropolitan Borough Council,http://www.sandwell.gov.uk/info/200202/performance_and_spending/3233/government_procurement_cards,19-Apr-2021,Childrens Services,AMZNMktplace,Childrens Services,14.1,MISCELLANEOUS AND SPECIALTY RETAIL STORES,2021-22Q1_PC0209
Sandwell Metropolitan Borough Council,http://www.sandwell.gov.uk/info/200202/performance_and_spending/3233/government_procurement_cards,19-Apr-2021,Childrens Services,AMZNMKTPLACE AMAZON.CO,Childrens Services,29.99,MISCELLANEOUS AND SPECIALTY RETAIL STORES,2021-22Q1_PC0210
Sandwell Metropolitan Borough Council,http://www.sandwell.gov.uk/info/200202/performance_and_spending/3233/government_procurement_cards,19-Apr-2021,Housing & Assets Total,PREMIER INN,Neighbourhoods,35,PREMIER INN,2021-22Q1_PC0211
Sandwell Metropolitan Borough Council,http://www.sandwell.gov.uk/info/200202/performance_and_spending/3233/government_procurement_cards,19-Apr-2021,Housing & Assets Total,TRAVELODGE,Neighbourhoods,92.53,TRAVELODGE,2021-22Q1_PC0212
Sandwell Metropolitan Borough Council,http://www.sandwell.gov.uk/info/200202/performance_and_spending/3233/government_procurement_cards,19-Apr-2021,Director of Law & Governance,Amazon.co.uk M43HA6HM4,Assistant Chief Executive (Excl SIU),22.95,DIRECT MARKETING-OTHER DIRECT MARKETERS/NOT ELSEW.,2021-22Q1_PC0213
Sandwell Metropolitan Borough Council,http://www.sandwell.gov.uk/info/200202/performance_and_spending/3233/government_procurement_cards,19-Apr-2021,Corporate Management,AMZNMktplace,Corporate Management,13.38,MISCELLANEOUS AND SPECIALTY RETAIL STORES,2021-22Q1_PC0214
Sandwell Metropolitan Borough Council,http://www.sandwell.gov.uk/info/200202/performance_and_spending/3233/government_procurement_cards,20-Apr-2021,Total Housing Revenue Account,AMZNMktplace,Total Housing Revenue Account,24.98,MISCELLANEOUS AND SPECIALTY RETAIL STORES,2021-22Q1_PC0215
Sandwell Metropolitan Borough Council,http://www.sandwell.gov.uk/info/200202/performance_and_spending/3233/government_procurement_cards,20-Apr-2021,Total Housing Revenue Account,AMZNMktplace,Total Housing Revenue Account,69.99,MISCELLANEOUS AND SPECIALTY RETAIL STORES,2021-22Q1_PC0216
Sandwell Metropolitan Borough Council,http://www.sandwell.gov.uk/info/200202/performance_and_spending/3233/government_procurement_cards,20-Apr-2021,Total Borough Economy,AMZNMKTPLACE AMAZON.CO,Total Adult Social Care,93.68,MISCELLANEOUS AND SPECIALTY RETAIL STORES,2021-22Q1_PC0217
Sandwell Metropolitan Borough Council,http://www.sandwell.gov.uk/info/200202/performance_and_spending/3233/government_procurement_cards,20-Apr-2021,Total Borough Economy,Flextronics,Neighbourhoods,307.91,COMPUTER MAIN./REPAIR/SERVICES NOT ELSEWHERE CLASS,2021-22Q1_PC0218
Sandwell Metropolitan Borough Council,http://www.sandwell.gov.uk/info/200202/performance_and_spending/3233/government_procurement_cards,20-Apr-2021,Total Borough Economy,RAWLINS PAINTS,Neighbourhoods,61.99,CHEMICALS/ALLIED PRODUCTS NOT ELSEWHERE CLASSIFIED,2021-22Q1_PC0219
Sandwell Metropolitan Borough Council,http://www.sandwell.gov.uk/info/200202/performance_and_spending/3233/government_procurement_cards,20-Apr-2021,Total Borough Economy,OFFICE DEPOT UK,Neighbourhoods,12.53,STATIONERY/OFFICE SUPPLIES/PRINTING & WRITING PAP.,2021-22Q1_PC0220
Sandwell Metropolitan Borough Council,http://www.sandwell.gov.uk/info/200202/performance_and_spending/3233/government_procurement_cards,20-Apr-2021,Total ASCHWB,TIMPSON LTD,Total Adult Social Care,30,MISCELLANEOUS AND SPECIALTY RETAIL STORES,2021-22Q1_PC0221
Sandwell Metropolitan Borough Council,http://www.sandwell.gov.uk/info/200202/performance_and_spending/3233/government_procurement_cards,20-Apr-2021,Total ASCHWB,HYGIENE DEPOT,Total Adult Social Care,270,"OFFICE, SCHOOL SUPPLY, AND STATIONERY STORES",2021-22Q1_PC0222
Sandwell Metropolitan Borough Council,http://www.sandwell.gov.uk/info/200202/performance_and_spending/3233/government_procurement_cards,20-Apr-2021,Total ASCHWB,thetrainline.com,Total Adult Social Care,99.51,PASSENGER RAILWAYS,2021-22Q1_PC0223
Sandwell Metropolitan Borough Council,http://www.sandwell.gov.uk/info/200202/performance_and_spending/3233/government_procurement_cards,20-Apr-2021,Housing & Assets Total,AMZNMktplace,Neighbourhoods,32.99,MISCELLANEOUS AND SPECIALTY RETAIL STORES,2021-22Q1_PC0224
Sandwell Metropolitan Borough Council,http://www.sandwell.gov.uk/info/200202/performance_and_spending/3233/government_procurement_cards,20-Apr-2021,Childrens Services,WWW.LGSS.CO.UK,Childrens Services,30,"COLLEGES, UNIV, PRO SCHOOLS, JUNIOR COLLEGES",2021-22Q1_PC0225
Sandwell Metropolitan Borough Council,http://www.sandwell.gov.uk/info/200202/performance_and_spending/3233/government_procurement_cards,20-Apr-2021,Childrens Services,WWW.WEIGHTMANS.COM,Childrens Services,334.8,"ATTORNEYS, LEGAL SERVICES",2021-22Q1_PC0226
Sandwell Metropolitan Borough Council,http://www.sandwell.gov.uk/info/200202/performance_and_spending/3233/government_procurement_cards,20-Apr-2021,Housing & Assets Total,TRAVELODGE,Neighbourhoods,33.9,TRAVELODGE,2021-22Q1_PC0227
Sandwell Metropolitan Borough Council,http://www.sandwell.gov.uk/info/200202/performance_and_spending/3233/government_procurement_cards,20-Apr-2021,Total Borough Economy,ARGOS LTD,Neighbourhoods,29.99,DISCOUNT STORES,2021-22Q1_PC0228
Sandwell Metropolitan Borough Council,http://www.sandwell.gov.uk/info/200202/performance_and_spending/3233/government_procurement_cards,21-Apr-2021,Total Housing Revenue Account,VERICON SYSTEMS LTD,Total Housing Revenue Account,780,COMPUTER SOFTWARE STORES,2021-22Q1_PC0229
Sandwell Metropolitan Borough Council,http://www.sandwell.gov.uk/info/200202/performance_and_spending/3233/government_procurement_cards,21-Apr-2021,Total Borough Economy,AMZNMKTPLACE AMAZON.CO,Neighbourhoods,27.08,MISCELLANEOUS AND SPECIALTY RETAIL STORES,2021-22Q1_PC0230
Sandwell Metropolitan Borough Council,http://www.sandwell.gov.uk/info/200202/performance_and_spending/3233/government_procurement_cards,21-Apr-2021,Total Borough Economy,TIMPSON LTD,Neighbourhoods,-14,MISCELLANEOUS AND SPECIALTY RETAIL STORES,2021-22Q1_PC0231
Sandwell Metropolitan Borough Council,http://www.sandwell.gov.uk/info/200202/performance_and_spending/3233/government_procurement_cards,21-Apr-2021,Total Borough Economy,WWW.BIRMINGHAMCHAMBER.,Neighbourhoods,180,PROFESSIONAL SERVICES-NOT ELSEWHERE CLASSIFIED,2021-22Q1_PC0232
Sandwell Metropolitan Borough Council,http://www.sandwell.gov.uk/info/200202/performance_and_spending/3233/government_procurement_cards,21-Apr-2021,Total Borough Economy,WWW.BIRMINGHAMCHAMBER.,Neighbourhoods,180,PROFESSIONAL SERVICES-NOT ELSEWHERE CLASSIFIED,2021-22Q1_PC0233
Sandwell Metropolitan Borough Council,http://www.sandwell.gov.uk/info/200202/performance_and_spending/3233/government_procurement_cards,21-Apr-2021,Regeneration & Growth,AMZNMKTPLACE AMAZON.CO,Regeneration And The Economy,38.99,MISCELLANEOUS AND SPECIALTY RETAIL STORES,2021-22Q1_PC0234
Sandwell Metropolitan Borough Council,http://www.sandwell.gov.uk/info/200202/performance_and_spending/3233/government_procurement_cards,21-Apr-2021,FINANCE (Inc SIU),ACCA,Assistant Chief Executive (Excl SIU),173,"ASSOCIATIONS-CIVIC, SOCIAL, AND FRATERNAL",2021-22Q1_PC0235
Sandwell Metropolitan Borough Council,http://www.sandwell.gov.uk/info/200202/performance_and_spending/3233/government_procurement_cards,21-Apr-2021,Total Borough Economy,WM MORRISONS STORE,Neighbourhoods,15,"GROCERY STORES, SUPERMARKETS",2021-22Q1_PC0236
Sandwell Metropolitan Borough Council,http://www.sandwell.gov.uk/info/200202/performance_and_spending/3233/government_procurement_cards,21-Apr-2021,Total Borough Economy,AMZNMKTPLACE AMAZON.CO,Neighbourhoods,15.98,MISCELLANEOUS AND SPECIALTY RETAIL STORES,2021-22Q1_PC0237
Sandwell Metropolitan Borough Council,http://www.sandwell.gov.uk/info/200202/performance_and_spending/3233/government_procurement_cards,21-Apr-2021,Total Borough Economy,AMZNMktplace,Neighbourhoods,93.4,MISCELLANEOUS AND SPECIALTY RETAIL STORES,2021-22Q1_PC0238
Sandwell Metropolitan Borough Council,http://www.sandwell.gov.uk/info/200202/performance_and_spending/3233/government_procurement_cards,21-Apr-2021,Total ASCHWB,AMZNMktplace,Total Adult Social Care,63.49,MISCELLANEOUS AND SPECIALTY RETAIL STORES,2021-22Q1_PC0239
Sandwell Metropolitan Borough Council,http://www.sandwell.gov.uk/info/200202/performance_and_spending/3233/government_procurement_cards,21-Apr-2021,Total ASCHWB,WWW.ELBECGARDENBUILD V,Total Adult Social Care,110,"BUILDING MATERIALS, LUMBER STORES",2021-22Q1_PC0240
Sandwell Metropolitan Borough Council,http://www.sandwell.gov.uk/info/200202/performance_and_spending/3233/government_procurement_cards,21-Apr-2021,Total ASCHWB,IKEA LTD SHOP ONLINE,Total Adult Social Care,129,"EQUIP, FURNITURE, HOME FURNSHNGS STRS (EXCPT APPL)",2021-22Q1_PC0241
Sandwell Metropolitan Borough Council,http://www.sandwell.gov.uk/info/200202/performance_and_spending/3233/government_procurement_cards,21-Apr-2021,Childrens Services,GWYNEDD SKIP & PLANT H,Childrens Services,235,"EQUIPMENT RENTAL&LEASING SVS, FURNTURE/TOOL RENTAL",2021-22Q1_PC0242
Sandwell Metropolitan Borough Council,http://www.sandwell.gov.uk/info/200202/performance_and_spending/3233/government_procurement_cards,21-Apr-2021,Childrens Services,GWYNEDD SKIP & PLANT H,Childrens Services,175,"EQUIPMENT RENTAL&LEASING SVS, FURNTURE/TOOL RENTAL",2021-22Q1_PC0243
Sandwell Metropolitan Borough Council,http://www.sandwell.gov.uk/info/200202/performance_and_spending/3233/government_procurement_cards,21-Apr-2021,Childrens Services,MYHERMES.CO.UK,Childrens Services,7.82,"FREIGHT CARRIER,TRUCKING-LCL/LNG DIST, MVG/STORAGE",2021-22Q1_PC0244
Sandwell Metropolitan Borough Council,http://www.sandwell.gov.uk/info/200202/performance_and_spending/3233/government_procurement_cards,21-Apr-2021,Housing & Assets Total,TRAVELODGE,Neighbourhoods,39,TRAVELODGE,2021-22Q1_PC0245
Sandwell Metropolitan Borough Council,http://www.sandwell.gov.uk/info/200202/performance_and_spending/3233/government_procurement_cards,21-Apr-2021,Director of Law & Governance,OFFICE DEPOT UK,Assistant Chief Executive (Excl SIU),55.44,STATIONERY/OFFICE SUPPLIES/PRINTING & WRITING PAP.,2021-22Q1_PC0246
Sandwell Metropolitan Borough Council,http://www.sandwell.gov.uk/info/200202/performance_and_spending/3233/government_procurement_cards,22-Apr-2021,Total Public Health,ADOBE STOCK,Public Health,23.99,COMPUTER SOFTWARE STORES,2021-22Q1_PC0247
Sandwell Metropolitan Borough Council,http://www.sandwell.gov.uk/info/200202/performance_and_spending/3233/government_procurement_cards,22-Apr-2021,Total Borough Economy,PAYPAL  EBAY UK,Neighbourhoods,24,DEPARTMENT STORES,2021-22Q1_PC0248
Sandwell Metropolitan Borough Council,http://www.sandwell.gov.uk/info/200202/performance_and_spending/3233/government_procurement_cards,22-Apr-2021,Total Borough Economy,PAYPAL  EBAY UK,Neighbourhoods,7.99,DEPARTMENT STORES,2021-22Q1_PC0249
Sandwell Metropolitan Borough Council,http://www.sandwell.gov.uk/info/200202/performance_and_spending/3233/government_procurement_cards,22-Apr-2021,Total Borough Economy,PAYPAL  BLAKE079583 EB,Neighbourhoods,77.2,PROFESSIONAL SERVICES-NOT ELSEWHERE CLASSIFIED,2021-22Q1_PC0250
Sandwell Metropolitan Borough Council,http://www.sandwell.gov.uk/info/200202/performance_and_spending/3233/government_procurement_cards,22-Apr-2021,Total Borough Economy,CANVA  03032-11807098,Neighbourhoods,10.99,PHOTOGRAPHIC STUDIOS,2021-22Q1_PC0251
Sandwell Metropolitan Borough Council,http://www.sandwell.gov.uk/info/200202/performance_and_spending/3233/government_procurement_cards,22-Apr-2021,Total Borough Economy,WWW.DZD.CO.UK,Neighbourhoods,119.27,"GIFT, CARD, NOVELTY AND SOUVENIR SHOPS",2021-22Q1_PC0252
Sandwell Metropolitan Borough Council,http://www.sandwell.gov.uk/info/200202/performance_and_spending/3233/government_procurement_cards,22-Apr-2021,Total Public Health,OFFICE DEPOT UK,Public Health,299.88,STATIONERY/OFFICE SUPPLIES/PRINTING & WRITING PAP.,2021-22Q1_PC0253
Sandwell Metropolitan Borough Council,http://www.sandwell.gov.uk/info/200202/performance_and_spending/3233/government_procurement_cards,22-Apr-2021,Total Public Health,Tameer Trading LTD,Public Health,178,"HEALTH PRACTITIONERS, MEDICAL SRVCS-NOT ELSEWHERE",2021-22Q1_PC0254
Sandwell Metropolitan Borough Council,http://www.sandwell.gov.uk/info/200202/performance_and_spending/3233/government_procurement_cards,22-Apr-2021,Total Public Health,AMZNMKTPLACE AMAZON.CO,Public Health,68.97,MISCELLANEOUS AND SPECIALTY RETAIL STORES,2021-22Q1_PC0255
Sandwell Metropolitan Borough Council,http://www.sandwell.gov.uk/info/200202/performance_and_spending/3233/government_procurement_cards,22-Apr-2021,Regeneration & Growth,Amazon.co.uk M44PP82R4,Regeneration And The Economy,135.98,DIRECT MARKETING-OTHER DIRECT MARKETERS/NOT ELSEW.,2021-22Q1_PC0256
Sandwell Metropolitan Borough Council,http://www.sandwell.gov.uk/info/200202/performance_and_spending/3233/government_procurement_cards,22-Apr-2021,Total Borough Economy,OFFICE DEPOT UK,Neighbourhoods,116.98,STATIONERY/OFFICE SUPPLIES/PRINTING & WRITING PAP.,2021-22Q1_PC0257
Sandwell Metropolitan Borough Council,http://www.sandwell.gov.uk/info/200202/performance_and_spending/3233/government_procurement_cards,22-Apr-2021,Total Borough Economy,AMZNMktplace,Neighbourhoods,27.18,MISCELLANEOUS AND SPECIALTY RETAIL STORES,2021-22Q1_PC0258
Sandwell Metropolitan Borough Council,http://www.sandwell.gov.uk/info/200202/performance_and_spending/3233/government_procurement_cards,22-Apr-2021,Total Borough Economy,AMZNMKTPLACE AMAZON.CO,Neighbourhoods,26.76,MISCELLANEOUS AND SPECIALTY RETAIL STORES,2021-22Q1_PC0259
Sandwell Metropolitan Borough Council,http://www.sandwell.gov.uk/info/200202/performance_and_spending/3233/government_procurement_cards,22-Apr-2021,Total Borough Economy,AMZNMktplace,Neighbourhoods,16.99,MISCELLANEOUS AND SPECIALTY RETAIL STORES,2021-22Q1_PC0260
Sandwell Metropolitan Borough Council,http://www.sandwell.gov.uk/info/200202/performance_and_spending/3233/government_procurement_cards,22-Apr-2021,Director of Law & Governance,OFFICE DEPOT UK,Assistant Chief Executive (Excl SIU),62.7,STATIONERY/OFFICE SUPPLIES/PRINTING & WRITING PAP.,2021-22Q1_PC0261
Sandwell Metropolitan Borough Council,http://www.sandwell.gov.uk/info/200202/performance_and_spending/3233/government_procurement_cards,22-Apr-2021,Director of Law & Governance,AMZNMktplace,Assistant Chief Executive (Excl SIU),14.12,MISCELLANEOUS AND SPECIALTY RETAIL STORES,2021-22Q1_PC0262
Sandwell Metropolitan Borough Council,http://www.sandwell.gov.uk/info/200202/performance_and_spending/3233/government_procurement_cards,22-Apr-2021,Total Borough Economy,OFFICE DEPOT UK,Regeneration And The Economy,202.42,STATIONERY/OFFICE SUPPLIES/PRINTING & WRITING PAP.,2021-22Q1_PC0263
Sandwell Metropolitan Borough Council,http://www.sandwell.gov.uk/info/200202/performance_and_spending/3233/government_procurement_cards,22-Apr-2021,Regeneration & Growth,OFFICE DEPOT UK,Regeneration And The Economy,73.06,STATIONERY/OFFICE SUPPLIES/PRINTING & WRITING PAP.,2021-22Q1_PC0264
Sandwell Metropolitan Borough Council,http://www.sandwell.gov.uk/info/200202/performance_and_spending/3233/government_procurement_cards,22-Apr-2021,Total ASCHWB,Amazon Prime,Total Adult Social Care,-7.99,DIRECT MARKETING-CONTINUITY/SUBSCRIPTION MERCHANTS,2021-22Q1_PC0265
Sandwell Metropolitan Borough Council,http://www.sandwell.gov.uk/info/200202/performance_and_spending/3233/government_procurement_cards,22-Apr-2021,Total ASCHWB,Amazon Prime M47KB1DL4,Total Adult Social Care,7.99,DIRECT MARKETING-CONTINUITY/SUBSCRIPTION MERCHANTS,2021-22Q1_PC0266
Sandwell Metropolitan Borough Council,http://www.sandwell.gov.uk/info/200202/performance_and_spending/3233/government_procurement_cards,22-Apr-2021,Total ASCHWB,OFFICE DEPOT UK,Total Adult Social Care,51.43,STATIONERY/OFFICE SUPPLIES/PRINTING & WRITING PAP.,2021-22Q1_PC0267
Sandwell Metropolitan Borough Council,http://www.sandwell.gov.uk/info/200202/performance_and_spending/3233/government_procurement_cards,22-Apr-2021,Childrens Services,ASDA SUPERSTORE,Childrens Services,20.4,"GROCERY STORES, SUPERMARKETS",2021-22Q1_PC0268
Sandwell Metropolitan Borough Council,http://www.sandwell.gov.uk/info/200202/performance_and_spending/3233/government_procurement_cards,22-Apr-2021,Childrens Services,BOOKWHEN- SOFTWARE SUB,Childrens Services,228,COMPUTER SOFTWARE STORES,2021-22Q1_PC0269
Sandwell Metropolitan Borough Council,http://www.sandwell.gov.uk/info/200202/performance_and_spending/3233/government_procurement_cards,22-Apr-2021,Individual School Budgets With Inclusion,AMZNMktplace,Individual School Budgets With Inclusion,40.95,MISCELLANEOUS AND SPECIALTY RETAIL STORES,2021-22Q1_PC0270
Sandwell Metropolitan Borough Council,http://www.sandwell.gov.uk/info/200202/performance_and_spending/3233/government_procurement_cards,22-Apr-2021,Childrens Services,AMZNMKTPLACE AMAZON.CO,Childrens Services,14.49,MISCELLANEOUS AND SPECIALTY RETAIL STORES,2021-22Q1_PC0271
Sandwell Metropolitan Borough Council,http://www.sandwell.gov.uk/info/200202/performance_and_spending/3233/government_procurement_cards,22-Apr-2021,Childrens Services,PACEY COMMERCIAL SERVI,Childrens Services,82.4,"ORGANIZATIONS, CHARITABLE AND SOCIAL SERVICES",2021-22Q1_PC0272
Sandwell Metropolitan Borough Council,http://www.sandwell.gov.uk/info/200202/performance_and_spending/3233/government_procurement_cards,22-Apr-2021,Housing & Assets Total,TRAVELODGE,Neighbourhoods,35.94,TRAVELODGE,2021-22Q1_PC0273
Sandwell Metropolitan Borough Council,http://www.sandwell.gov.uk/info/200202/performance_and_spending/3233/government_procurement_cards,22-Apr-2021,Housing & Assets Total,TRAVELODGE,Neighbourhoods,33.9,TRAVELODGE,2021-22Q1_PC0274
Sandwell Metropolitan Borough Council,http://www.sandwell.gov.uk/info/200202/performance_and_spending/3233/government_procurement_cards,22-Apr-2021,Director of Law & Governance,Amazon Prime M43H79DU4,Assistant Chief Executive (Excl SIU),7.99,DIRECT MARKETING-CONTINUITY/SUBSCRIPTION MERCHANTS,2021-22Q1_PC0275
Sandwell Metropolitan Borough Council,http://www.sandwell.gov.uk/info/200202/performance_and_spending/3233/government_procurement_cards,23-Apr-2021,Resources Capital,Amazon.co.uk M49RU6K14,#N/A,184.69,DIRECT MARKETING-OTHER DIRECT MARKETERS/NOT ELSEW.,2021-22Q1_PC0276
Sandwell Metropolitan Borough Council,http://www.sandwell.gov.uk/info/200202/performance_and_spending/3233/government_procurement_cards,23-Apr-2021,Resources Capital,Amazon.co.uk M44RR2KT4,#N/A,214.64,DIRECT MARKETING-OTHER DIRECT MARKETERS/NOT ELSEW.,2021-22Q1_PC0277
Sandwell Metropolitan Borough Council,http://www.sandwell.gov.uk/info/200202/performance_and_spending/3233/government_procurement_cards,23-Apr-2021,Resources Capital,Amazon.co.uk M44RI3KN4,#N/A,214.64,DIRECT MARKETING-OTHER DIRECT MARKETERS/NOT ELSEW.,2021-22Q1_PC0278
Sandwell Metropolitan Borough Council,http://www.sandwell.gov.uk/info/200202/performance_and_spending/3233/government_procurement_cards,23-Apr-2021,Total Borough Economy,WWW.UKPOS.COM,Neighbourhoods,238.25,"OFFICE, SCHOOL SUPPLY, AND STATIONERY STORES",2021-22Q1_PC0279
Sandwell Metropolitan Borough Council,http://www.sandwell.gov.uk/info/200202/performance_and_spending/3233/government_procurement_cards,23-Apr-2021,Total Borough Economy,AJ PRODUCTS UK LTD,Neighbourhoods,180,OFFICE AND COMMERCIAL FURNITURE,2021-22Q1_PC0280
Sandwell Metropolitan Borough Council,http://www.sandwell.gov.uk/info/200202/performance_and_spending/3233/government_procurement_cards,23-Apr-2021,Total Borough Economy,CALDMORE HARDWARE LIMI,Neighbourhoods,23.78,HARDWARE STORES,2021-22Q1_PC0281
Sandwell Metropolitan Borough Council,http://www.sandwell.gov.uk/info/200202/performance_and_spending/3233/government_procurement_cards,23-Apr-2021,Total Borough Economy,OSBORNE STATIONERS,Neighbourhoods,2.49,"OFFICE, SCHOOL SUPPLY, AND STATIONERY STORES",2021-22Q1_PC0282
Sandwell Metropolitan Borough Council,http://www.sandwell.gov.uk/info/200202/performance_and_spending/3233/government_procurement_cards,23-Apr-2021,Total Public Health,AMZNMktplace,Public Health,17.87,MISCELLANEOUS AND SPECIALTY RETAIL STORES,2021-22Q1_PC0283
Sandwell Metropolitan Borough Council,http://www.sandwell.gov.uk/info/200202/performance_and_spending/3233/government_procurement_cards,23-Apr-2021,Regeneration & Growth,AMZNMKTPLACE AMAZON.CO,Regeneration And The Economy,26.24,MISCELLANEOUS AND SPECIALTY RETAIL STORES,2021-22Q1_PC0284
Sandwell Metropolitan Borough Council,http://www.sandwell.gov.uk/info/200202/performance_and_spending/3233/government_procurement_cards,23-Apr-2021,FINANCE (Inc SIU),Amazon.co.uk M45HU8K44,Assistant Chief Executive (Excl SIU),57.55,DIRECT MARKETING-OTHER DIRECT MARKETERS/NOT ELSEW.,2021-22Q1_PC0285
Sandwell Metropolitan Borough Council,http://www.sandwell.gov.uk/info/200202/performance_and_spending/3233/government_procurement_cards,23-Apr-2021,FINANCE (Inc SIU),POSIES,Assistant Chief Executive (Excl SIU),52,FLORISTS,2021-22Q1_PC0286
Sandwell Metropolitan Borough Council,http://www.sandwell.gov.uk/info/200202/performance_and_spending/3233/government_procurement_cards,23-Apr-2021,Total Borough Economy,AMZNMKTPLACE AMAZON.CO,Neighbourhoods,7.99,MISCELLANEOUS AND SPECIALTY RETAIL STORES,2021-22Q1_PC0287
Sandwell Metropolitan Borough Council,http://www.sandwell.gov.uk/info/200202/performance_and_spending/3233/government_procurement_cards,23-Apr-2021,Total Borough Economy,DARLASTON BUILDERS MER,Neighbourhoods,163.21,"BUILDING MATERIALS, LUMBER STORES",2021-22Q1_PC0288
Sandwell Metropolitan Borough Council,http://www.sandwell.gov.uk/info/200202/performance_and_spending/3233/government_procurement_cards,23-Apr-2021,FINANCE (Inc SIU),AMZNMKTPLACE AMAZON.CO,Total Adult Social Care,19.98,MISCELLANEOUS AND SPECIALTY RETAIL STORES,2021-22Q1_PC0289
Sandwell Metropolitan Borough Council,http://www.sandwell.gov.uk/info/200202/performance_and_spending/3233/government_procurement_cards,23-Apr-2021,Total ASCHWB,Amazon.co.uk M46RV8KS4,Total Adult Social Care,21,DIRECT MARKETING-OTHER DIRECT MARKETERS/NOT ELSEW.,2021-22Q1_PC0290
Sandwell Metropolitan Borough Council,http://www.sandwell.gov.uk/info/200202/performance_and_spending/3233/government_procurement_cards,23-Apr-2021,Total ASCHWB,OFFICE DEPOT UK,Total Adult Social Care,66.64,STATIONERY/OFFICE SUPPLIES/PRINTING & WRITING PAP.,2021-22Q1_PC0291
Sandwell Metropolitan Borough Council,http://www.sandwell.gov.uk/info/200202/performance_and_spending/3233/government_procurement_cards,23-Apr-2021,Childrens Services,MYHERMES.CO.UK,Childrens Services,7.82,"FREIGHT CARRIER,TRUCKING-LCL/LNG DIST, MVG/STORAGE",2021-22Q1_PC0292
Sandwell Metropolitan Borough Council,http://www.sandwell.gov.uk/info/200202/performance_and_spending/3233/government_procurement_cards,23-Apr-2021,Housing & Assets Total,PREMIER INN,Neighbourhoods,35,PREMIER INN,2021-22Q1_PC0293
Sandwell Metropolitan Borough Council,http://www.sandwell.gov.uk/info/200202/performance_and_spending/3233/government_procurement_cards,23-Apr-2021,Director of Law & Governance,OFFICE DEPOT UK,Assistant Chief Executive (Excl SIU),6.9,STATIONERY/OFFICE SUPPLIES/PRINTING & WRITING PAP.,2021-22Q1_PC0294
Sandwell Metropolitan Borough Council,http://www.sandwell.gov.uk/info/200202/performance_and_spending/3233/government_procurement_cards,26-Apr-2021,Total Borough Economy,AMZNMktplace,Neighbourhoods,11.15,MISCELLANEOUS AND SPECIALTY RETAIL STORES,2021-22Q1_PC0295
Sandwell Metropolitan Borough Council,http://www.sandwell.gov.uk/info/200202/performance_and_spending/3233/government_procurement_cards,26-Apr-2021,Total Public Health,AMZNMKTPLACE AMAZON.CO,Public Health,72.68,MISCELLANEOUS AND SPECIALTY RETAIL STORES,2021-22Q1_PC0296
Sandwell Metropolitan Borough Council,http://www.sandwell.gov.uk/info/200202/performance_and_spending/3233/government_procurement_cards,26-Apr-2021,Regeneration & Growth,AMZNMktplace,Regeneration And The Economy,8.99,MISCELLANEOUS AND SPECIALTY RETAIL STORES,2021-22Q1_PC0297
Sandwell Metropolitan Borough Council,http://www.sandwell.gov.uk/info/200202/performance_and_spending/3233/government_procurement_cards,26-Apr-2021,Regeneration & Growth,AMZNMKTPLACE AMAZON.CO,Regeneration And The Economy,8.99,MISCELLANEOUS AND SPECIALTY RETAIL STORES,2021-22Q1_PC0298
Sandwell Metropolitan Borough Council,http://www.sandwell.gov.uk/info/200202/performance_and_spending/3233/government_procurement_cards,26-Apr-2021,Regeneration & Growth,AMZNMKTPLACE AMAZON.CO,Regeneration And The Economy,21.29,MISCELLANEOUS AND SPECIALTY RETAIL STORES,2021-22Q1_PC0299
Sandwell Metropolitan Borough Council,http://www.sandwell.gov.uk/info/200202/performance_and_spending/3233/government_procurement_cards,26-Apr-2021,Regeneration & Growth,AMZNMktplace,Regeneration And The Economy,29.99,MISCELLANEOUS AND SPECIALTY RETAIL STORES,2021-22Q1_PC0300
Sandwell Metropolitan Borough Council,http://www.sandwell.gov.uk/info/200202/performance_and_spending/3233/government_procurement_cards,26-Apr-2021,FINANCE (Inc SIU),AMZNMktplace,Assistant Chief Executive (Excl SIU),17.49,MISCELLANEOUS AND SPECIALTY RETAIL STORES,2021-22Q1_PC0301
Sandwell Metropolitan Borough Council,http://www.sandwell.gov.uk/info/200202/performance_and_spending/3233/government_procurement_cards,26-Apr-2021,FINANCE (Inc SIU),OFFICE DEPOT UK,Assistant Chief Executive (Excl SIU),3.31,STATIONERY/OFFICE SUPPLIES/PRINTING & WRITING PAP.,2021-22Q1_PC0302
Sandwell Metropolitan Borough Council,http://www.sandwell.gov.uk/info/200202/performance_and_spending/3233/government_procurement_cards,26-Apr-2021,Total Borough Economy,SCREWFIX DIR LTD,Neighbourhoods,-49.99,"BUILDING MATERIALS, LUMBER STORES",2021-22Q1_PC0303
Sandwell Metropolitan Borough Council,http://www.sandwell.gov.uk/info/200202/performance_and_spending/3233/government_procurement_cards,26-Apr-2021,Total Borough Economy,SCREWFIX DIRECT,Neighbourhoods,139.99,"BUILDING MATERIALS, LUMBER STORES",2021-22Q1_PC0304
Sandwell Metropolitan Borough Council,http://www.sandwell.gov.uk/info/200202/performance_and_spending/3233/government_procurement_cards,26-Apr-2021,Total Borough Economy,HTTP://WWW.BEES-ONLINE,Neighbourhoods,23.04,PET SHOPS - PET FOODS AND SUPPLIES,2021-22Q1_PC0305
Sandwell Metropolitan Borough Council,http://www.sandwell.gov.uk/info/200202/performance_and_spending/3233/government_procurement_cards,26-Apr-2021,Total Borough Economy,SCREWFIX DIR LTD,Neighbourhoods,49.99,"BUILDING MATERIALS, LUMBER STORES",2021-22Q1_PC0306
Sandwell Metropolitan Borough Council,http://www.sandwell.gov.uk/info/200202/performance_and_spending/3233/government_procurement_cards,26-Apr-2021,Total Borough Economy,SCREWFIX DIR LTD,Neighbourhoods,6.99,"BUILDING MATERIALS, LUMBER STORES",2021-22Q1_PC0307
Sandwell Metropolitan Borough Council,http://www.sandwell.gov.uk/info/200202/performance_and_spending/3233/government_procurement_cards,26-Apr-2021,Director of Law & Governance,Amazon Prime M47VP27X4,Assistant Chief Executive (Excl SIU),7.99,DIRECT MARKETING-CONTINUITY/SUBSCRIPTION MERCHANTS,2021-22Q1_PC0308
Sandwell Metropolitan Borough Council,http://www.sandwell.gov.uk/info/200202/performance_and_spending/3233/government_procurement_cards,26-Apr-2021,Regeneration & Growth,OFFICE DEPOT UK,Regeneration And The Economy,29.7,STATIONERY/OFFICE SUPPLIES/PRINTING & WRITING PAP.,2021-22Q1_PC0309
Sandwell Metropolitan Borough Council,http://www.sandwell.gov.uk/info/200202/performance_and_spending/3233/government_procurement_cards,26-Apr-2021,FINANCE (Inc SIU),OFFICE DEPOT UK,Total Adult Social Care,25.42,STATIONERY/OFFICE SUPPLIES/PRINTING & WRITING PAP.,2021-22Q1_PC0310
Sandwell Metropolitan Borough Council,http://www.sandwell.gov.uk/info/200202/performance_and_spending/3233/government_procurement_cards,26-Apr-2021,Total ASCHWB,OFFICE DEPOT UK,Total Adult Social Care,49.46,STATIONERY/OFFICE SUPPLIES/PRINTING & WRITING PAP.,2021-22Q1_PC0311
Sandwell Metropolitan Borough Council,http://www.sandwell.gov.uk/info/200202/performance_and_spending/3233/government_procurement_cards,26-Apr-2021,Total ASCHWB,AMZNMKTPLACE AMAZON.CO,Total Adult Social Care,72.47,MISCELLANEOUS AND SPECIALTY RETAIL STORES,2021-22Q1_PC0312
Sandwell Metropolitan Borough Council,http://www.sandwell.gov.uk/info/200202/performance_and_spending/3233/government_procurement_cards,26-Apr-2021,Total ASCHWB,WWW.ADASS.ORG.UK,Total Adult Social Care,240,"ORGANIZATIONS, CHARITABLE AND SOCIAL SERVICES",2021-22Q1_PC0313
Sandwell Metropolitan Borough Council,http://www.sandwell.gov.uk/info/200202/performance_and_spending/3233/government_procurement_cards,26-Apr-2021,Total ASCHWB,WWW.ADASS.ORG.UK,Total Adult Social Care,240,"ORGANIZATIONS, CHARITABLE AND SOCIAL SERVICES",2021-22Q1_PC0314
Sandwell Metropolitan Borough Council,http://www.sandwell.gov.uk/info/200202/performance_and_spending/3233/government_procurement_cards,26-Apr-2021,Housing & Assets Total,AMZNMKTPLACE AMAZON.CO,Neighbourhoods,41.97,MISCELLANEOUS AND SPECIALTY RETAIL STORES,2021-22Q1_PC0315
Sandwell Metropolitan Borough Council,http://www.sandwell.gov.uk/info/200202/performance_and_spending/3233/government_procurement_cards,26-Apr-2021,Childrens Services,ANIMOTO INC,Childrens Services,192,DIRECT MARKETING-CONTINUITY/SUBSCRIPTION MERCHANTS,2021-22Q1_PC0316
Sandwell Metropolitan Borough Council,http://www.sandwell.gov.uk/info/200202/performance_and_spending/3233/government_procurement_cards,26-Apr-2021,Childrens Services,CARTRIDGEPEOPLE.COM,Childrens Services,42.49,STATIONERY/OFFICE SUPPLIES/PRINTING & WRITING PAP.,2021-22Q1_PC0317
Sandwell Metropolitan Borough Council,http://www.sandwell.gov.uk/info/200202/performance_and_spending/3233/government_procurement_cards,26-Apr-2021,Childrens Services,POST OFFICE COUNTER,Childrens Services,2.95,POSTAL SERVICES-GOVERNMENT ONLY,2021-22Q1_PC0318
Sandwell Metropolitan Borough Council,http://www.sandwell.gov.uk/info/200202/performance_and_spending/3233/government_procurement_cards,26-Apr-2021,Childrens Services,AMZNMKTPLACE AMAZON.CO,Childrens Services,-15.3,MISCELLANEOUS AND SPECIALTY RETAIL STORES,2021-22Q1_PC0319
Sandwell Metropolitan Borough Council,http://www.sandwell.gov.uk/info/200202/performance_and_spending/3233/government_procurement_cards,26-Apr-2021,FINANCE (Inc SIU),TIMPSON LTD,Assistant Chief Executive (Excl SIU),18,MISCELLANEOUS AND SPECIALTY RETAIL STORES,2021-22Q1_PC0320
Sandwell Metropolitan Borough Council,http://www.sandwell.gov.uk/info/200202/performance_and_spending/3233/government_procurement_cards,26-Apr-2021,Corporate Management,FS  JotForm,Corporate Management,16.98,DIGITAL GOODS SOFTWARE APPLICATIONS,2021-22Q1_PC0321
Sandwell Metropolitan Borough Council,http://www.sandwell.gov.uk/info/200202/performance_and_spending/3233/government_procurement_cards,27-Apr-2021,Regeneration & Growth,AMZNMKTPLACE AMAZON.CO,Regeneration And The Economy,14.95,MISCELLANEOUS AND SPECIALTY RETAIL STORES,2021-22Q1_PC0322
Sandwell Metropolitan Borough Council,http://www.sandwell.gov.uk/info/200202/performance_and_spending/3233/government_procurement_cards,27-Apr-2021,Regeneration & Growth,AMZNMKTPLACE AMAZON.CO,Regeneration And The Economy,14.95,MISCELLANEOUS AND SPECIALTY RETAIL STORES,2021-22Q1_PC0323
Sandwell Metropolitan Borough Council,http://www.sandwell.gov.uk/info/200202/performance_and_spending/3233/government_procurement_cards,27-Apr-2021,Total Borough Economy,CARRIER BAG SHOP,Neighbourhoods,256.98,BUSINESS SERVICES-NOT ELSEWHERE CLASSIFIED,2021-22Q1_PC0324
Sandwell Metropolitan Borough Council,http://www.sandwell.gov.uk/info/200202/performance_and_spending/3233/government_procurement_cards,27-Apr-2021,Total Borough Economy,Amazon Prime M45MT0RG4,Neighbourhoods,7.99,DIRECT MARKETING-CONTINUITY/SUBSCRIPTION MERCHANTS,2021-22Q1_PC0325
Sandwell Metropolitan Borough Council,http://www.sandwell.gov.uk/info/200202/performance_and_spending/3233/government_procurement_cards,27-Apr-2021,Total Borough Economy,AMZNMktplace,Total Adult Social Care,121.87,MISCELLANEOUS AND SPECIALTY RETAIL STORES,2021-22Q1_PC0326
Sandwell Metropolitan Borough Council,http://www.sandwell.gov.uk/info/200202/performance_and_spending/3233/government_procurement_cards,27-Apr-2021,Total Borough Economy,AMZNMktplace,Total Adult Social Care,46.55,MISCELLANEOUS AND SPECIALTY RETAIL STORES,2021-22Q1_PC0327
Sandwell Metropolitan Borough Council,http://www.sandwell.gov.uk/info/200202/performance_and_spending/3233/government_procurement_cards,27-Apr-2021,Total Borough Economy,AMZNMktplace,Total Adult Social Care,60.13,MISCELLANEOUS AND SPECIALTY RETAIL STORES,2021-22Q1_PC0328
Sandwell Metropolitan Borough Council,http://www.sandwell.gov.uk/info/200202/performance_and_spending/3233/government_procurement_cards,27-Apr-2021,Total ASCHWB,ARGOS LTD,Total Adult Social Care,227.95,DISCOUNT STORES,2021-22Q1_PC0329
Sandwell Metropolitan Borough Council,http://www.sandwell.gov.uk/info/200202/performance_and_spending/3233/government_procurement_cards,27-Apr-2021,Total ASCHWB,ARGOS LTD,Total Adult Social Care,247.95,DISCOUNT STORES,2021-22Q1_PC0330
Sandwell Metropolitan Borough Council,http://www.sandwell.gov.uk/info/200202/performance_and_spending/3233/government_procurement_cards,27-Apr-2021,Total ASCHWB,ARGOS LTD,Total Adult Social Care,235.91,DISCOUNT STORES,2021-22Q1_PC0331
Sandwell Metropolitan Borough Council,http://www.sandwell.gov.uk/info/200202/performance_and_spending/3233/government_procurement_cards,27-Apr-2021,Total ASCHWB,ARGOS LTD,Total Adult Social Care,221.91,DISCOUNT STORES,2021-22Q1_PC0332
Sandwell Metropolitan Borough Council,http://www.sandwell.gov.uk/info/200202/performance_and_spending/3233/government_procurement_cards,27-Apr-2021,Total ASCHWB,ARGOS LTD,Total Adult Social Care,113.91,DISCOUNT STORES,2021-22Q1_PC0333
Sandwell Metropolitan Borough Council,http://www.sandwell.gov.uk/info/200202/performance_and_spending/3233/government_procurement_cards,27-Apr-2021,Total ASCHWB,WWW.ADASS.ORG.UK,Total Adult Social Care,240,"ORGANIZATIONS, CHARITABLE AND SOCIAL SERVICES",2021-22Q1_PC0334
Sandwell Metropolitan Borough Council,http://www.sandwell.gov.uk/info/200202/performance_and_spending/3233/government_procurement_cards,27-Apr-2021,Individual School Budgets With Inclusion,SCREWFIX DIR LTD,Individual School Budgets With Inclusion,-77.99,"BUILDING MATERIALS, LUMBER STORES",2021-22Q1_PC0335
Sandwell Metropolitan Borough Council,http://www.sandwell.gov.uk/info/200202/performance_and_spending/3233/government_procurement_cards,27-Apr-2021,Individual School Budgets With Inclusion,AMZNMktplace,Individual School Budgets With Inclusion,59.39,MISCELLANEOUS AND SPECIALTY RETAIL STORES,2021-22Q1_PC0336
Sandwell Metropolitan Borough Council,http://www.sandwell.gov.uk/info/200202/performance_and_spending/3233/government_procurement_cards,27-Apr-2021,Childrens Services,AMZNMktplace,Childrens Services,20.12,MISCELLANEOUS AND SPECIALTY RETAIL STORES,2021-22Q1_PC0337
Sandwell Metropolitan Borough Council,http://www.sandwell.gov.uk/info/200202/performance_and_spending/3233/government_procurement_cards,27-Apr-2021,Childrens Services,AMZNMktplace,Childrens Services,16.99,MISCELLANEOUS AND SPECIALTY RETAIL STORES,2021-22Q1_PC0338
Sandwell Metropolitan Borough Council,http://www.sandwell.gov.uk/info/200202/performance_and_spending/3233/government_procurement_cards,28-Apr-2021,Total Housing Revenue Account,SCREWFIX DIRECT,Total Housing Revenue Account,93.97,"BUILDING MATERIALS, LUMBER STORES",2021-22Q1_PC0339
Sandwell Metropolitan Borough Council,http://www.sandwell.gov.uk/info/200202/performance_and_spending/3233/government_procurement_cards,28-Apr-2021,Total Borough Economy,AMZNMktplace,Neighbourhoods,31.2,MISCELLANEOUS AND SPECIALTY RETAIL STORES,2021-22Q1_PC0340
Sandwell Metropolitan Borough Council,http://www.sandwell.gov.uk/info/200202/performance_and_spending/3233/government_procurement_cards,28-Apr-2021,Total Borough Economy,AMZNMKTPLACE AMAZON.CO,Neighbourhoods,9.87,MISCELLANEOUS AND SPECIALTY RETAIL STORES,2021-22Q1_PC0341
Sandwell Metropolitan Borough Council,http://www.sandwell.gov.uk/info/200202/performance_and_spending/3233/government_procurement_cards,28-Apr-2021,Housing & Assets Total,TESCO STORES 5503,Neighbourhoods,15.84,"GROCERY STORES, SUPERMARKETS",2021-22Q1_PC0342
Sandwell Metropolitan Borough Council,http://www.sandwell.gov.uk/info/200202/performance_and_spending/3233/government_procurement_cards,28-Apr-2021,Housing & Assets Total,TESCO STORES 5503,Neighbourhoods,6,"GROCERY STORES, SUPERMARKETS",2021-22Q1_PC0343
Sandwell Metropolitan Borough Council,http://www.sandwell.gov.uk/info/200202/performance_and_spending/3233/government_procurement_cards,28-Apr-2021,Total Business Strategy & Change,WWW.PACKAGING2BUY.CO.U,Assistant Chief Executive (Excl SIU),174,"OFFICE, SCHOOL SUPPLY, AND STATIONERY STORES",2021-22Q1_PC0344
Sandwell Metropolitan Borough Council,http://www.sandwell.gov.uk/info/200202/performance_and_spending/3233/government_procurement_cards,28-Apr-2021,Regeneration & Growth,AMZNMKTPLACE AMAZON.CO,Regeneration And The Economy,19.89,MISCELLANEOUS AND SPECIALTY RETAIL STORES,2021-22Q1_PC0345
Sandwell Metropolitan Borough Council,http://www.sandwell.gov.uk/info/200202/performance_and_spending/3233/government_procurement_cards,28-Apr-2021,FINANCE (Inc SIU),OFFICE DEPOT UK,Assistant Chief Executive (Excl SIU),4.61,STATIONERY/OFFICE SUPPLIES/PRINTING & WRITING PAP.,2021-22Q1_PC0346
Sandwell Metropolitan Borough Council,http://www.sandwell.gov.uk/info/200202/performance_and_spending/3233/government_procurement_cards,28-Apr-2021,Total Borough Economy,KITE ON LINE TERMINAL,Neighbourhoods,18.61,INDUSTRIAL SUPPLIES NOT ELSEWHERE CLASSIFIED,2021-22Q1_PC0347
Sandwell Metropolitan Borough Council,http://www.sandwell.gov.uk/info/200202/performance_and_spending/3233/government_procurement_cards,28-Apr-2021,Total Borough Economy,SCREWFIX DIRECT,Neighbourhoods,161.4,"BUILDING MATERIALS, LUMBER STORES",2021-22Q1_PC0348
Sandwell Metropolitan Borough Council,http://www.sandwell.gov.uk/info/200202/performance_and_spending/3233/government_procurement_cards,28-Apr-2021,Regeneration & Growth,NBS LTD (T/A NBS),Regeneration And The Economy,20550,COMPUTER SOFTWARE STORES,2021-22Q1_PC0349
Sandwell Metropolitan Borough Council,http://www.sandwell.gov.uk/info/200202/performance_and_spending/3233/government_procurement_cards,28-Apr-2021,Total ASCHWB,Amazon.co.uk M48RJ1Y64,Total Adult Social Care,48.93,DIRECT MARKETING-OTHER DIRECT MARKETERS/NOT ELSEW.,2021-22Q1_PC0350
Sandwell Metropolitan Borough Council,http://www.sandwell.gov.uk/info/200202/performance_and_spending/3233/government_procurement_cards,28-Apr-2021,Total ASCHWB,AMZNMKTPLACE AMAZON.CO,Total Adult Social Care,10,MISCELLANEOUS AND SPECIALTY RETAIL STORES,2021-22Q1_PC0351
Sandwell Metropolitan Borough Council,http://www.sandwell.gov.uk/info/200202/performance_and_spending/3233/government_procurement_cards,28-Apr-2021,Total ASCHWB,ALDI 103 772,Total Adult Social Care,4.49,"GROCERY STORES, SUPERMARKETS",2021-22Q1_PC0352
Sandwell Metropolitan Borough Council,http://www.sandwell.gov.uk/info/200202/performance_and_spending/3233/government_procurement_cards,28-Apr-2021,Total ASCHWB,AMZNMKTPLACE AMAZON.CO,Total Adult Social Care,63.83,MISCELLANEOUS AND SPECIALTY RETAIL STORES,2021-22Q1_PC0353
Sandwell Metropolitan Borough Council,http://www.sandwell.gov.uk/info/200202/performance_and_spending/3233/government_procurement_cards,28-Apr-2021,Total ASCHWB,AMZNMktplace,Total Adult Social Care,183.04,MISCELLANEOUS AND SPECIALTY RETAIL STORES,2021-22Q1_PC0354
Sandwell Metropolitan Borough Council,http://www.sandwell.gov.uk/info/200202/performance_and_spending/3233/government_procurement_cards,28-Apr-2021,Total ASCHWB,BOING RAPID SECURE LTD,Total Adult Social Care,216,BUSINESS SERVICES-NOT ELSEWHERE CLASSIFIED,2021-22Q1_PC0355
Sandwell Metropolitan Borough Council,http://www.sandwell.gov.uk/info/200202/performance_and_spending/3233/government_procurement_cards,28-Apr-2021,Total ASCHWB,SCREWFIX DIRECT,Total Adult Social Care,64.8,"BUILDING MATERIALS, LUMBER STORES",2021-22Q1_PC0356
Sandwell Metropolitan Borough Council,http://www.sandwell.gov.uk/info/200202/performance_and_spending/3233/government_procurement_cards,28-Apr-2021,Total ASCHWB,Amazon.co.uk MK7T22C84,Total Adult Social Care,11.81,DIRECT MARKETING-OTHER DIRECT MARKETERS/NOT ELSEW.,2021-22Q1_PC0357
Sandwell Metropolitan Borough Council,http://www.sandwell.gov.uk/info/200202/performance_and_spending/3233/government_procurement_cards,28-Apr-2021,Total ASCHWB,Amazon.co.uk MK2SX4CG4,Total Adult Social Care,117.23,DIRECT MARKETING-OTHER DIRECT MARKETERS/NOT ELSEW.,2021-22Q1_PC0358
Sandwell Metropolitan Borough Council,http://www.sandwell.gov.uk/info/200202/performance_and_spending/3233/government_procurement_cards,28-Apr-2021,Total ASCHWB,Amazon.co.uk MK42W3CO4,Total Adult Social Care,59.04,DIRECT MARKETING-OTHER DIRECT MARKETERS/NOT ELSEW.,2021-22Q1_PC0359
Sandwell Metropolitan Borough Council,http://www.sandwell.gov.uk/info/200202/performance_and_spending/3233/government_procurement_cards,28-Apr-2021,Childrens Services,PEIRIANWAITH EIFIONYDD,Childrens Services,83.8,MISC/AUTO/AIRCRAFT/FARM EQUIP NOT ELSEWHERE CLASS,2021-22Q1_PC0360
Sandwell Metropolitan Borough Council,http://www.sandwell.gov.uk/info/200202/performance_and_spending/3233/government_procurement_cards,28-Apr-2021,Childrens Services,PEIRIANWAITH EIFIONYDD,Childrens Services,122.51,MISC/AUTO/AIRCRAFT/FARM EQUIP NOT ELSEWHERE CLASS,2021-22Q1_PC0361
Sandwell Metropolitan Borough Council,http://www.sandwell.gov.uk/info/200202/performance_and_spending/3233/government_procurement_cards,28-Apr-2021,Individual School Budgets With Inclusion,AMZNMktplace,Individual School Budgets With Inclusion,119.95,MISCELLANEOUS AND SPECIALTY RETAIL STORES,2021-22Q1_PC0362
Sandwell Metropolitan Borough Council,http://www.sandwell.gov.uk/info/200202/performance_and_spending/3233/government_procurement_cards,28-Apr-2021,Individual School Budgets With Inclusion,AMZNMktplace,Individual School Budgets With Inclusion,18.97,MISCELLANEOUS AND SPECIALTY RETAIL STORES,2021-22Q1_PC0363
Sandwell Metropolitan Borough Council,http://www.sandwell.gov.uk/info/200202/performance_and_spending/3233/government_procurement_cards,28-Apr-2021,Individual School Budgets With Inclusion,AMZNMktplace,Individual School Budgets With Inclusion,21.99,MISCELLANEOUS AND SPECIALTY RETAIL STORES,2021-22Q1_PC0364
Sandwell Metropolitan Borough Council,http://www.sandwell.gov.uk/info/200202/performance_and_spending/3233/government_procurement_cards,28-Apr-2021,Individual School Budgets With Inclusion,AMZNMktplace,Individual School Budgets With Inclusion,71.37,MISCELLANEOUS AND SPECIALTY RETAIL STORES,2021-22Q1_PC0365
Sandwell Metropolitan Borough Council,http://www.sandwell.gov.uk/info/200202/performance_and_spending/3233/government_procurement_cards,28-Apr-2021,Childrens Services,Amazon.co.uk M45L60YL4,Childrens Services,24.98,DIRECT MARKETING-OTHER DIRECT MARKETERS/NOT ELSEW.,2021-22Q1_PC0366
Sandwell Metropolitan Borough Council,http://www.sandwell.gov.uk/info/200202/performance_and_spending/3233/government_procurement_cards,29-Apr-2021,Housing Revenue Account Capital,SOUTH STAFFS WATER PLC,#N/A,154.21,"UTLTS-ELCTRC, GAS, HEATING OIL, SANITARY, WATER",2021-22Q1_PC0367
Sandwell Metropolitan Borough Council,http://www.sandwell.gov.uk/info/200202/performance_and_spending/3233/government_procurement_cards,29-Apr-2021,Total Housing Revenue Account,HARDY SIGNS LTD,Total Housing Revenue Account,441.6,HARDWARE EQUIPMENT AND SUPPLIES,2021-22Q1_PC0368
Sandwell Metropolitan Borough Council,http://www.sandwell.gov.uk/info/200202/performance_and_spending/3233/government_procurement_cards,29-Apr-2021,Total Housing Revenue Account,HARDY SIGNS LTD,Total Housing Revenue Account,1247.99,HARDWARE EQUIPMENT AND SUPPLIES,2021-22Q1_PC0369
Sandwell Metropolitan Borough Council,http://www.sandwell.gov.uk/info/200202/performance_and_spending/3233/government_procurement_cards,29-Apr-2021,Total Housing Revenue Account,EDMUNDSON ELECTRICAL,Total Housing Revenue Account,1171.2,ELECTRICAL PARTS AND EQUIPMENT,2021-22Q1_PC0370
Sandwell Metropolitan Borough Council,http://www.sandwell.gov.uk/info/200202/performance_and_spending/3233/government_procurement_cards,29-Apr-2021,Total Housing Revenue Account,POST OFFICE COUNTER,Total Housing Revenue Account,246.5,POSTAL SERVICES-GOVERNMENT ONLY,2021-22Q1_PC0371
Sandwell Metropolitan Borough Council,http://www.sandwell.gov.uk/info/200202/performance_and_spending/3233/government_procurement_cards,29-Apr-2021,Total Housing Revenue Account,AMZNMktplace,Total Housing Revenue Account,20.98,MISCELLANEOUS AND SPECIALTY RETAIL STORES,2021-22Q1_PC0372
Sandwell Metropolitan Borough Council,http://www.sandwell.gov.uk/info/200202/performance_and_spending/3233/government_procurement_cards,29-Apr-2021,Total Borough Economy,WWW.FTA.CO.UK,Neighbourhoods,432.6,RAILROADS - FREIGHT,2021-22Q1_PC0373
Sandwell Metropolitan Borough Council,http://www.sandwell.gov.uk/info/200202/performance_and_spending/3233/government_procurement_cards,29-Apr-2021,Total Borough Economy,AMZNMKTPLACE AMAZON.CO,Neighbourhoods,118.88,MISCELLANEOUS AND SPECIALTY RETAIL STORES,2021-22Q1_PC0374
Sandwell Metropolitan Borough Council,http://www.sandwell.gov.uk/info/200202/performance_and_spending/3233/government_procurement_cards,29-Apr-2021,Total Borough Economy,GEAR4MUSIC,Neighbourhoods,204.98,"MUSIC STORES-INSTRUMENTS, PIANOS, SHEET MUSIC",2021-22Q1_PC0375
Sandwell Metropolitan Borough Council,http://www.sandwell.gov.uk/info/200202/performance_and_spending/3233/government_procurement_cards,29-Apr-2021,Housing & Assets Total,SP   TOUGH ENOUGH TO C,Neighbourhoods,2.5,COMPUTER SOFTWARE STORES,2021-22Q1_PC0376
Sandwell Metropolitan Borough Council,http://www.sandwell.gov.uk/info/200202/performance_and_spending/3233/government_procurement_cards,29-Apr-2021,Total Borough Economy,The Plastic Box Compan,Neighbourhoods,25.74,INDUSTRIAL SUPPLIES NOT ELSEWHERE CLASSIFIED,2021-22Q1_PC0377
Sandwell Metropolitan Borough Council,http://www.sandwell.gov.uk/info/200202/performance_and_spending/3233/government_procurement_cards,29-Apr-2021,Total Borough Economy,ASDA SUPERSTORE,Neighbourhoods,14.39,"GROCERY STORES, SUPERMARKETS",2021-22Q1_PC0378
Sandwell Metropolitan Borough Council,http://www.sandwell.gov.uk/info/200202/performance_and_spending/3233/government_procurement_cards,29-Apr-2021,Director of Law & Governance,AMZNMktplace,Assistant Chief Executive (Excl SIU),67.99,MISCELLANEOUS AND SPECIALTY RETAIL STORES,2021-22Q1_PC0379
Sandwell Metropolitan Borough Council,http://www.sandwell.gov.uk/info/200202/performance_and_spending/3233/government_procurement_cards,29-Apr-2021,Total ASCHWB,CURRYS ONLINE,Total Adult Social Care,133.97,ELECTRONIC SALES,2021-22Q1_PC0380
Sandwell Metropolitan Borough Council,http://www.sandwell.gov.uk/info/200202/performance_and_spending/3233/government_procurement_cards,29-Apr-2021,Total ASCHWB,Amazon.co.uk MK7UK9OS4,Total Adult Social Care,106.64,DIRECT MARKETING-OTHER DIRECT MARKETERS/NOT ELSEW.,2021-22Q1_PC0381
Sandwell Metropolitan Borough Council,http://www.sandwell.gov.uk/info/200202/performance_and_spending/3233/government_procurement_cards,29-Apr-2021,Childrens Services,POST OFFICE COUNTER,Childrens Services,2.69,POSTAL SERVICES-GOVERNMENT ONLY,2021-22Q1_PC0382
Sandwell Metropolitan Borough Council,http://www.sandwell.gov.uk/info/200202/performance_and_spending/3233/government_procurement_cards,29-Apr-2021,Childrens Services,IKEA LTD 142 BIRMINGHA,Childrens Services,55,"EQUIP, FURNITURE, HOME FURNSHNGS STRS (EXCPT APPL)",2021-22Q1_PC0383
Sandwell Metropolitan Borough Council,http://www.sandwell.gov.uk/info/200202/performance_and_spending/3233/government_procurement_cards,29-Apr-2021,Childrens Services,AMZNMktplace,Childrens Services,97.48,MISCELLANEOUS AND SPECIALTY RETAIL STORES,2021-22Q1_PC0384
Sandwell Metropolitan Borough Council,http://www.sandwell.gov.uk/info/200202/performance_and_spending/3233/government_procurement_cards,29-Apr-2021,Director of Law & Governance,AMZNMktplace,Assistant Chief Executive (Excl SIU),25.49,MISCELLANEOUS AND SPECIALTY RETAIL STORES,2021-22Q1_PC0385
Sandwell Metropolitan Borough Council,http://www.sandwell.gov.uk/info/200202/performance_and_spending/3233/government_procurement_cards,30-Apr-2021,Total Housing Revenue Account,TRAVIS PERKINS,Total Housing Revenue Account,63,"BUILDING MATERIALS, LUMBER STORES",2021-22Q1_PC0386
Sandwell Metropolitan Borough Council,http://www.sandwell.gov.uk/info/200202/performance_and_spending/3233/government_procurement_cards,30-Apr-2021,Total Housing Revenue Account,WWW.KANE.CO.UK,Total Housing Revenue Account,769.14,HARDWARE EQUIPMENT AND SUPPLIES,2021-22Q1_PC0387
Sandwell Metropolitan Borough Council,http://www.sandwell.gov.uk/info/200202/performance_and_spending/3233/government_procurement_cards,30-Apr-2021,Total Housing Revenue Account,AMZ SIHOOUK,Total Housing Revenue Account,-164.99,MISCELLANEOUS AND SPECIALTY RETAIL STORES,2021-22Q1_PC0388
Sandwell Metropolitan Borough Council,http://www.sandwell.gov.uk/info/200202/performance_and_spending/3233/government_procurement_cards,30-Apr-2021,Total Borough Economy,Amazon.co.uk MK0GP7414,Neighbourhoods,25.23,DIRECT MARKETING-OTHER DIRECT MARKETERS/NOT ELSEW.,2021-22Q1_PC0389
Sandwell Metropolitan Borough Council,http://www.sandwell.gov.uk/info/200202/performance_and_spending/3233/government_procurement_cards,30-Apr-2021,Total Business Strategy & Change,Amazon.co.uk MK3O434V4,Assistant Chief Executive (Excl SIU),29.16,DIRECT MARKETING-OTHER DIRECT MARKETERS/NOT ELSEW.,2021-22Q1_PC0390
Sandwell Metropolitan Borough Council,http://www.sandwell.gov.uk/info/200202/performance_and_spending/3233/government_procurement_cards,30-Apr-2021,Total Business Strategy & Change,AMZNMKTPLACE AMAZON.CO,Assistant Chief Executive (Excl SIU),35.96,MISCELLANEOUS AND SPECIALTY RETAIL STORES,2021-22Q1_PC0391
Sandwell Metropolitan Borough Council,http://www.sandwell.gov.uk/info/200202/performance_and_spending/3233/government_procurement_cards,30-Apr-2021,Total Borough Economy,The Plastic Box Compan,Neighbourhoods,77.76,INDUSTRIAL SUPPLIES NOT ELSEWHERE CLASSIFIED,2021-22Q1_PC0392
Sandwell Metropolitan Borough Council,http://www.sandwell.gov.uk/info/200202/performance_and_spending/3233/government_procurement_cards,30-Apr-2021,Director of Law & Governance,SCREWFIX DIRECT,Assistant Chief Executive (Excl SIU),10.62,"BUILDING MATERIALS, LUMBER STORES",2021-22Q1_PC0393
Sandwell Metropolitan Borough Council,http://www.sandwell.gov.uk/info/200202/performance_and_spending/3233/government_procurement_cards,30-Apr-2021,Total ASCHWB,NTP ONLINE LEARNING L,Total Adult Social Care,209.24,"SCHOOLS, BUSINESS AND SECRETARIAL",2021-22Q1_PC0394
Sandwell Metropolitan Borough Council,http://www.sandwell.gov.uk/info/200202/performance_and_spending/3233/government_procurement_cards,30-Apr-2021,Total ASCHWB,NTP ONLINE LEARNING L,Total Adult Social Care,209.24,"SCHOOLS, BUSINESS AND SECRETARIAL",2021-22Q1_PC0395
Sandwell Metropolitan Borough Council,http://www.sandwell.gov.uk/info/200202/performance_and_spending/3233/government_procurement_cards,30-Apr-2021,Total ASCHWB,ARGOS LTD,Total Adult Social Care,15,DISCOUNT STORES,2021-22Q1_PC0396
Sandwell Metropolitan Borough Council,http://www.sandwell.gov.uk/info/200202/performance_and_spending/3233/government_procurement_cards,30-Apr-2021,Childrens Services,POWER ELECTRICAL DISTR,Childrens Services,122.59,ELECTRICAL PARTS AND EQUIPMENT,2021-22Q1_PC0397
Sandwell Metropolitan Borough Council,http://www.sandwell.gov.uk/info/200202/performance_and_spending/3233/government_procurement_cards,30-Apr-2021,Childrens Services,AMZNMKTPLACE AMAZON.CO,Childrens Services,27.8,MISCELLANEOUS AND SPECIALTY RETAIL STORES,2021-22Q1_PC0398
Sandwell Metropolitan Borough Council,http://www.sandwell.gov.uk/info/200202/performance_and_spending/3233/government_procurement_cards,30-Apr-2021,Individual School Budgets With Inclusion,Amazon.co.uk MK3HT4LJ4,Individual School Budgets With Inclusion,128.87,DIRECT MARKETING-OTHER DIRECT MARKETERS/NOT ELSEW.,2021-22Q1_PC0399
Sandwell Metropolitan Borough Council,http://www.sandwell.gov.uk/info/200202/performance_and_spending/3233/government_procurement_cards,30-Apr-2021,Individual School Budgets With Inclusion,WWW.THEWORKS.CO.UK,Individual School Budgets With Inclusion,31.5,DISCOUNT STORES,2021-22Q1_PC0400
Sandwell Metropolitan Borough Council,http://www.sandwell.gov.uk/info/200202/performance_and_spending/3233/government_procurement_cards,30-Apr-2021,Childrens Services,LVL-BLACKS VETS OLDBUR,Childrens Services,-38.99,VETERINARY SERVICES,2021-22Q1_PC0401
Sandwell Metropolitan Borough Council,http://www.sandwell.gov.uk/info/200202/performance_and_spending/3233/government_procurement_cards,30-Apr-2021,Childrens Services,LVL-BLACKS VETS OLDBUR,Childrens Services,38.99,VETERINARY SERVICES,2021-22Q1_PC0402
Sandwell Metropolitan Borough Council,http://www.sandwell.gov.uk/info/200202/performance_and_spending/3233/government_procurement_cards,30-Apr-2021,Housing & Assets Total,OFFICE DEPOT UK,Neighbourhoods,85.88,STATIONERY/OFFICE SUPPLIES/PRINTING & WRITING PAP.,2021-22Q1_PC0403
Sandwell Metropolitan Borough Council,http://www.sandwell.gov.uk/info/200202/performance_and_spending/3233/government_procurement_cards,30-Apr-2021,Corporate Management,AMZNMktplace,Corporate Management,111.62,MISCELLANEOUS AND SPECIALTY RETAIL STORES,2021-22Q1_PC0404
Sandwell Metropolitan Borough Council,http://www.sandwell.gov.uk/info/200202/performance_and_spending/3233/government_procurement_cards,03-May-2021,Total Housing Revenue Account,NRS HEALTHCARE,Total Housing Revenue Account,29.68,"HEARING AIDS-SALES, SERVICE, SUPPLY STORES",2021-22Q1_PC0405
Sandwell Metropolitan Borough Council,http://www.sandwell.gov.uk/info/200202/performance_and_spending/3233/government_procurement_cards,03-May-2021,Total Housing Revenue Account,OFFICE DEPOT UK,Total Housing Revenue Account,46.25,STATIONERY/OFFICE SUPPLIES/PRINTING & WRITING PAP.,2021-22Q1_PC0406
Sandwell Metropolitan Borough Council,http://www.sandwell.gov.uk/info/200202/performance_and_spending/3233/government_procurement_cards,03-May-2021,Total Housing Revenue Account,AMZNMktplace,Total Housing Revenue Account,39.99,MISCELLANEOUS AND SPECIALTY RETAIL STORES,2021-22Q1_PC0407
Sandwell Metropolitan Borough Council,http://www.sandwell.gov.uk/info/200202/performance_and_spending/3233/government_procurement_cards,03-May-2021,Total Borough Economy,SCREWFIX DIRECT,Total Adult Social Care,49.99,"BUILDING MATERIALS, LUMBER STORES",2021-22Q1_PC0408
Sandwell Metropolitan Borough Council,http://www.sandwell.gov.uk/info/200202/performance_and_spending/3233/government_procurement_cards,03-May-2021,Total Borough Economy,PORTER AND WOODMAN,Neighbourhoods,197.7,"GIFT, CARD, NOVELTY AND SOUVENIR SHOPS",2021-22Q1_PC0409
Sandwell Metropolitan Borough Council,http://www.sandwell.gov.uk/info/200202/performance_and_spending/3233/government_procurement_cards,03-May-2021,Total Borough Economy,FACEBK VNL5N3BKY2,Neighbourhoods,10.92,ADVERTISING SERVICES,2021-22Q1_PC0410
Sandwell Metropolitan Borough Council,http://www.sandwell.gov.uk/info/200202/performance_and_spending/3233/government_procurement_cards,03-May-2021,Total Public Health,FACEBK BX7GN5KNK2,Public Health,75.18,ADVERTISING SERVICES,2021-22Q1_PC0411
Sandwell Metropolitan Borough Council,http://www.sandwell.gov.uk/info/200202/performance_and_spending/3233/government_procurement_cards,03-May-2021,Total ASCHWB,ARGOS LTD,Total Adult Social Care,82,DISCOUNT STORES,2021-22Q1_PC0412
Sandwell Metropolitan Borough Council,http://www.sandwell.gov.uk/info/200202/performance_and_spending/3233/government_procurement_cards,03-May-2021,Total ASCHWB,ARGOS LTD,Total Adult Social Care,156.95,DISCOUNT STORES,2021-22Q1_PC0413
Sandwell Metropolitan Borough Council,http://www.sandwell.gov.uk/info/200202/performance_and_spending/3233/government_procurement_cards,03-May-2021,Total ASCHWB,ARGOS LTD,Total Adult Social Care,84.98,DISCOUNT STORES,2021-22Q1_PC0414
Sandwell Metropolitan Borough Council,http://www.sandwell.gov.uk/info/200202/performance_and_spending/3233/government_procurement_cards,03-May-2021,Total ASCHWB,ARGOS LTD,Total Adult Social Care,166.95,DISCOUNT STORES,2021-22Q1_PC0415
Sandwell Metropolitan Borough Council,http://www.sandwell.gov.uk/info/200202/performance_and_spending/3233/government_procurement_cards,03-May-2021,Total ASCHWB,AMZNMktplace,Total Adult Social Care,33.49,MISCELLANEOUS AND SPECIALTY RETAIL STORES,2021-22Q1_PC0416
Sandwell Metropolitan Borough Council,http://www.sandwell.gov.uk/info/200202/performance_and_spending/3233/government_procurement_cards,03-May-2021,Total ASCHWB,NTP ONLINE LEARNING L,Total Adult Social Care,209.24,"SCHOOLS, BUSINESS AND SECRETARIAL",2021-22Q1_PC0417
Sandwell Metropolitan Borough Council,http://www.sandwell.gov.uk/info/200202/performance_and_spending/3233/government_procurement_cards,03-May-2021,Total ASCHWB,Amazon Prime MK2D773G4,Total Adult Social Care,7.99,DIRECT MARKETING-CONTINUITY/SUBSCRIPTION MERCHANTS,2021-22Q1_PC0418
Sandwell Metropolitan Borough Council,http://www.sandwell.gov.uk/info/200202/performance_and_spending/3233/government_procurement_cards,03-May-2021,Housing & Assets Total,AMZNMKTPLACE AMAZON.CO,Neighbourhoods,32.99,MISCELLANEOUS AND SPECIALTY RETAIL STORES,2021-22Q1_PC0419
Sandwell Metropolitan Borough Council,http://www.sandwell.gov.uk/info/200202/performance_and_spending/3233/government_procurement_cards,03-May-2021,Housing & Assets Total,Amazon.co.uk MK9J58ZW4,Neighbourhoods,24.5,DIRECT MARKETING-OTHER DIRECT MARKETERS/NOT ELSEW.,2021-22Q1_PC0420
Sandwell Metropolitan Borough Council,http://www.sandwell.gov.uk/info/200202/performance_and_spending/3233/government_procurement_cards,03-May-2021,Housing & Assets Total,Amazon.co.uk MK2SE3ZL4,Neighbourhoods,24.5,DIRECT MARKETING-OTHER DIRECT MARKETERS/NOT ELSEW.,2021-22Q1_PC0421
Sandwell Metropolitan Borough Council,http://www.sandwell.gov.uk/info/200202/performance_and_spending/3233/government_procurement_cards,03-May-2021,Housing & Assets Total,Amazon.co.uk MK1274ZP4,Neighbourhoods,24.5,DIRECT MARKETING-OTHER DIRECT MARKETERS/NOT ELSEW.,2021-22Q1_PC0422
Sandwell Metropolitan Borough Council,http://www.sandwell.gov.uk/info/200202/performance_and_spending/3233/government_procurement_cards,03-May-2021,Housing & Assets Total,Amazon.co.uk MK8ST0Z84,Neighbourhoods,24.5,DIRECT MARKETING-OTHER DIRECT MARKETERS/NOT ELSEW.,2021-22Q1_PC0423
Sandwell Metropolitan Borough Council,http://www.sandwell.gov.uk/info/200202/performance_and_spending/3233/government_procurement_cards,03-May-2021,Childrens Services,CARTRIDGEPEOPLE.COM,Childrens Services,240.7,STATIONERY/OFFICE SUPPLIES/PRINTING & WRITING PAP.,2021-22Q1_PC0424
Sandwell Metropolitan Borough Council,http://www.sandwell.gov.uk/info/200202/performance_and_spending/3233/government_procurement_cards,03-May-2021,Individual School Budgets With Inclusion,Norton  AP1343500675,Individual School Budgets With Inclusion,64.99,COMPUTER SOFTWARE STORES,2021-22Q1_PC0425
Sandwell Metropolitan Borough Council,http://www.sandwell.gov.uk/info/200202/performance_and_spending/3233/government_procurement_cards,03-May-2021,Childrens Services,AMZNMktplace,Childrens Services,11.98,MISCELLANEOUS AND SPECIALTY RETAIL STORES,2021-22Q1_PC0426
Sandwell Metropolitan Borough Council,http://www.sandwell.gov.uk/info/200202/performance_and_spending/3233/government_procurement_cards,03-May-2021,Childrens Services,AMZNMktplace,Childrens Services,11.98,MISCELLANEOUS AND SPECIALTY RETAIL STORES,2021-22Q1_PC0427
Sandwell Metropolitan Borough Council,http://www.sandwell.gov.uk/info/200202/performance_and_spending/3233/government_procurement_cards,03-May-2021,Director of Law & Governance,OFFICE DEPOT UK,Assistant Chief Executive (Excl SIU),87.98,STATIONERY/OFFICE SUPPLIES/PRINTING & WRITING PAP.,2021-22Q1_PC0428
Sandwell Metropolitan Borough Council,http://www.sandwell.gov.uk/info/200202/performance_and_spending/3233/government_procurement_cards,03-May-2021,Director of Law & Governance,SAINSBURYS SACAT0558,Assistant Chief Executive (Excl SIU),6,"GROCERY STORES, SUPERMARKETS",2021-22Q1_PC0429
Sandwell Metropolitan Borough Council,http://www.sandwell.gov.uk/info/200202/performance_and_spending/3233/government_procurement_cards,03-May-2021,Total Business Strategy & Change,AMZNMktplace,Assistant Chief Executive (Excl SIU),42,MISCELLANEOUS AND SPECIALTY RETAIL STORES,2021-22Q1_PC0430
Sandwell Metropolitan Borough Council,http://www.sandwell.gov.uk/info/200202/performance_and_spending/3233/government_procurement_cards,03-May-2021,Total Business Strategy & Change,Google,Assistant Chief Executive (Excl SIU),198.33,COMPUTER NETWORK/INFORMATION SERVICES,2021-22Q1_PC0431
Sandwell Metropolitan Borough Council,http://www.sandwell.gov.uk/info/200202/performance_and_spending/3233/government_procurement_cards,04-May-2021,Regeneration & Growth,TVLICENSING.CO.UK,Regeneration And The Economy,159,"CONSULTING, MANAGEMENT, AND PUBLIC RELATIONS SVCS",2021-22Q1_PC0432
Sandwell Metropolitan Borough Council,http://www.sandwell.gov.uk/info/200202/performance_and_spending/3233/government_procurement_cards,04-May-2021,Total ASCHWB,NTP ONLINE LEARNING L,Total Adult Social Care,209.24,"SCHOOLS, BUSINESS AND SECRETARIAL",2021-22Q1_PC0433
Sandwell Metropolitan Borough Council,http://www.sandwell.gov.uk/info/200202/performance_and_spending/3233/government_procurement_cards,05-May-2021,Regeneration And The Economy Capital,Amazon Prime,#N/A,-7.99,DIRECT MARKETING-CONTINUITY/SUBSCRIPTION MERCHANTS,2021-22Q1_PC0434
Sandwell Metropolitan Borough Council,http://www.sandwell.gov.uk/info/200202/performance_and_spending/3233/government_procurement_cards,05-May-2021,Total Housing Revenue Account,Staffordshire Builders,Total Housing Revenue Account,288,"BUILDING MATERIALS, LUMBER STORES",2021-22Q1_PC0435
Sandwell Metropolitan Borough Council,http://www.sandwell.gov.uk/info/200202/performance_and_spending/3233/government_procurement_cards,05-May-2021,Total Borough Economy,AMZNMKTPLACE AMAZON.CO,Neighbourhoods,18.49,MISCELLANEOUS AND SPECIALTY RETAIL STORES,2021-22Q1_PC0436
Sandwell Metropolitan Borough Council,http://www.sandwell.gov.uk/info/200202/performance_and_spending/3233/government_procurement_cards,05-May-2021,Total Borough Economy,VISTAPRINT,Neighbourhoods,81.55,MISCELLANEOUS PUBLISHING AND PRINTING,2021-22Q1_PC0437
Sandwell Metropolitan Borough Council,http://www.sandwell.gov.uk/info/200202/performance_and_spending/3233/government_procurement_cards,05-May-2021,Total Borough Economy,AMZNMktplace,Neighbourhoods,35.68,MISCELLANEOUS AND SPECIALTY RETAIL STORES,2021-22Q1_PC0438
Sandwell Metropolitan Borough Council,http://www.sandwell.gov.uk/info/200202/performance_and_spending/3233/government_procurement_cards,05-May-2021,Housing & Assets Total,ASDA STORE,Neighbourhoods,40.8,"GROCERY STORES, SUPERMARKETS",2021-22Q1_PC0439
Sandwell Metropolitan Borough Council,http://www.sandwell.gov.uk/info/200202/performance_and_spending/3233/government_procurement_cards,05-May-2021,Housing & Assets Total,B&M 262 - WILLENHALL,Neighbourhoods,16,MISCELLANEOUS GENERAL MERCHANDISE,2021-22Q1_PC0440
Sandwell Metropolitan Borough Council,http://www.sandwell.gov.uk/info/200202/performance_and_spending/3233/government_procurement_cards,05-May-2021,Total Borough Economy,AMZNMktplace,Neighbourhoods,6.99,MISCELLANEOUS AND SPECIALTY RETAIL STORES,2021-22Q1_PC0441
Sandwell Metropolitan Borough Council,http://www.sandwell.gov.uk/info/200202/performance_and_spending/3233/government_procurement_cards,05-May-2021,Total Borough Economy,Amazon.co.uk MK55N91L4,Neighbourhoods,6.68,DIRECT MARKETING-OTHER DIRECT MARKETERS/NOT ELSEW.,2021-22Q1_PC0442
Sandwell Metropolitan Borough Council,http://www.sandwell.gov.uk/info/200202/performance_and_spending/3233/government_procurement_cards,05-May-2021,Total Borough Economy,Amazon.co.uk MK72I10T4,Neighbourhoods,79.49,DIRECT MARKETING-OTHER DIRECT MARKETERS/NOT ELSEW.,2021-22Q1_PC0443
Sandwell Metropolitan Borough Council,http://www.sandwell.gov.uk/info/200202/performance_and_spending/3233/government_procurement_cards,05-May-2021,Total ASCHWB,AMZNMktplace,Total Adult Social Care,17.32,MISCELLANEOUS AND SPECIALTY RETAIL STORES,2021-22Q1_PC0444
Sandwell Metropolitan Borough Council,http://www.sandwell.gov.uk/info/200202/performance_and_spending/3233/government_procurement_cards,05-May-2021,Total ASCHWB,AMZNMKTPLACE AMAZON.CO,Total Adult Social Care,27.88,MISCELLANEOUS AND SPECIALTY RETAIL STORES,2021-22Q1_PC0445
Sandwell Metropolitan Borough Council,http://www.sandwell.gov.uk/info/200202/performance_and_spending/3233/government_procurement_cards,05-May-2021,Total ASCHWB,AMZNMKTPLACE AMAZON.CO,Total Adult Social Care,12.5,MISCELLANEOUS AND SPECIALTY RETAIL STORES,2021-22Q1_PC0446
Sandwell Metropolitan Borough Council,http://www.sandwell.gov.uk/info/200202/performance_and_spending/3233/government_procurement_cards,05-May-2021,Total ASCHWB,ARC CAR WASH,Total Adult Social Care,25,CAR WASHES,2021-22Q1_PC0447
Sandwell Metropolitan Borough Council,http://www.sandwell.gov.uk/info/200202/performance_and_spending/3233/government_procurement_cards,05-May-2021,Housing & Assets Total,AMZNMktplace,Neighbourhoods,195.86,MISCELLANEOUS AND SPECIALTY RETAIL STORES,2021-22Q1_PC0448
Sandwell Metropolitan Borough Council,http://www.sandwell.gov.uk/info/200202/performance_and_spending/3233/government_procurement_cards,05-May-2021,Total Business Strategy & Change,AMZNMktplace,Assistant Chief Executive (Excl SIU),84,MISCELLANEOUS AND SPECIALTY RETAIL STORES,2021-22Q1_PC0449
Sandwell Metropolitan Borough Council,http://www.sandwell.gov.uk/info/200202/performance_and_spending/3233/government_procurement_cards,05-May-2021,Total Business Strategy & Change,AMZNMktplace,Assistant Chief Executive (Excl SIU),39.78,MISCELLANEOUS AND SPECIALTY RETAIL STORES,2021-22Q1_PC0450
Sandwell Metropolitan Borough Council,http://www.sandwell.gov.uk/info/200202/performance_and_spending/3233/government_procurement_cards,05-May-2021,Corporate Management,AMZNMktplace,Corporate Management,111.04,MISCELLANEOUS AND SPECIALTY RETAIL STORES,2021-22Q1_PC0451
Sandwell Metropolitan Borough Council,http://www.sandwell.gov.uk/info/200202/performance_and_spending/3233/government_procurement_cards,05-May-2021,Corporate Management,Amazon.co.uk MK35T8034,Corporate Management,111.04,DIRECT MARKETING-OTHER DIRECT MARKETERS/NOT ELSEW.,2021-22Q1_PC0452
Sandwell Metropolitan Borough Council,http://www.sandwell.gov.uk/info/200202/performance_and_spending/3233/government_procurement_cards,05-May-2021,Corporate Management,Amazon.co.uk MK3KC9084,Corporate Management,111.04,DIRECT MARKETING-OTHER DIRECT MARKETERS/NOT ELSEW.,2021-22Q1_PC0453
Sandwell Metropolitan Borough Council,http://www.sandwell.gov.uk/info/200202/performance_and_spending/3233/government_procurement_cards,05-May-2021,Corporate Management,Amazon.co.uk MK8ZR0004,Corporate Management,111.04,DIRECT MARKETING-OTHER DIRECT MARKETERS/NOT ELSEW.,2021-22Q1_PC0454
Sandwell Metropolitan Borough Council,http://www.sandwell.gov.uk/info/200202/performance_and_spending/3233/government_procurement_cards,06-May-2021,Total Housing Revenue Account,NRS HEALTHCARE,Total Housing Revenue Account,361.03,"HEARING AIDS-SALES, SERVICE, SUPPLY STORES",2021-22Q1_PC0455
Sandwell Metropolitan Borough Council,http://www.sandwell.gov.uk/info/200202/performance_and_spending/3233/government_procurement_cards,06-May-2021,Total Housing Revenue Account,AMZNMktplace,Total Housing Revenue Account,53.58,MISCELLANEOUS AND SPECIALTY RETAIL STORES,2021-22Q1_PC0456
Sandwell Metropolitan Borough Council,http://www.sandwell.gov.uk/info/200202/performance_and_spending/3233/government_procurement_cards,06-May-2021,Total Borough Economy,OFFICE DEPOT UK,Neighbourhoods,160.09,STATIONERY/OFFICE SUPPLIES/PRINTING & WRITING PAP.,2021-22Q1_PC0457
Sandwell Metropolitan Borough Council,http://www.sandwell.gov.uk/info/200202/performance_and_spending/3233/government_procurement_cards,06-May-2021,Regeneration & Growth,OFFICE DEPOT UK,Regeneration And The Economy,38.68,STATIONERY/OFFICE SUPPLIES/PRINTING & WRITING PAP.,2021-22Q1_PC0458
Sandwell Metropolitan Borough Council,http://www.sandwell.gov.uk/info/200202/performance_and_spending/3233/government_procurement_cards,06-May-2021,FINANCE (Inc SIU),PAYPAL  PIXFABENTER EB,Assistant Chief Executive (Excl SIU),3.95,ACCESSORY AND APPAREL STORES-MISCELLANEOUS,2021-22Q1_PC0459
Sandwell Metropolitan Borough Council,http://www.sandwell.gov.uk/info/200202/performance_and_spending/3233/government_procurement_cards,06-May-2021,Total Borough Economy,Amazon.co.uk MK8OO9PC4,Total Adult Social Care,27.36,DIRECT MARKETING-OTHER DIRECT MARKETERS/NOT ELSEW.,2021-22Q1_PC0460
Sandwell Metropolitan Borough Council,http://www.sandwell.gov.uk/info/200202/performance_and_spending/3233/government_procurement_cards,06-May-2021,Regeneration & Growth,THE INSTITUTION OF,Regeneration And The Economy,989.95,BUSINESS SERVICES-NOT ELSEWHERE CLASSIFIED,2021-22Q1_PC0461
Sandwell Metropolitan Borough Council,http://www.sandwell.gov.uk/info/200202/performance_and_spending/3233/government_procurement_cards,06-May-2021,Total ASCHWB,Amazon.co.uk MK9Y15PH4,Total Adult Social Care,19.9,DIRECT MARKETING-OTHER DIRECT MARKETERS/NOT ELSEW.,2021-22Q1_PC0462
Sandwell Metropolitan Borough Council,http://www.sandwell.gov.uk/info/200202/performance_and_spending/3233/government_procurement_cards,06-May-2021,Total ASCHWB,OFFICE DEPOT UK,Total Adult Social Care,18.65,STATIONERY/OFFICE SUPPLIES/PRINTING & WRITING PAP.,2021-22Q1_PC0463
Sandwell Metropolitan Borough Council,http://www.sandwell.gov.uk/info/200202/performance_and_spending/3233/government_procurement_cards,06-May-2021,Total ASCHWB,AMZNMKTPLACE AMAZON.CO,Total Adult Social Care,6.95,MISCELLANEOUS AND SPECIALTY RETAIL STORES,2021-22Q1_PC0464
Sandwell Metropolitan Borough Council,http://www.sandwell.gov.uk/info/200202/performance_and_spending/3233/government_procurement_cards,06-May-2021,Total ASCHWB,AMZNMKTPLACE AMAZON.CO,Total Adult Social Care,11.7,MISCELLANEOUS AND SPECIALTY RETAIL STORES,2021-22Q1_PC0465
Sandwell Metropolitan Borough Council,http://www.sandwell.gov.uk/info/200202/performance_and_spending/3233/government_procurement_cards,06-May-2021,Childrens Services,MEDISUPPLIES LTD,Childrens Services,90.66,MISCELLANEOUS AND SPECIALTY RETAIL STORES,2021-22Q1_PC0466
Sandwell Metropolitan Borough Council,http://www.sandwell.gov.uk/info/200202/performance_and_spending/3233/government_procurement_cards,06-May-2021,Childrens Services,POST OFFICE COUNTER,Childrens Services,1.99,POSTAL SERVICES-GOVERNMENT ONLY,2021-22Q1_PC0467
Sandwell Metropolitan Borough Council,http://www.sandwell.gov.uk/info/200202/performance_and_spending/3233/government_procurement_cards,06-May-2021,Childrens Services,AMZNMKTPLACE AMAZON.CO,Childrens Services,22.03,MISCELLANEOUS AND SPECIALTY RETAIL STORES,2021-22Q1_PC0468
Sandwell Metropolitan Borough Council,http://www.sandwell.gov.uk/info/200202/performance_and_spending/3233/government_procurement_cards,06-May-2021,Childrens Services,AMZNMKTPLACE AMAZON.CO,Childrens Services,22.09,MISCELLANEOUS AND SPECIALTY RETAIL STORES,2021-22Q1_PC0469
Sandwell Metropolitan Borough Council,http://www.sandwell.gov.uk/info/200202/performance_and_spending/3233/government_procurement_cards,06-May-2021,Total Business Strategy & Change,AMZNMKTPLACE AMAZON.CO,Assistant Chief Executive (Excl SIU),39.78,MISCELLANEOUS AND SPECIALTY RETAIL STORES,2021-22Q1_PC0470
Sandwell Metropolitan Borough Council,http://www.sandwell.gov.uk/info/200202/performance_and_spending/3233/government_procurement_cards,07-May-2021,Total Housing Revenue Account,AMZNMktplace,Total Housing Revenue Account,14.3,MISCELLANEOUS AND SPECIALTY RETAIL STORES,2021-22Q1_PC0471
Sandwell Metropolitan Borough Council,http://www.sandwell.gov.uk/info/200202/performance_and_spending/3233/government_procurement_cards,07-May-2021,Total Housing Revenue Account,AMZNMktplace,Total Housing Revenue Account,-53.58,MISCELLANEOUS AND SPECIALTY RETAIL STORES,2021-22Q1_PC0472
Sandwell Metropolitan Borough Council,http://www.sandwell.gov.uk/info/200202/performance_and_spending/3233/government_procurement_cards,07-May-2021,Total Borough Economy,Amazon.co.uk MK7BX9XT4,Neighbourhoods,19.5,DIRECT MARKETING-OTHER DIRECT MARKETERS/NOT ELSEW.,2021-22Q1_PC0473
Sandwell Metropolitan Borough Council,http://www.sandwell.gov.uk/info/200202/performance_and_spending/3233/government_procurement_cards,07-May-2021,Total Borough Economy,SP   WILDFLOWER SEEDS,Neighbourhoods,52.5,COMPUTER SOFTWARE STORES,2021-22Q1_PC0474
Sandwell Metropolitan Borough Council,http://www.sandwell.gov.uk/info/200202/performance_and_spending/3233/government_procurement_cards,07-May-2021,Total Public Health,LOCTEK INC,Public Health,399.99,COMPUTER SOFTWARE STORES,2021-22Q1_PC0475
Sandwell Metropolitan Borough Council,http://www.sandwell.gov.uk/info/200202/performance_and_spending/3233/government_procurement_cards,07-May-2021,Regeneration & Growth,AMZNMKTPLACE AMAZON.CO,Regeneration And The Economy,90,MISCELLANEOUS AND SPECIALTY RETAIL STORES,2021-22Q1_PC0476
Sandwell Metropolitan Borough Council,http://www.sandwell.gov.uk/info/200202/performance_and_spending/3233/government_procurement_cards,07-May-2021,FINANCE (Inc SIU),OFFICE DEPOT UK,Assistant Chief Executive (Excl SIU),134.7,STATIONERY/OFFICE SUPPLIES/PRINTING & WRITING PAP.,2021-22Q1_PC0477
Sandwell Metropolitan Borough Council,http://www.sandwell.gov.uk/info/200202/performance_and_spending/3233/government_procurement_cards,07-May-2021,FINANCE (Inc SIU),OFFICE DEPOT UK,Assistant Chief Executive (Excl SIU),3.6,STATIONERY/OFFICE SUPPLIES/PRINTING & WRITING PAP.,2021-22Q1_PC0478
Sandwell Metropolitan Borough Council,http://www.sandwell.gov.uk/info/200202/performance_and_spending/3233/government_procurement_cards,07-May-2021,Total Borough Economy,The Plastic Box Compan,Neighbourhoods,87.48,INDUSTRIAL SUPPLIES NOT ELSEWHERE CLASSIFIED,2021-22Q1_PC0479
Sandwell Metropolitan Borough Council,http://www.sandwell.gov.uk/info/200202/performance_and_spending/3233/government_procurement_cards,07-May-2021,Total Borough Economy,The Plastic Box Compan,Neighbourhoods,97.2,INDUSTRIAL SUPPLIES NOT ELSEWHERE CLASSIFIED,2021-22Q1_PC0480
Sandwell Metropolitan Borough Council,http://www.sandwell.gov.uk/info/200202/performance_and_spending/3233/government_procurement_cards,07-May-2021,Total Borough Economy,The Plastic Box Compan,Neighbourhoods,174.96,INDUSTRIAL SUPPLIES NOT ELSEWHERE CLASSIFIED,2021-22Q1_PC0481
Sandwell Metropolitan Borough Council,http://www.sandwell.gov.uk/info/200202/performance_and_spending/3233/government_procurement_cards,07-May-2021,Total Borough Economy,AMZNMKTPLACE AMAZON.CO,Neighbourhoods,3.18,MISCELLANEOUS AND SPECIALTY RETAIL STORES,2021-22Q1_PC0482
Sandwell Metropolitan Borough Council,http://www.sandwell.gov.uk/info/200202/performance_and_spending/3233/government_procurement_cards,07-May-2021,Total Borough Economy,AMZNMktplace,Neighbourhoods,257,MISCELLANEOUS AND SPECIALTY RETAIL STORES,2021-22Q1_PC0483
Sandwell Metropolitan Borough Council,http://www.sandwell.gov.uk/info/200202/performance_and_spending/3233/government_procurement_cards,07-May-2021,Director of Law & Governance,AMZNMktplace,Assistant Chief Executive (Excl SIU),119.59,MISCELLANEOUS AND SPECIALTY RETAIL STORES,2021-22Q1_PC0484
Sandwell Metropolitan Borough Council,http://www.sandwell.gov.uk/info/200202/performance_and_spending/3233/government_procurement_cards,07-May-2021,Regeneration & Growth,WWW.ROBUSTDETAILS.COM,Regeneration And The Economy,79.2,GENERAL CONTRACTORS/RESIDENTIAL BUILDINGS,2021-22Q1_PC0485
Sandwell Metropolitan Borough Council,http://www.sandwell.gov.uk/info/200202/performance_and_spending/3233/government_procurement_cards,07-May-2021,Total ASCHWB,ARGOS LTD,Total Adult Social Care,-10,DISCOUNT STORES,2021-22Q1_PC0486
Sandwell Metropolitan Borough Council,http://www.sandwell.gov.uk/info/200202/performance_and_spending/3233/government_procurement_cards,07-May-2021,Childrens Services,WWW.HIGHFIELDS.CO.UK,Childrens Services,18,BOOK STORES,2021-22Q1_PC0487
Sandwell Metropolitan Borough Council,http://www.sandwell.gov.uk/info/200202/performance_and_spending/3233/government_procurement_cards,07-May-2021,Childrens Services,OFFICE DEPOT UK,Childrens Services,46.84,STATIONERY/OFFICE SUPPLIES/PRINTING & WRITING PAP.,2021-22Q1_PC0488
Sandwell Metropolitan Borough Council,http://www.sandwell.gov.uk/info/200202/performance_and_spending/3233/government_procurement_cards,07-May-2021,Childrens Services,ARGOS LTD,Childrens Services,20,DISCOUNT STORES,2021-22Q1_PC0489
Sandwell Metropolitan Borough Council,http://www.sandwell.gov.uk/info/200202/performance_and_spending/3233/government_procurement_cards,07-May-2021,Childrens Services,AMZNMKTPLACE AMAZON.CO,Childrens Services,21.44,MISCELLANEOUS AND SPECIALTY RETAIL STORES,2021-22Q1_PC0490
Sandwell Metropolitan Borough Council,http://www.sandwell.gov.uk/info/200202/performance_and_spending/3233/government_procurement_cards,10-May-2021,Total Borough Economy,OFFICE DEPOT UK,Neighbourhoods,68.4,STATIONERY/OFFICE SUPPLIES/PRINTING & WRITING PAP.,2021-22Q1_PC0491
Sandwell Metropolitan Borough Council,http://www.sandwell.gov.uk/info/200202/performance_and_spending/3233/government_procurement_cards,10-May-2021,Total Business Strategy & Change,GLOBAL INSIGHT CONFERE,Assistant Chief Executive (Excl SIU),252.14,BUSINESS SERVICES-NOT ELSEWHERE CLASSIFIED,2021-22Q1_PC0492
Sandwell Metropolitan Borough Council,http://www.sandwell.gov.uk/info/200202/performance_and_spending/3233/government_procurement_cards,10-May-2021,Total Borough Economy,PAYPAL  NO1SWIMMER EBA,Neighbourhoods,20.51,PROFESSIONAL SERVICES-NOT ELSEWHERE CLASSIFIED,2021-22Q1_PC0493
Sandwell Metropolitan Borough Council,http://www.sandwell.gov.uk/info/200202/performance_and_spending/3233/government_procurement_cards,10-May-2021,Total Borough Economy,ETSY.COM - WOODENCHESS,Neighbourhoods,48.89,ACCESSORY AND APPAREL STORES-MISCELLANEOUS,2021-22Q1_PC0494
Sandwell Metropolitan Borough Council,http://www.sandwell.gov.uk/info/200202/performance_and_spending/3233/government_procurement_cards,10-May-2021,Total Borough Economy,eBay O 11-07025-60391,Neighbourhoods,60,DEPARTMENT STORES,2021-22Q1_PC0495
Sandwell Metropolitan Borough Council,http://www.sandwell.gov.uk/info/200202/performance_and_spending/3233/government_procurement_cards,10-May-2021,Total Borough Economy,AMZNMKTPLACE AMAZON.CO,Neighbourhoods,-62.67,MISCELLANEOUS AND SPECIALTY RETAIL STORES,2021-22Q1_PC0496
Sandwell Metropolitan Borough Council,http://www.sandwell.gov.uk/info/200202/performance_and_spending/3233/government_procurement_cards,10-May-2021,Housing & Assets Total,AMZNMKTPLACE AMAZON.CO,Neighbourhoods,31.99,MISCELLANEOUS AND SPECIALTY RETAIL STORES,2021-22Q1_PC0497
Sandwell Metropolitan Borough Council,http://www.sandwell.gov.uk/info/200202/performance_and_spending/3233/government_procurement_cards,10-May-2021,Total Business Strategy & Change,AMZNMktplace,Assistant Chief Executive (Excl SIU),14.97,MISCELLANEOUS AND SPECIALTY RETAIL STORES,2021-22Q1_PC0498
Sandwell Metropolitan Borough Council,http://www.sandwell.gov.uk/info/200202/performance_and_spending/3233/government_procurement_cards,10-May-2021,Total Business Strategy & Change,AMZNMktplace,Assistant Chief Executive (Excl SIU),129.33,MISCELLANEOUS AND SPECIALTY RETAIL STORES,2021-22Q1_PC0499
Sandwell Metropolitan Borough Council,http://www.sandwell.gov.uk/info/200202/performance_and_spending/3233/government_procurement_cards,10-May-2021,FINANCE (Inc SIU),WWW.GOV.UK,Assistant Chief Executive (Excl SIU),1.5,PROFESSIONAL SERVICES-NOT ELSEWHERE CLASSIFIED,2021-22Q1_PC0500
Sandwell Metropolitan Borough Council,http://www.sandwell.gov.uk/info/200202/performance_and_spending/3233/government_procurement_cards,10-May-2021,FINANCE (Inc SIU),Amazon Prime MK0AG7M14,Assistant Chief Executive (Excl SIU),7.99,DIRECT MARKETING-CONTINUITY/SUBSCRIPTION MERCHANTS,2021-22Q1_PC0501
Sandwell Metropolitan Borough Council,http://www.sandwell.gov.uk/info/200202/performance_and_spending/3233/government_procurement_cards,10-May-2021,Total Borough Economy,AMZNMktplace,Neighbourhoods,22.97,MISCELLANEOUS AND SPECIALTY RETAIL STORES,2021-22Q1_PC0502
Sandwell Metropolitan Borough Council,http://www.sandwell.gov.uk/info/200202/performance_and_spending/3233/government_procurement_cards,10-May-2021,Total Borough Economy,OFFICE DEPOT UK,Neighbourhoods,79.09,STATIONERY/OFFICE SUPPLIES/PRINTING & WRITING PAP.,2021-22Q1_PC0503
Sandwell Metropolitan Borough Council,http://www.sandwell.gov.uk/info/200202/performance_and_spending/3233/government_procurement_cards,10-May-2021,Total Borough Economy,Amazon.co.uk MK8NN3524,Neighbourhoods,5.5,DIRECT MARKETING-OTHER DIRECT MARKETERS/NOT ELSEW.,2021-22Q1_PC0504
Sandwell Metropolitan Borough Council,http://www.sandwell.gov.uk/info/200202/performance_and_spending/3233/government_procurement_cards,10-May-2021,Total Borough Economy,Amazon.co.uk MK9AS8524,Neighbourhoods,5.5,DIRECT MARKETING-OTHER DIRECT MARKETERS/NOT ELSEW.,2021-22Q1_PC0505
Sandwell Metropolitan Borough Council,http://www.sandwell.gov.uk/info/200202/performance_and_spending/3233/government_procurement_cards,10-May-2021,Total Borough Economy,OFFICE DEPOT UK,Neighbourhoods,94.78,STATIONERY/OFFICE SUPPLIES/PRINTING & WRITING PAP.,2021-22Q1_PC0506
Sandwell Metropolitan Borough Council,http://www.sandwell.gov.uk/info/200202/performance_and_spending/3233/government_procurement_cards,10-May-2021,Total Borough Economy,AMZNMKTPLACE AMAZON.CO,Neighbourhoods,189.99,MISCELLANEOUS AND SPECIALTY RETAIL STORES,2021-22Q1_PC0507
Sandwell Metropolitan Borough Council,http://www.sandwell.gov.uk/info/200202/performance_and_spending/3233/government_procurement_cards,10-May-2021,Director of Law & Governance,AMZNMktplace,Assistant Chief Executive (Excl SIU),12.99,MISCELLANEOUS AND SPECIALTY RETAIL STORES,2021-22Q1_PC0508
Sandwell Metropolitan Borough Council,http://www.sandwell.gov.uk/info/200202/performance_and_spending/3233/government_procurement_cards,10-May-2021,Total ASCHWB,OFFICE DEPOT UK,Total Adult Social Care,103.84,STATIONERY/OFFICE SUPPLIES/PRINTING & WRITING PAP.,2021-22Q1_PC0509
Sandwell Metropolitan Borough Council,http://www.sandwell.gov.uk/info/200202/performance_and_spending/3233/government_procurement_cards,10-May-2021,Total ASCHWB,Amazon.co.uk MK6454XU4,Total Adult Social Care,168,DIRECT MARKETING-OTHER DIRECT MARKETERS/NOT ELSEW.,2021-22Q1_PC0510
Sandwell Metropolitan Borough Council,http://www.sandwell.gov.uk/info/200202/performance_and_spending/3233/government_procurement_cards,10-May-2021,Total ASCHWB,Amazon.co.uk MK1424XQ4,Total Adult Social Care,199.94,DIRECT MARKETING-OTHER DIRECT MARKETERS/NOT ELSEW.,2021-22Q1_PC0511
Sandwell Metropolitan Borough Council,http://www.sandwell.gov.uk/info/200202/performance_and_spending/3233/government_procurement_cards,10-May-2021,Total ASCHWB,ASDA SUPERSTORE,Total Adult Social Care,206.66,"GROCERY STORES, SUPERMARKETS",2021-22Q1_PC0512
Sandwell Metropolitan Borough Council,http://www.sandwell.gov.uk/info/200202/performance_and_spending/3233/government_procurement_cards,10-May-2021,Total ASCHWB,AMZNMktplace,Total Adult Social Care,57.93,MISCELLANEOUS AND SPECIALTY RETAIL STORES,2021-22Q1_PC0513
Sandwell Metropolitan Borough Council,http://www.sandwell.gov.uk/info/200202/performance_and_spending/3233/government_procurement_cards,10-May-2021,Total ASCHWB,TVLICENSING.CO.UK,Total Adult Social Care,159,"CONSULTING, MANAGEMENT, AND PUBLIC RELATIONS SVCS",2021-22Q1_PC0514
Sandwell Metropolitan Borough Council,http://www.sandwell.gov.uk/info/200202/performance_and_spending/3233/government_procurement_cards,10-May-2021,Total ASCHWB,ARGOS LTD,Total Adult Social Care,172.95,DISCOUNT STORES,2021-22Q1_PC0515
Sandwell Metropolitan Borough Council,http://www.sandwell.gov.uk/info/200202/performance_and_spending/3233/government_procurement_cards,10-May-2021,Childrens Services,THE INSTITUTE FOR OUTD,Childrens Services,178,"ORGANIZATIONS, CHARITABLE AND SOCIAL SERVICES",2021-22Q1_PC0516
Sandwell Metropolitan Borough Council,http://www.sandwell.gov.uk/info/200202/performance_and_spending/3233/government_procurement_cards,10-May-2021,Childrens Services,TESCO STORES 6197,Childrens Services,36,"GROCERY STORES, SUPERMARKETS",2021-22Q1_PC0517
Sandwell Metropolitan Borough Council,http://www.sandwell.gov.uk/info/200202/performance_and_spending/3233/government_procurement_cards,10-May-2021,Director of Law & Governance,OFFICE DEPOT UK,Assistant Chief Executive (Excl SIU),36.96,STATIONERY/OFFICE SUPPLIES/PRINTING & WRITING PAP.,2021-22Q1_PC0518
Sandwell Metropolitan Borough Council,http://www.sandwell.gov.uk/info/200202/performance_and_spending/3233/government_procurement_cards,10-May-2021,Director of Law & Governance,LLG ENTERPRISES LTD,Assistant Chief Executive (Excl SIU),150,"SCHOOLS, TRADE AND VOCATIONAL",2021-22Q1_PC0519
Sandwell Metropolitan Borough Council,http://www.sandwell.gov.uk/info/200202/performance_and_spending/3233/government_procurement_cards,10-May-2021,Director of Law & Governance,LLG ENTERPRISES LTD,Assistant Chief Executive (Excl SIU),150,"SCHOOLS, TRADE AND VOCATIONAL",2021-22Q1_PC0520
Sandwell Metropolitan Borough Council,http://www.sandwell.gov.uk/info/200202/performance_and_spending/3233/government_procurement_cards,10-May-2021,Corporate Management,Amazon.co.uk MK2NE1VK4,Corporate Management,30.51,DIRECT MARKETING-OTHER DIRECT MARKETERS/NOT ELSEW.,2021-22Q1_PC0521
Sandwell Metropolitan Borough Council,http://www.sandwell.gov.uk/info/200202/performance_and_spending/3233/government_procurement_cards,11-May-2021,Regeneration And The Economy Capital,Amazon Prime,#N/A,-7.99,DIRECT MARKETING-CONTINUITY/SUBSCRIPTION MERCHANTS,2021-22Q1_PC0522
Sandwell Metropolitan Borough Council,http://www.sandwell.gov.uk/info/200202/performance_and_spending/3233/government_procurement_cards,11-May-2021,Total Borough Economy,WWW.PROP4SHOWS.O.UK,Neighbourhoods,78.75,ACCESSORY AND APPAREL STORES-MISCELLANEOUS,2021-22Q1_PC0523
Sandwell Metropolitan Borough Council,http://www.sandwell.gov.uk/info/200202/performance_and_spending/3233/government_procurement_cards,11-May-2021,Total Borough Economy,PRINTED.COM,Neighbourhoods,151.75,MISCELLANEOUS PUBLISHING AND PRINTING,2021-22Q1_PC0524
Sandwell Metropolitan Borough Council,http://www.sandwell.gov.uk/info/200202/performance_and_spending/3233/government_procurement_cards,11-May-2021,Total Borough Economy,PRINTED.COM,Neighbourhoods,191.99,MISCELLANEOUS PUBLISHING AND PRINTING,2021-22Q1_PC0525
Sandwell Metropolitan Borough Council,http://www.sandwell.gov.uk/info/200202/performance_and_spending/3233/government_procurement_cards,11-May-2021,Total Business Strategy & Change,AMZNMktplace,Assistant Chief Executive (Excl SIU),20.41,MISCELLANEOUS AND SPECIALTY RETAIL STORES,2021-22Q1_PC0526
Sandwell Metropolitan Borough Council,http://www.sandwell.gov.uk/info/200202/performance_and_spending/3233/government_procurement_cards,11-May-2021,FINANCE (Inc SIU),AMZ XIAOGAN-EU,Assistant Chief Executive (Excl SIU),-21.89,MISCELLANEOUS AND SPECIALTY RETAIL STORES,2021-22Q1_PC0527
Sandwell Metropolitan Borough Council,http://www.sandwell.gov.uk/info/200202/performance_and_spending/3233/government_procurement_cards,11-May-2021,Total Borough Economy,ARGOS LTD,Neighbourhoods,12.99,DISCOUNT STORES,2021-22Q1_PC0528
Sandwell Metropolitan Borough Council,http://www.sandwell.gov.uk/info/200202/performance_and_spending/3233/government_procurement_cards,11-May-2021,Total Borough Economy,THE HYGIENE COMPANY,Neighbourhoods,297.6,"CLEANING AND MAINTENANCE, JANITORIAL SERVICES",2021-22Q1_PC0529
Sandwell Metropolitan Borough Council,http://www.sandwell.gov.uk/info/200202/performance_and_spending/3233/government_procurement_cards,11-May-2021,Total Borough Economy,AMZNMKTPLACE AMAZON.CO,Neighbourhoods,225.17,MISCELLANEOUS AND SPECIALTY RETAIL STORES,2021-22Q1_PC0530
Sandwell Metropolitan Borough Council,http://www.sandwell.gov.uk/info/200202/performance_and_spending/3233/government_procurement_cards,11-May-2021,Total Borough Economy,AMZNMKTPLACE AMAZON.CO,Neighbourhoods,122.35,MISCELLANEOUS AND SPECIALTY RETAIL STORES,2021-22Q1_PC0531
Sandwell Metropolitan Borough Council,http://www.sandwell.gov.uk/info/200202/performance_and_spending/3233/government_procurement_cards,11-May-2021,Total ASCHWB,SCREWFIX DIRECT,Total Adult Social Care,184.1,"BUILDING MATERIALS, LUMBER STORES",2021-22Q1_PC0532
Sandwell Metropolitan Borough Council,http://www.sandwell.gov.uk/info/200202/performance_and_spending/3233/government_procurement_cards,11-May-2021,Childrens Services,ALDI 772 177,Childrens Services,22,"GROCERY STORES, SUPERMARKETS",2021-22Q1_PC0533
Sandwell Metropolitan Borough Council,http://www.sandwell.gov.uk/info/200202/performance_and_spending/3233/government_procurement_cards,11-May-2021,Childrens Services,WWW.QUALSAFE.COM,Childrens Services,69.3,SCHOOLS & EDUCATIONAL SVC-NOT ELSEWHERE CLASSIFIED,2021-22Q1_PC0534
Sandwell Metropolitan Borough Council,http://www.sandwell.gov.uk/info/200202/performance_and_spending/3233/government_procurement_cards,11-May-2021,Regeneration & Growth,Amazon.co.uk MK4SI78E4,Regeneration And The Economy,16.96,DIRECT MARKETING-OTHER DIRECT MARKETERS/NOT ELSEW.,2021-22Q1_PC0535
Sandwell Metropolitan Borough Council,http://www.sandwell.gov.uk/info/200202/performance_and_spending/3233/government_procurement_cards,12-May-2021,Total Housing Revenue Account,TRAVIS PERKINS,Total Housing Revenue Account,43.13,"BUILDING MATERIALS, LUMBER STORES",2021-22Q1_PC0536
Sandwell Metropolitan Borough Council,http://www.sandwell.gov.uk/info/200202/performance_and_spending/3233/government_procurement_cards,12-May-2021,Housing & Assets Total,TIMPSON LTD,Neighbourhoods,12,MISCELLANEOUS AND SPECIALTY RETAIL STORES,2021-22Q1_PC0537
Sandwell Metropolitan Borough Council,http://www.sandwell.gov.uk/info/200202/performance_and_spending/3233/government_procurement_cards,12-May-2021,Housing & Assets Total,Amazon.co.uk MK4L526V4,Neighbourhoods,154.99,DIRECT MARKETING-OTHER DIRECT MARKETERS/NOT ELSEW.,2021-22Q1_PC0538
Sandwell Metropolitan Borough Council,http://www.sandwell.gov.uk/info/200202/performance_and_spending/3233/government_procurement_cards,12-May-2021,Housing & Assets Total,AMZNMktplace,Neighbourhoods,149.99,MISCELLANEOUS AND SPECIALTY RETAIL STORES,2021-22Q1_PC0539
Sandwell Metropolitan Borough Council,http://www.sandwell.gov.uk/info/200202/performance_and_spending/3233/government_procurement_cards,12-May-2021,Total Business Strategy & Change,AMZNMKTPLACE AMAZON.CO,Assistant Chief Executive (Excl SIU),14.97,MISCELLANEOUS AND SPECIALTY RETAIL STORES,2021-22Q1_PC0540
Sandwell Metropolitan Borough Council,http://www.sandwell.gov.uk/info/200202/performance_and_spending/3233/government_procurement_cards,12-May-2021,Total Business Strategy & Change,AMZNMktplace,Assistant Chief Executive (Excl SIU),20.41,MISCELLANEOUS AND SPECIALTY RETAIL STORES,2021-22Q1_PC0541
Sandwell Metropolitan Borough Council,http://www.sandwell.gov.uk/info/200202/performance_and_spending/3233/government_procurement_cards,12-May-2021,Total Business Strategy & Change,AMZNMktplace,Assistant Chief Executive (Excl SIU),20.41,MISCELLANEOUS AND SPECIALTY RETAIL STORES,2021-22Q1_PC0542
Sandwell Metropolitan Borough Council,http://www.sandwell.gov.uk/info/200202/performance_and_spending/3233/government_procurement_cards,12-May-2021,Regeneration & Growth,AMZNMKTPLACE AMAZON.CO,Regeneration And The Economy,14.7,MISCELLANEOUS AND SPECIALTY RETAIL STORES,2021-22Q1_PC0543
Sandwell Metropolitan Borough Council,http://www.sandwell.gov.uk/info/200202/performance_and_spending/3233/government_procurement_cards,12-May-2021,Regeneration & Growth,AMZNMKTPLACE AMAZON.CO,Regeneration And The Economy,35,MISCELLANEOUS AND SPECIALTY RETAIL STORES,2021-22Q1_PC0544
Sandwell Metropolitan Borough Council,http://www.sandwell.gov.uk/info/200202/performance_and_spending/3233/government_procurement_cards,12-May-2021,Total Borough Economy,AMZNMKTPLACE AMAZON.CO,Neighbourhoods,26.97,MISCELLANEOUS AND SPECIALTY RETAIL STORES,2021-22Q1_PC0545
Sandwell Metropolitan Borough Council,http://www.sandwell.gov.uk/info/200202/performance_and_spending/3233/government_procurement_cards,12-May-2021,Total Borough Economy,AMZNMKTPLACE AMAZON.CO,Neighbourhoods,31.98,MISCELLANEOUS AND SPECIALTY RETAIL STORES,2021-22Q1_PC0546
Sandwell Metropolitan Borough Council,http://www.sandwell.gov.uk/info/200202/performance_and_spending/3233/government_procurement_cards,12-May-2021,Total Borough Economy,AMZNMktplace,Neighbourhoods,15.99,MISCELLANEOUS AND SPECIALTY RETAIL STORES,2021-22Q1_PC0547
Sandwell Metropolitan Borough Council,http://www.sandwell.gov.uk/info/200202/performance_and_spending/3233/government_procurement_cards,12-May-2021,Total Borough Economy,AMZNMKTPLACE AMAZON.CO,Neighbourhoods,79.95,MISCELLANEOUS AND SPECIALTY RETAIL STORES,2021-22Q1_PC0548
Sandwell Metropolitan Borough Council,http://www.sandwell.gov.uk/info/200202/performance_and_spending/3233/government_procurement_cards,12-May-2021,Total Borough Economy,AMZNMktplace,Neighbourhoods,40.76,MISCELLANEOUS AND SPECIALTY RETAIL STORES,2021-22Q1_PC0549
Sandwell Metropolitan Borough Council,http://www.sandwell.gov.uk/info/200202/performance_and_spending/3233/government_procurement_cards,12-May-2021,Total Borough Economy,Mollie  New Directi...,Neighbourhoods,950,SPORTING GOODS STORES,2021-22Q1_PC0550
Sandwell Metropolitan Borough Council,http://www.sandwell.gov.uk/info/200202/performance_and_spending/3233/government_procurement_cards,12-May-2021,Director of Law & Governance,AMZNMktplace,Assistant Chief Executive (Excl SIU),38.97,MISCELLANEOUS AND SPECIALTY RETAIL STORES,2021-22Q1_PC0551
Sandwell Metropolitan Borough Council,http://www.sandwell.gov.uk/info/200202/performance_and_spending/3233/government_procurement_cards,12-May-2021,Director of Law & Governance,CARTRIDGEPEOPLE.COM,Assistant Chief Executive (Excl SIU),152.9,STATIONERY/OFFICE SUPPLIES/PRINTING & WRITING PAP.,2021-22Q1_PC0552
Sandwell Metropolitan Borough Council,http://www.sandwell.gov.uk/info/200202/performance_and_spending/3233/government_procurement_cards,12-May-2021,Total ASCHWB,AMZNMktplace,Total Adult Social Care,144.99,MISCELLANEOUS AND SPECIALTY RETAIL STORES,2021-22Q1_PC0553
Sandwell Metropolitan Borough Council,http://www.sandwell.gov.uk/info/200202/performance_and_spending/3233/government_procurement_cards,12-May-2021,Childrens Services,BURTECH CYF,Childrens Services,165.75,"ARCHITECTURAL, ENGINEERING, AND SURVEYING SERVICES",2021-22Q1_PC0554
Sandwell Metropolitan Borough Council,http://www.sandwell.gov.uk/info/200202/performance_and_spending/3233/government_procurement_cards,12-May-2021,Childrens Services,AMZNMKTPLACE AMAZON.CO,Childrens Services,85.1,MISCELLANEOUS AND SPECIALTY RETAIL STORES,2021-22Q1_PC0555
Sandwell Metropolitan Borough Council,http://www.sandwell.gov.uk/info/200202/performance_and_spending/3233/government_procurement_cards,12-May-2021,Individual School Budgets With Inclusion,Amazon.co.uk MK4V686L4,Individual School Budgets With Inclusion,124.98,DIRECT MARKETING-OTHER DIRECT MARKETERS/NOT ELSEW.,2021-22Q1_PC0556
Sandwell Metropolitan Borough Council,http://www.sandwell.gov.uk/info/200202/performance_and_spending/3233/government_procurement_cards,12-May-2021,Childrens Services,MYHERMES.CO.UK,Childrens Services,89.26,"FREIGHT CARRIER,TRUCKING-LCL/LNG DIST, MVG/STORAGE",2021-22Q1_PC0557
Sandwell Metropolitan Borough Council,http://www.sandwell.gov.uk/info/200202/performance_and_spending/3233/government_procurement_cards,12-May-2021,Childrens Services,MYHERMES.CO.UK,Childrens Services,6.64,"FREIGHT CARRIER,TRUCKING-LCL/LNG DIST, MVG/STORAGE",2021-22Q1_PC0558
Sandwell Metropolitan Borough Council,http://www.sandwell.gov.uk/info/200202/performance_and_spending/3233/government_procurement_cards,12-May-2021,Childrens Services,AMZNMKTPLACE AMAZON.CO,Childrens Services,17.98,MISCELLANEOUS AND SPECIALTY RETAIL STORES,2021-22Q1_PC0559
Sandwell Metropolitan Borough Council,http://www.sandwell.gov.uk/info/200202/performance_and_spending/3233/government_procurement_cards,12-May-2021,Childrens Services,AMZNMktplace,Childrens Services,29.96,MISCELLANEOUS AND SPECIALTY RETAIL STORES,2021-22Q1_PC0560
Sandwell Metropolitan Borough Council,http://www.sandwell.gov.uk/info/200202/performance_and_spending/3233/government_procurement_cards,13-May-2021,Total Housing Revenue Account,AMZNMKTPLACE AMAZON.CO,Total Housing Revenue Account,62.68,MISCELLANEOUS AND SPECIALTY RETAIL STORES,2021-22Q1_PC0561
Sandwell Metropolitan Borough Council,http://www.sandwell.gov.uk/info/200202/performance_and_spending/3233/government_procurement_cards,13-May-2021,Total Borough Economy,ROYAL MAIL ONLINE SHOP,Total Adult Social Care,37.33,POSTAL SERVICES-GOVERNMENT ONLY,2021-22Q1_PC0562
Sandwell Metropolitan Borough Council,http://www.sandwell.gov.uk/info/200202/performance_and_spending/3233/government_procurement_cards,13-May-2021,Total Public Health,Adobe.com,Public Health,49.94,DIGITAL GOODS SOFTWARE APPLICATIONS,2021-22Q1_PC0563
Sandwell Metropolitan Borough Council,http://www.sandwell.gov.uk/info/200202/performance_and_spending/3233/government_procurement_cards,13-May-2021,Total Borough Economy,AMZNMktplace,Neighbourhoods,30.94,MISCELLANEOUS AND SPECIALTY RETAIL STORES,2021-22Q1_PC0564
Sandwell Metropolitan Borough Council,http://www.sandwell.gov.uk/info/200202/performance_and_spending/3233/government_procurement_cards,13-May-2021,Total Business Strategy & Change,AMZNMKTPLACE AMAZON.CO,Assistant Chief Executive (Excl SIU),21.95,MISCELLANEOUS AND SPECIALTY RETAIL STORES,2021-22Q1_PC0565
Sandwell Metropolitan Borough Council,http://www.sandwell.gov.uk/info/200202/performance_and_spending/3233/government_procurement_cards,13-May-2021,Regeneration & Growth,FLYING COLOURS FLAG,Regeneration And The Economy,68.94,"FABRIC, NEEDLEWORK, PIECE GOODS, AND SEWING STORES",2021-22Q1_PC0566
Sandwell Metropolitan Borough Council,http://www.sandwell.gov.uk/info/200202/performance_and_spending/3233/government_procurement_cards,13-May-2021,Regeneration & Growth,AMZNMktplace,Regeneration And The Economy,23.98,MISCELLANEOUS AND SPECIALTY RETAIL STORES,2021-22Q1_PC0567
Sandwell Metropolitan Borough Council,http://www.sandwell.gov.uk/info/200202/performance_and_spending/3233/government_procurement_cards,13-May-2021,FINANCE (Inc SIU),AMZNMKTPLACE AMAZON.CO,Assistant Chief Executive (Excl SIU),59.4,MISCELLANEOUS AND SPECIALTY RETAIL STORES,2021-22Q1_PC0568
Sandwell Metropolitan Borough Council,http://www.sandwell.gov.uk/info/200202/performance_and_spending/3233/government_procurement_cards,13-May-2021,FINANCE (Inc SIU),OFFICE DEPOT UK,Assistant Chief Executive (Excl SIU),-73.32,STATIONERY/OFFICE SUPPLIES/PRINTING & WRITING PAP.,2021-22Q1_PC0569
Sandwell Metropolitan Borough Council,http://www.sandwell.gov.uk/info/200202/performance_and_spending/3233/government_procurement_cards,13-May-2021,FINANCE (Inc SIU),OFFICE DEPOT UK,Assistant Chief Executive (Excl SIU),101.93,STATIONERY/OFFICE SUPPLIES/PRINTING & WRITING PAP.,2021-22Q1_PC0570
Sandwell Metropolitan Borough Council,http://www.sandwell.gov.uk/info/200202/performance_and_spending/3233/government_procurement_cards,13-May-2021,Total Borough Economy,AMZNMktplace,Neighbourhoods,26.97,MISCELLANEOUS AND SPECIALTY RETAIL STORES,2021-22Q1_PC0571
Sandwell Metropolitan Borough Council,http://www.sandwell.gov.uk/info/200202/performance_and_spending/3233/government_procurement_cards,13-May-2021,Total Borough Economy,SAINSBURYS 0558,Neighbourhoods,20,"GROCERY STORES, SUPERMARKETS",2021-22Q1_PC0572
Sandwell Metropolitan Borough Council,http://www.sandwell.gov.uk/info/200202/performance_and_spending/3233/government_procurement_cards,13-May-2021,Total Borough Economy,AMZNMKTPLACE AMAZON.CO,Neighbourhoods,12.87,MISCELLANEOUS AND SPECIALTY RETAIL STORES,2021-22Q1_PC0573
Sandwell Metropolitan Borough Council,http://www.sandwell.gov.uk/info/200202/performance_and_spending/3233/government_procurement_cards,13-May-2021,Total Borough Economy,FLAG AND BUNTING STORE,Neighbourhoods,167.4,"PIECE GOODS,NOTIONS,AND OTHER DRY GOODS",2021-22Q1_PC0574
Sandwell Metropolitan Borough Council,http://www.sandwell.gov.uk/info/200202/performance_and_spending/3233/government_procurement_cards,13-May-2021,Total Borough Economy,FLAG AND BUNTING STORE,Neighbourhoods,158.4,"PIECE GOODS,NOTIONS,AND OTHER DRY GOODS",2021-22Q1_PC0575
Sandwell Metropolitan Borough Council,http://www.sandwell.gov.uk/info/200202/performance_and_spending/3233/government_procurement_cards,13-May-2021,Total Borough Economy,AMZNMktplace,Neighbourhoods,304.89,MISCELLANEOUS AND SPECIALTY RETAIL STORES,2021-22Q1_PC0576
Sandwell Metropolitan Borough Council,http://www.sandwell.gov.uk/info/200202/performance_and_spending/3233/government_procurement_cards,13-May-2021,Total Borough Economy,AMZNMktplace,Neighbourhoods,11.89,MISCELLANEOUS AND SPECIALTY RETAIL STORES,2021-22Q1_PC0577
Sandwell Metropolitan Borough Council,http://www.sandwell.gov.uk/info/200202/performance_and_spending/3233/government_procurement_cards,13-May-2021,Director of Law & Governance,AMZNMktplace,Assistant Chief Executive (Excl SIU),77.79,MISCELLANEOUS AND SPECIALTY RETAIL STORES,2021-22Q1_PC0578
Sandwell Metropolitan Borough Council,http://www.sandwell.gov.uk/info/200202/performance_and_spending/3233/government_procurement_cards,13-May-2021,Director of Law & Governance,OFFICE DEPOT UK,Assistant Chief Executive (Excl SIU),46.24,STATIONERY/OFFICE SUPPLIES/PRINTING & WRITING PAP.,2021-22Q1_PC0579
Sandwell Metropolitan Borough Council,http://www.sandwell.gov.uk/info/200202/performance_and_spending/3233/government_procurement_cards,13-May-2021,FINANCE (Inc SIU),Amazon.co.uk MK2MT0SR4,Total Adult Social Care,16.97,DIRECT MARKETING-OTHER DIRECT MARKETERS/NOT ELSEW.,2021-22Q1_PC0580
Sandwell Metropolitan Borough Council,http://www.sandwell.gov.uk/info/200202/performance_and_spending/3233/government_procurement_cards,13-May-2021,Total ASCHWB,J R WOODISSE & CO LTD,Total Adult Social Care,525.6,OTHER SERVICES (NOT ELSEWHERE CLASSIFIED),2021-22Q1_PC0581
Sandwell Metropolitan Borough Council,http://www.sandwell.gov.uk/info/200202/performance_and_spending/3233/government_procurement_cards,13-May-2021,Total ASCHWB,HOMEBASE.CO.UK,Total Adult Social Care,17,HOME SUPPLY WAREHOUSE STORES,2021-22Q1_PC0582
Sandwell Metropolitan Borough Council,http://www.sandwell.gov.uk/info/200202/performance_and_spending/3233/government_procurement_cards,13-May-2021,Total ASCHWB,AMZNMktplace,Total Adult Social Care,12.96,MISCELLANEOUS AND SPECIALTY RETAIL STORES,2021-22Q1_PC0583
Sandwell Metropolitan Borough Council,http://www.sandwell.gov.uk/info/200202/performance_and_spending/3233/government_procurement_cards,13-May-2021,Total ASCHWB,AMZNMktplace,Total Adult Social Care,4.99,MISCELLANEOUS AND SPECIALTY RETAIL STORES,2021-22Q1_PC0584
Sandwell Metropolitan Borough Council,http://www.sandwell.gov.uk/info/200202/performance_and_spending/3233/government_procurement_cards,13-May-2021,Childrens Services,Trainline,Childrens Services,18.75,PASSENGER RAILWAYS,2021-22Q1_PC0585
Sandwell Metropolitan Borough Council,http://www.sandwell.gov.uk/info/200202/performance_and_spending/3233/government_procurement_cards,13-May-2021,Childrens Services,WWW.CGPBOOKS.CO.UK,Childrens Services,43.95,MISCELLANEOUS AND SPECIALTY RETAIL STORES,2021-22Q1_PC0586
Sandwell Metropolitan Borough Council,http://www.sandwell.gov.uk/info/200202/performance_and_spending/3233/government_procurement_cards,13-May-2021,Childrens Services,Amazon.co.uk MK30K6DS4,Childrens Services,10.98,DIRECT MARKETING-OTHER DIRECT MARKETERS/NOT ELSEW.,2021-22Q1_PC0587
Sandwell Metropolitan Borough Council,http://www.sandwell.gov.uk/info/200202/performance_and_spending/3233/government_procurement_cards,13-May-2021,Childrens Services,AMZNMKTPLACE AMAZON.CO,Childrens Services,15.49,MISCELLANEOUS AND SPECIALTY RETAIL STORES,2021-22Q1_PC0588
Sandwell Metropolitan Borough Council,http://www.sandwell.gov.uk/info/200202/performance_and_spending/3233/government_procurement_cards,13-May-2021,Childrens Services,AMZNMktplace,Childrens Services,12.98,MISCELLANEOUS AND SPECIALTY RETAIL STORES,2021-22Q1_PC0589
Sandwell Metropolitan Borough Council,http://www.sandwell.gov.uk/info/200202/performance_and_spending/3233/government_procurement_cards,13-May-2021,Housing & Assets Total,Flextronics,Neighbourhoods,494.63,COMPUTER MAIN./REPAIR/SERVICES NOT ELSEWHERE CLASS,2021-22Q1_PC0590
Sandwell Metropolitan Borough Council,http://www.sandwell.gov.uk/info/200202/performance_and_spending/3233/government_procurement_cards,13-May-2021,Total Business Strategy & Change,EB  CIPD LEVEL 7 EXAM-,Assistant Chief Executive (Excl SIU),86.83,BUSINESS SERVICES-NOT ELSEWHERE CLASSIFIED,2021-22Q1_PC0591
Sandwell Metropolitan Borough Council,http://www.sandwell.gov.uk/info/200202/performance_and_spending/3233/government_procurement_cards,14-May-2021,Total Housing Revenue Account,TILE CHOICE LTD,Total Housing Revenue Account,11.64,"BUILDING MATERIALS, LUMBER STORES",2021-22Q1_PC0592
Sandwell Metropolitan Borough Council,http://www.sandwell.gov.uk/info/200202/performance_and_spending/3233/government_procurement_cards,14-May-2021,Total Housing Revenue Account,AMZNMktplace,Total Housing Revenue Account,154.49,MISCELLANEOUS AND SPECIALTY RETAIL STORES,2021-22Q1_PC0593
Sandwell Metropolitan Borough Council,http://www.sandwell.gov.uk/info/200202/performance_and_spending/3233/government_procurement_cards,14-May-2021,Total Borough Economy,AMZNMKTPLACE AMAZON.CO,Total Adult Social Care,14.98,MISCELLANEOUS AND SPECIALTY RETAIL STORES,2021-22Q1_PC0594
Sandwell Metropolitan Borough Council,http://www.sandwell.gov.uk/info/200202/performance_and_spending/3233/government_procurement_cards,14-May-2021,Total Borough Economy,AMZNMktplace,Neighbourhoods,17.99,MISCELLANEOUS AND SPECIALTY RETAIL STORES,2021-22Q1_PC0595
Sandwell Metropolitan Borough Council,http://www.sandwell.gov.uk/info/200202/performance_and_spending/3233/government_procurement_cards,14-May-2021,Total Borough Economy,ARTEZA,Neighbourhoods,28.98,"ARTIST SUPPLY STORES, CRAFT SHOPS",2021-22Q1_PC0596
Sandwell Metropolitan Borough Council,http://www.sandwell.gov.uk/info/200202/performance_and_spending/3233/government_procurement_cards,14-May-2021,Total Business Strategy & Change,AMZNMktplace,Neighbourhoods,41.97,MISCELLANEOUS AND SPECIALTY RETAIL STORES,2021-22Q1_PC0597
Sandwell Metropolitan Borough Council,http://www.sandwell.gov.uk/info/200202/performance_and_spending/3233/government_procurement_cards,14-May-2021,Regeneration & Growth,AMZNMktplace,Regeneration And The Economy,6.64,MISCELLANEOUS AND SPECIALTY RETAIL STORES,2021-22Q1_PC0598
Sandwell Metropolitan Borough Council,http://www.sandwell.gov.uk/info/200202/performance_and_spending/3233/government_procurement_cards,14-May-2021,Regeneration & Growth,AMZNMktplace,Regeneration And The Economy,154.5,MISCELLANEOUS AND SPECIALTY RETAIL STORES,2021-22Q1_PC0599
Sandwell Metropolitan Borough Council,http://www.sandwell.gov.uk/info/200202/performance_and_spending/3233/government_procurement_cards,14-May-2021,Regeneration & Growth,AMZNMktplace,Regeneration And The Economy,107,MISCELLANEOUS AND SPECIALTY RETAIL STORES,2021-22Q1_PC0600
Sandwell Metropolitan Borough Council,http://www.sandwell.gov.uk/info/200202/performance_and_spending/3233/government_procurement_cards,14-May-2021,Total Borough Economy,AMZNMktplace,Neighbourhoods,100.8,MISCELLANEOUS AND SPECIALTY RETAIL STORES,2021-22Q1_PC0601
Sandwell Metropolitan Borough Council,http://www.sandwell.gov.uk/info/200202/performance_and_spending/3233/government_procurement_cards,14-May-2021,Total Borough Economy,FLYING COLOURS FLAG,Neighbourhoods,144.84,"FABRIC, NEEDLEWORK, PIECE GOODS, AND SEWING STORES",2021-22Q1_PC0602
Sandwell Metropolitan Borough Council,http://www.sandwell.gov.uk/info/200202/performance_and_spending/3233/government_procurement_cards,14-May-2021,Total Borough Economy,PAYPAL  FC FLAGS,Neighbourhoods,144.84,"FABRIC, NEEDLEWORK, PIECE GOODS, AND SEWING STORES",2021-22Q1_PC0603
Sandwell Metropolitan Borough Council,http://www.sandwell.gov.uk/info/200202/performance_and_spending/3233/government_procurement_cards,14-May-2021,Total Borough Economy,Amazon.co.uk MK4R80204,Total Adult Social Care,14.99,DIRECT MARKETING-OTHER DIRECT MARKETERS/NOT ELSEW.,2021-22Q1_PC0604
Sandwell Metropolitan Borough Council,http://www.sandwell.gov.uk/info/200202/performance_and_spending/3233/government_procurement_cards,14-May-2021,Regeneration & Growth,XMA LTD,Regeneration And The Economy,169.2,"COMP PROGRAMING,DATA PRCSNG,INTGRTD SYS DSGN SRVS",2021-22Q1_PC0605
Sandwell Metropolitan Borough Council,http://www.sandwell.gov.uk/info/200202/performance_and_spending/3233/government_procurement_cards,14-May-2021,Regeneration & Growth,XMA LTD,Regeneration And The Economy,169.2,"COMP PROGRAMING,DATA PRCSNG,INTGRTD SYS DSGN SRVS",2021-22Q1_PC0606
Sandwell Metropolitan Borough Council,http://www.sandwell.gov.uk/info/200202/performance_and_spending/3233/government_procurement_cards,14-May-2021,FINANCE (Inc SIU),OFFICE DEPOT UK,Total Adult Social Care,31.76,STATIONERY/OFFICE SUPPLIES/PRINTING & WRITING PAP.,2021-22Q1_PC0607
Sandwell Metropolitan Borough Council,http://www.sandwell.gov.uk/info/200202/performance_and_spending/3233/government_procurement_cards,14-May-2021,Total ASCHWB,AMZNMktplace,Total Adult Social Care,7.9,MISCELLANEOUS AND SPECIALTY RETAIL STORES,2021-22Q1_PC0608
Sandwell Metropolitan Borough Council,http://www.sandwell.gov.uk/info/200202/performance_and_spending/3233/government_procurement_cards,14-May-2021,Childrens Services,VODAFONE LTD,Childrens Services,24.57,TELECOM INCL PREPAID/RECURRING PHONE SVCS,2021-22Q1_PC0609
Sandwell Metropolitan Borough Council,http://www.sandwell.gov.uk/info/200202/performance_and_spending/3233/government_procurement_cards,14-May-2021,Childrens Services,POST OFFICE COUNTER,Childrens Services,4.59,POSTAL SERVICES-GOVERNMENT ONLY,2021-22Q1_PC0610
Sandwell Metropolitan Borough Council,http://www.sandwell.gov.uk/info/200202/performance_and_spending/3233/government_procurement_cards,14-May-2021,Director of Law & Governance,OFFICE DEPOT UK,Assistant Chief Executive (Excl SIU),42.6,STATIONERY/OFFICE SUPPLIES/PRINTING & WRITING PAP.,2021-22Q1_PC0611
Sandwell Metropolitan Borough Council,http://www.sandwell.gov.uk/info/200202/performance_and_spending/3233/government_procurement_cards,14-May-2021,Director of Law & Governance,OFFICE DEPOT UK,Assistant Chief Executive (Excl SIU),11.23,STATIONERY/OFFICE SUPPLIES/PRINTING & WRITING PAP.,2021-22Q1_PC0612
Sandwell Metropolitan Borough Council,http://www.sandwell.gov.uk/info/200202/performance_and_spending/3233/government_procurement_cards,17-May-2021,Total Borough Economy,AMZNMktplace,Total Adult Social Care,25.99,MISCELLANEOUS AND SPECIALTY RETAIL STORES,2021-22Q1_PC0613
Sandwell Metropolitan Borough Council,http://www.sandwell.gov.uk/info/200202/performance_and_spending/3233/government_procurement_cards,17-May-2021,Total Borough Economy,PRINTED.COM,Neighbourhoods,25.19,MISCELLANEOUS PUBLISHING AND PRINTING,2021-22Q1_PC0614
Sandwell Metropolitan Borough Council,http://www.sandwell.gov.uk/info/200202/performance_and_spending/3233/government_procurement_cards,17-May-2021,Total Borough Economy,PORTER AND WOODMAN,Neighbourhoods,200,"GIFT, CARD, NOVELTY AND SOUVENIR SHOPS",2021-22Q1_PC0615
Sandwell Metropolitan Borough Council,http://www.sandwell.gov.uk/info/200202/performance_and_spending/3233/government_procurement_cards,17-May-2021,Total Borough Economy,PORTER AND WOODMAN,Neighbourhoods,121.04,"GIFT, CARD, NOVELTY AND SOUVENIR SHOPS",2021-22Q1_PC0616
Sandwell Metropolitan Borough Council,http://www.sandwell.gov.uk/info/200202/performance_and_spending/3233/government_procurement_cards,17-May-2021,Total Borough Economy,PAYPAL  WLCOLLERLTD,Neighbourhoods,37.13,"ANTIQUE SHOPS-SALES,REPAIRS,RESTORATION SERVICES",2021-22Q1_PC0617
Sandwell Metropolitan Borough Council,http://www.sandwell.gov.uk/info/200202/performance_and_spending/3233/government_procurement_cards,17-May-2021,Total Borough Economy,AMZNMktplace,Neighbourhoods,24.35,MISCELLANEOUS AND SPECIALTY RETAIL STORES,2021-22Q1_PC0618
Sandwell Metropolitan Borough Council,http://www.sandwell.gov.uk/info/200202/performance_and_spending/3233/government_procurement_cards,17-May-2021,Total Borough Economy,VISTAPRINT,Neighbourhoods,154.69,MISCELLANEOUS PUBLISHING AND PRINTING,2021-22Q1_PC0619
Sandwell Metropolitan Borough Council,http://www.sandwell.gov.uk/info/200202/performance_and_spending/3233/government_procurement_cards,17-May-2021,Total Borough Economy,AMZNMktplace,Neighbourhoods,8.99,MISCELLANEOUS AND SPECIALTY RETAIL STORES,2021-22Q1_PC0620
Sandwell Metropolitan Borough Council,http://www.sandwell.gov.uk/info/200202/performance_and_spending/3233/government_procurement_cards,17-May-2021,Total Borough Economy,Amazon.co.uk MK3RY07G4,Neighbourhoods,32.98,DIRECT MARKETING-OTHER DIRECT MARKETERS/NOT ELSEW.,2021-22Q1_PC0621
Sandwell Metropolitan Borough Council,http://www.sandwell.gov.uk/info/200202/performance_and_spending/3233/government_procurement_cards,17-May-2021,Total Borough Economy,WETRANSFER,Neighbourhoods,10.66,"COMP PROGRAMING,DATA PRCSNG,INTGRTD SYS DSGN SRVS",2021-22Q1_PC0622
Sandwell Metropolitan Borough Council,http://www.sandwell.gov.uk/info/200202/performance_and_spending/3233/government_procurement_cards,17-May-2021,Total Business Strategy & Change,AMZNMKTPLACE AMAZON.CO,Neighbourhoods,56.7,MISCELLANEOUS AND SPECIALTY RETAIL STORES,2021-22Q1_PC0623
Sandwell Metropolitan Borough Council,http://www.sandwell.gov.uk/info/200202/performance_and_spending/3233/government_procurement_cards,17-May-2021,Total Business Strategy & Change,AMZNMKTPLACE AMAZON.CO,Neighbourhoods,8.97,MISCELLANEOUS AND SPECIALTY RETAIL STORES,2021-22Q1_PC0624
Sandwell Metropolitan Borough Council,http://www.sandwell.gov.uk/info/200202/performance_and_spending/3233/government_procurement_cards,17-May-2021,Total Business Strategy & Change,Amazon.co.uk MK00567Q4,Neighbourhoods,221.36,DIRECT MARKETING-OTHER DIRECT MARKETERS/NOT ELSEW.,2021-22Q1_PC0625
Sandwell Metropolitan Borough Council,http://www.sandwell.gov.uk/info/200202/performance_and_spending/3233/government_procurement_cards,17-May-2021,Total Business Strategy & Change,Amazon.co.uk MK8046704,Neighbourhoods,110.68,DIRECT MARKETING-OTHER DIRECT MARKETERS/NOT ELSEW.,2021-22Q1_PC0626
Sandwell Metropolitan Borough Council,http://www.sandwell.gov.uk/info/200202/performance_and_spending/3233/government_procurement_cards,17-May-2021,Regeneration & Growth,OFFICE DEPOT UK,Regeneration And The Economy,65.39,STATIONERY/OFFICE SUPPLIES/PRINTING & WRITING PAP.,2021-22Q1_PC0627
Sandwell Metropolitan Borough Council,http://www.sandwell.gov.uk/info/200202/performance_and_spending/3233/government_procurement_cards,17-May-2021,Regeneration & Growth,AMZNMKTPLACE AMAZON.CO,Regeneration And The Economy,16.98,MISCELLANEOUS AND SPECIALTY RETAIL STORES,2021-22Q1_PC0628
Sandwell Metropolitan Borough Council,http://www.sandwell.gov.uk/info/200202/performance_and_spending/3233/government_procurement_cards,17-May-2021,FINANCE (Inc SIU),AMZNMktplace,Total Adult Social Care,23.99,MISCELLANEOUS AND SPECIALTY RETAIL STORES,2021-22Q1_PC0629
Sandwell Metropolitan Borough Council,http://www.sandwell.gov.uk/info/200202/performance_and_spending/3233/government_procurement_cards,17-May-2021,FINANCE (Inc SIU),OFFICE DEPOT UK,Total Adult Social Care,7.15,STATIONERY/OFFICE SUPPLIES/PRINTING & WRITING PAP.,2021-22Q1_PC0630
Sandwell Metropolitan Borough Council,http://www.sandwell.gov.uk/info/200202/performance_and_spending/3233/government_procurement_cards,17-May-2021,Total ASCHWB,Amazon.co.uk MK50R0904,Total Adult Social Care,17.97,DIRECT MARKETING-OTHER DIRECT MARKETERS/NOT ELSEW.,2021-22Q1_PC0631
Sandwell Metropolitan Borough Council,http://www.sandwell.gov.uk/info/200202/performance_and_spending/3233/government_procurement_cards,17-May-2021,Total ASCHWB,AMZNMktplace,Total Adult Social Care,10.99,MISCELLANEOUS AND SPECIALTY RETAIL STORES,2021-22Q1_PC0632
Sandwell Metropolitan Borough Council,http://www.sandwell.gov.uk/info/200202/performance_and_spending/3233/government_procurement_cards,17-May-2021,Total ASCHWB,ARGOS LTD,Total Adult Social Care,33.9,DISCOUNT STORES,2021-22Q1_PC0633
Sandwell Metropolitan Borough Council,http://www.sandwell.gov.uk/info/200202/performance_and_spending/3233/government_procurement_cards,17-May-2021,Total ASCHWB,AMZNMktplace,Total Adult Social Care,13.33,MISCELLANEOUS AND SPECIALTY RETAIL STORES,2021-22Q1_PC0634
Sandwell Metropolitan Borough Council,http://www.sandwell.gov.uk/info/200202/performance_and_spending/3233/government_procurement_cards,17-May-2021,Childrens Services,Spotify P14D593F44,Childrens Services,9.99,DIGITAL GOODS AUDIOVISUAL MEDIA,2021-22Q1_PC0635
Sandwell Metropolitan Borough Council,http://www.sandwell.gov.uk/info/200202/performance_and_spending/3233/government_procurement_cards,17-May-2021,Childrens Services,GREETINGS HOUSE LTD,Childrens Services,18.86,"GIFT, CARD, NOVELTY AND SOUVENIR SHOPS",2021-22Q1_PC0636
Sandwell Metropolitan Borough Council,http://www.sandwell.gov.uk/info/200202/performance_and_spending/3233/government_procurement_cards,17-May-2021,Childrens Services,OFFICE DEPOT UK,Childrens Services,7.15,STATIONERY/OFFICE SUPPLIES/PRINTING & WRITING PAP.,2021-22Q1_PC0637
Sandwell Metropolitan Borough Council,http://www.sandwell.gov.uk/info/200202/performance_and_spending/3233/government_procurement_cards,17-May-2021,Childrens Services,ASDA SUPERSTORE,Childrens Services,38,"GROCERY STORES, SUPERMARKETS",2021-22Q1_PC0638
Sandwell Metropolitan Borough Council,http://www.sandwell.gov.uk/info/200202/performance_and_spending/3233/government_procurement_cards,17-May-2021,Childrens Services,AMZNMKTPLACE AMAZON.CO,Childrens Services,12.49,MISCELLANEOUS AND SPECIALTY RETAIL STORES,2021-22Q1_PC0639
Sandwell Metropolitan Borough Council,http://www.sandwell.gov.uk/info/200202/performance_and_spending/3233/government_procurement_cards,17-May-2021,Childrens Services,AMZNMKTPLACE AMAZON.CO,Childrens Services,51.98,MISCELLANEOUS AND SPECIALTY RETAIL STORES,2021-22Q1_PC0640
Sandwell Metropolitan Borough Council,http://www.sandwell.gov.uk/info/200202/performance_and_spending/3233/government_procurement_cards,17-May-2021,Housing & Assets Total,WWW.EUREKADIRECT.CO.UK,Neighbourhoods,40.68,DENTAL/LAB/MED/OPHTHALMIC HOSP EQUIP & SUPPLIES,2021-22Q1_PC0641
Sandwell Metropolitan Borough Council,http://www.sandwell.gov.uk/info/200202/performance_and_spending/3233/government_procurement_cards,17-May-2021,Housing & Assets Total,AMZNMKTPLACE AMAZON.CO,Neighbourhoods,178.98,MISCELLANEOUS AND SPECIALTY RETAIL STORES,2021-22Q1_PC0642
Sandwell Metropolitan Borough Council,http://www.sandwell.gov.uk/info/200202/performance_and_spending/3233/government_procurement_cards,17-May-2021,Director of Law & Governance,OFFICE DEPOT UK,Assistant Chief Executive (Excl SIU),42.6,STATIONERY/OFFICE SUPPLIES/PRINTING & WRITING PAP.,2021-22Q1_PC0643
Sandwell Metropolitan Borough Council,http://www.sandwell.gov.uk/info/200202/performance_and_spending/3233/government_procurement_cards,17-May-2021,Director of Law & Governance,OFFICE DEPOT UK,Assistant Chief Executive (Excl SIU),39.91,STATIONERY/OFFICE SUPPLIES/PRINTING & WRITING PAP.,2021-22Q1_PC0644
Sandwell Metropolitan Borough Council,http://www.sandwell.gov.uk/info/200202/performance_and_spending/3233/government_procurement_cards,17-May-2021,Director of Law & Governance,OFFICE DEPOT UK,Assistant Chief Executive (Excl SIU),4.5,STATIONERY/OFFICE SUPPLIES/PRINTING & WRITING PAP.,2021-22Q1_PC0645
Sandwell Metropolitan Borough Council,http://www.sandwell.gov.uk/info/200202/performance_and_spending/3233/government_procurement_cards,17-May-2021,Director of Law & Governance,Amazon Prime MK3PK9KK4,Assistant Chief Executive (Excl SIU),7.99,DIRECT MARKETING-CONTINUITY/SUBSCRIPTION MERCHANTS,2021-22Q1_PC0646
Sandwell Metropolitan Borough Council,http://www.sandwell.gov.uk/info/200202/performance_and_spending/3233/government_procurement_cards,18-May-2021,Total Borough Economy,OFFICE DEPOT UK,Neighbourhoods,22.99,STATIONERY/OFFICE SUPPLIES/PRINTING & WRITING PAP.,2021-22Q1_PC0647
Sandwell Metropolitan Borough Council,http://www.sandwell.gov.uk/info/200202/performance_and_spending/3233/government_procurement_cards,18-May-2021,Housing Revenue Account Capital,AMZNMktplace,#N/A,29.99,MISCELLANEOUS AND SPECIALTY RETAIL STORES,2021-22Q1_PC0648
Sandwell Metropolitan Borough Council,http://www.sandwell.gov.uk/info/200202/performance_and_spending/3233/government_procurement_cards,18-May-2021,Total Housing Revenue Account,ARGOS LTD,Total Housing Revenue Account,24.99,DISCOUNT STORES,2021-22Q1_PC0649
Sandwell Metropolitan Borough Council,http://www.sandwell.gov.uk/info/200202/performance_and_spending/3233/government_procurement_cards,18-May-2021,Total Housing Revenue Account,ARGOS LTD,Total Housing Revenue Account,24.99,DISCOUNT STORES,2021-22Q1_PC0650
Sandwell Metropolitan Borough Council,http://www.sandwell.gov.uk/info/200202/performance_and_spending/3233/government_procurement_cards,18-May-2021,Total Housing Revenue Account,ARGOS LTD,Total Housing Revenue Account,24.99,DISCOUNT STORES,2021-22Q1_PC0651
Sandwell Metropolitan Borough Council,http://www.sandwell.gov.uk/info/200202/performance_and_spending/3233/government_procurement_cards,18-May-2021,Total Public Health,ADOBE CREATIVE CLOUD,Public Health,49.94,COMPUTER SOFTWARE STORES,2021-22Q1_PC0652
Sandwell Metropolitan Borough Council,http://www.sandwell.gov.uk/info/200202/performance_and_spending/3233/government_procurement_cards,18-May-2021,Total Borough Economy,AMZNMktplace,Neighbourhoods,94.49,MISCELLANEOUS AND SPECIALTY RETAIL STORES,2021-22Q1_PC0653
Sandwell Metropolitan Borough Council,http://www.sandwell.gov.uk/info/200202/performance_and_spending/3233/government_procurement_cards,18-May-2021,Regeneration & Growth,AMZNMKTPLACE AMAZON.CO,Regeneration And The Economy,82.54,MISCELLANEOUS AND SPECIALTY RETAIL STORES,2021-22Q1_PC0654
Sandwell Metropolitan Borough Council,http://www.sandwell.gov.uk/info/200202/performance_and_spending/3233/government_procurement_cards,18-May-2021,Total Borough Economy,LLOYDS PHARMACY,Neighbourhoods,195.93,"DRUG STORES, PHARMACIES",2021-22Q1_PC0655
Sandwell Metropolitan Borough Council,http://www.sandwell.gov.uk/info/200202/performance_and_spending/3233/government_procurement_cards,18-May-2021,Director of Law & Governance,CARTRIDGEPEOPLE.COM,Assistant Chief Executive (Excl SIU),139.8,STATIONERY/OFFICE SUPPLIES/PRINTING & WRITING PAP.,2021-22Q1_PC0656
Sandwell Metropolitan Borough Council,http://www.sandwell.gov.uk/info/200202/performance_and_spending/3233/government_procurement_cards,18-May-2021,Director of Law & Governance,Amazon.co.uk MK4RH1RX4,Assistant Chief Executive (Excl SIU),18.48,DIRECT MARKETING-OTHER DIRECT MARKETERS/NOT ELSEW.,2021-22Q1_PC0657
Sandwell Metropolitan Borough Council,http://www.sandwell.gov.uk/info/200202/performance_and_spending/3233/government_procurement_cards,18-May-2021,Total ASCHWB,ADOBE CREATIVE CLOUD,Total Adult Social Care,49.94,COMPUTER SOFTWARE STORES,2021-22Q1_PC0658
Sandwell Metropolitan Borough Council,http://www.sandwell.gov.uk/info/200202/performance_and_spending/3233/government_procurement_cards,18-May-2021,Total ASCHWB,TVLICENSING.CO.UK,Total Adult Social Care,159,"CONSULTING, MANAGEMENT, AND PUBLIC RELATIONS SVCS",2021-22Q1_PC0659
Sandwell Metropolitan Borough Council,http://www.sandwell.gov.uk/info/200202/performance_and_spending/3233/government_procurement_cards,18-May-2021,Total ASCHWB,AMZNMKTPLACE AMAZON.CO,Total Adult Social Care,49.99,MISCELLANEOUS AND SPECIALTY RETAIL STORES,2021-22Q1_PC0660
Sandwell Metropolitan Borough Council,http://www.sandwell.gov.uk/info/200202/performance_and_spending/3233/government_procurement_cards,18-May-2021,Childrens Services,ARGOS LTD,Childrens Services,312.95,DISCOUNT STORES,2021-22Q1_PC0661
Sandwell Metropolitan Borough Council,http://www.sandwell.gov.uk/info/200202/performance_and_spending/3233/government_procurement_cards,18-May-2021,Childrens Services,BURTECH CYF,Childrens Services,182.1,"ARCHITECTURAL, ENGINEERING, AND SURVEYING SERVICES",2021-22Q1_PC0662
Sandwell Metropolitan Borough Council,http://www.sandwell.gov.uk/info/200202/performance_and_spending/3233/government_procurement_cards,18-May-2021,Childrens Services,GRANTS ONLINE,Childrens Services,118.8,DIRECT MARKETING-CONTINUITY/SUBSCRIPTION MERCHANTS,2021-22Q1_PC0663
Sandwell Metropolitan Borough Council,http://www.sandwell.gov.uk/info/200202/performance_and_spending/3233/government_procurement_cards,18-May-2021,Individual School Budgets With Inclusion,WWW.MARKALLENGROUP.COM,Individual School Budgets With Inclusion,237.6,SCHOOLS & EDUCATIONAL SVC-NOT ELSEWHERE CLASSIFIED,2021-22Q1_PC0664
Sandwell Metropolitan Borough Council,http://www.sandwell.gov.uk/info/200202/performance_and_spending/3233/government_procurement_cards,18-May-2021,Childrens Services,Amazon.co.uk MK0P32R54,Childrens Services,100,DIRECT MARKETING-OTHER DIRECT MARKETERS/NOT ELSEW.,2021-22Q1_PC0665
Sandwell Metropolitan Borough Council,http://www.sandwell.gov.uk/info/200202/performance_and_spending/3233/government_procurement_cards,18-May-2021,Housing & Assets Total,TRAVELODGE,Neighbourhoods,123.37,TRAVELODGE,2021-22Q1_PC0666
Sandwell Metropolitan Borough Council,http://www.sandwell.gov.uk/info/200202/performance_and_spending/3233/government_procurement_cards,19-May-2021,Total Housing Revenue Account,Amazon.co.uk MK9TI5WJ4,Total Housing Revenue Account,149.99,DIRECT MARKETING-OTHER DIRECT MARKETERS/NOT ELSEW.,2021-22Q1_PC0667
Sandwell Metropolitan Borough Council,http://www.sandwell.gov.uk/info/200202/performance_and_spending/3233/government_procurement_cards,19-May-2021,Total Borough Economy,SECURITY INDUSTRY,Neighbourhoods,190,"DETECTVE/PROTECTVE AGNCY,SECURITY SRVS, ARMOR CARS",2021-22Q1_PC0668
Sandwell Metropolitan Borough Council,http://www.sandwell.gov.uk/info/200202/performance_and_spending/3233/government_procurement_cards,19-May-2021,Housing & Assets Total,AMZ Lotus Corporation,Neighbourhoods,-149.99,MISCELLANEOUS AND SPECIALTY RETAIL STORES,2021-22Q1_PC0669
Sandwell Metropolitan Borough Council,http://www.sandwell.gov.uk/info/200202/performance_and_spending/3233/government_procurement_cards,19-May-2021,Total Business Strategy & Change,Amazon.co.uk MK5403WQ4,Assistant Chief Executive (Excl SIU),22.83,DIRECT MARKETING-OTHER DIRECT MARKETERS/NOT ELSEW.,2021-22Q1_PC0670
Sandwell Metropolitan Borough Council,http://www.sandwell.gov.uk/info/200202/performance_and_spending/3233/government_procurement_cards,19-May-2021,Total Business Strategy & Change,Amazon.co.uk MK6NU5YL4,Neighbourhoods,33.33,DIRECT MARKETING-OTHER DIRECT MARKETERS/NOT ELSEW.,2021-22Q1_PC0671
Sandwell Metropolitan Borough Council,http://www.sandwell.gov.uk/info/200202/performance_and_spending/3233/government_procurement_cards,19-May-2021,Regeneration & Growth,SECURITYSAFETYPRODUCTS,Regeneration And The Economy,73.36,"DETECTVE/PROTECTVE AGNCY,SECURITY SRVS, ARMOR CARS",2021-22Q1_PC0672
Sandwell Metropolitan Borough Council,http://www.sandwell.gov.uk/info/200202/performance_and_spending/3233/government_procurement_cards,19-May-2021,Total Borough Economy,SAINSBURYS SACAT0558,Neighbourhoods,20,"GROCERY STORES, SUPERMARKETS",2021-22Q1_PC0673
Sandwell Metropolitan Borough Council,http://www.sandwell.gov.uk/info/200202/performance_and_spending/3233/government_procurement_cards,19-May-2021,Total Borough Economy,AMZNMktplace,Neighbourhoods,248.75,MISCELLANEOUS AND SPECIALTY RETAIL STORES,2021-22Q1_PC0674
Sandwell Metropolitan Borough Council,http://www.sandwell.gov.uk/info/200202/performance_and_spending/3233/government_procurement_cards,19-May-2021,Total Borough Economy,CHARTERED INSTITUTE OF,Total Adult Social Care,45,"ORGANIZATIONS, CHARITABLE AND SOCIAL SERVICES",2021-22Q1_PC0675
Sandwell Metropolitan Borough Council,http://www.sandwell.gov.uk/info/200202/performance_and_spending/3233/government_procurement_cards,19-May-2021,Total ASCHWB,ADOBE CREATIVE CLOUD,Total Adult Social Care,49.94,COMPUTER SOFTWARE STORES,2021-22Q1_PC0676
Sandwell Metropolitan Borough Council,http://www.sandwell.gov.uk/info/200202/performance_and_spending/3233/government_procurement_cards,19-May-2021,Total ASCHWB,Amazon.co.uk MK8DV1YK4,Total Adult Social Care,13.77,DIRECT MARKETING-OTHER DIRECT MARKETERS/NOT ELSEW.,2021-22Q1_PC0677
Sandwell Metropolitan Borough Council,http://www.sandwell.gov.uk/info/200202/performance_and_spending/3233/government_procurement_cards,19-May-2021,Total ASCHWB,Amazon.co.uk MK7EI3WN4,Total Adult Social Care,19.48,DIRECT MARKETING-OTHER DIRECT MARKETERS/NOT ELSEW.,2021-22Q1_PC0678
Sandwell Metropolitan Borough Council,http://www.sandwell.gov.uk/info/200202/performance_and_spending/3233/government_procurement_cards,19-May-2021,Total ASCHWB,The Cotswold Company,Total Adult Social Care,250,"EQUIP, FURNITURE, HOME FURNSHNGS STRS (EXCPT APPL)",2021-22Q1_PC0679
Sandwell Metropolitan Borough Council,http://www.sandwell.gov.uk/info/200202/performance_and_spending/3233/government_procurement_cards,19-May-2021,Total ASCHWB,FULL RANGE FURNITUR,Total Adult Social Care,106.21,"OFFICE, SCHOOL SUPPLY, AND STATIONERY STORES",2021-22Q1_PC0680
Sandwell Metropolitan Borough Council,http://www.sandwell.gov.uk/info/200202/performance_and_spending/3233/government_procurement_cards,19-May-2021,Childrens Services,ALDI 772 177,Childrens Services,8.85,"GROCERY STORES, SUPERMARKETS",2021-22Q1_PC0681
Sandwell Metropolitan Borough Council,http://www.sandwell.gov.uk/info/200202/performance_and_spending/3233/government_procurement_cards,19-May-2021,Childrens Services,ALDI 772 177,Childrens Services,22,"GROCERY STORES, SUPERMARKETS",2021-22Q1_PC0682
Sandwell Metropolitan Borough Council,http://www.sandwell.gov.uk/info/200202/performance_and_spending/3233/government_procurement_cards,19-May-2021,Childrens Services,WILKO RETAIL LIMITED,Childrens Services,28,MISCELLANEOUS GENERAL MERCHANDISE,2021-22Q1_PC0683
Sandwell Metropolitan Borough Council,http://www.sandwell.gov.uk/info/200202/performance_and_spending/3233/government_procurement_cards,19-May-2021,Childrens Services,ASDA SUPERSTORE,Childrens Services,91,"GROCERY STORES, SUPERMARKETS",2021-22Q1_PC0684
Sandwell Metropolitan Borough Council,http://www.sandwell.gov.uk/info/200202/performance_and_spending/3233/government_procurement_cards,19-May-2021,Childrens Services,WM MORRISONS STORE,Childrens Services,13,"GROCERY STORES, SUPERMARKETS",2021-22Q1_PC0685
Sandwell Metropolitan Borough Council,http://www.sandwell.gov.uk/info/200202/performance_and_spending/3233/government_procurement_cards,19-May-2021,Childrens Services,WM MORRISONS STORE,Childrens Services,42,"GROCERY STORES, SUPERMARKETS",2021-22Q1_PC0686
Sandwell Metropolitan Borough Council,http://www.sandwell.gov.uk/info/200202/performance_and_spending/3233/government_procurement_cards,19-May-2021,Director of Law & Governance,CARTRIDGEPEOPLE.COM,Assistant Chief Executive (Excl SIU),226.18,STATIONERY/OFFICE SUPPLIES/PRINTING & WRITING PAP.,2021-22Q1_PC0687
Sandwell Metropolitan Borough Council,http://www.sandwell.gov.uk/info/200202/performance_and_spending/3233/government_procurement_cards,19-May-2021,Director of Law & Governance,AMZNMktplace,Assistant Chief Executive (Excl SIU),25.28,MISCELLANEOUS AND SPECIALTY RETAIL STORES,2021-22Q1_PC0688
Sandwell Metropolitan Borough Council,http://www.sandwell.gov.uk/info/200202/performance_and_spending/3233/government_procurement_cards,20-May-2021,Total Borough Economy,MEDIA & COMMUNICATIONS,Neighbourhoods,438,TELECOMMUNICATION EQUIPMENT INCL TELEPHONE SALES,2021-22Q1_PC0689
Sandwell Metropolitan Borough Council,http://www.sandwell.gov.uk/info/200202/performance_and_spending/3233/government_procurement_cards,20-May-2021,Total Housing Revenue Account,VISUAL SIGNS LTD,Total Housing Revenue Account,149,MISCELLANEOUS HOUSE FURNISHING SPECIALTY SHOPS,2021-22Q1_PC0690
Sandwell Metropolitan Borough Council,http://www.sandwell.gov.uk/info/200202/performance_and_spending/3233/government_procurement_cards,20-May-2021,Total Borough Economy,SAINSBURYS 0722,Neighbourhoods,12.5,"GROCERY STORES, SUPERMARKETS",2021-22Q1_PC0691
Sandwell Metropolitan Borough Council,http://www.sandwell.gov.uk/info/200202/performance_and_spending/3233/government_procurement_cards,20-May-2021,Total Borough Economy,UNBEATABLE BLINDS LTD,Neighbourhoods,220.27,"EQUIP, FURNITURE, HOME FURNSHNGS STRS (EXCPT APPL)",2021-22Q1_PC0692
Sandwell Metropolitan Borough Council,http://www.sandwell.gov.uk/info/200202/performance_and_spending/3233/government_procurement_cards,20-May-2021,FINANCE (Inc SIU),AMZNMktplace,Assistant Chief Executive (Excl SIU),23.98,MISCELLANEOUS AND SPECIALTY RETAIL STORES,2021-22Q1_PC0693
Sandwell Metropolitan Borough Council,http://www.sandwell.gov.uk/info/200202/performance_and_spending/3233/government_procurement_cards,20-May-2021,Total Borough Economy,Amazon.co.uk 2T8RA3CD4,Neighbourhoods,7.09,DIRECT MARKETING-OTHER DIRECT MARKETERS/NOT ELSEW.,2021-22Q1_PC0694
Sandwell Metropolitan Borough Council,http://www.sandwell.gov.uk/info/200202/performance_and_spending/3233/government_procurement_cards,20-May-2021,Total Borough Economy,SAINSBURYS SACAT0558,Neighbourhoods,10,"GROCERY STORES, SUPERMARKETS",2021-22Q1_PC0695
Sandwell Metropolitan Borough Council,http://www.sandwell.gov.uk/info/200202/performance_and_spending/3233/government_procurement_cards,20-May-2021,Total Borough Economy,AMZNMKTPLACE AMAZON.CO,Neighbourhoods,24.98,MISCELLANEOUS AND SPECIALTY RETAIL STORES,2021-22Q1_PC0696
Sandwell Metropolitan Borough Council,http://www.sandwell.gov.uk/info/200202/performance_and_spending/3233/government_procurement_cards,20-May-2021,Total Borough Economy,Amazon.co.uk 2T8AI4CN4,Neighbourhoods,9.24,DIRECT MARKETING-OTHER DIRECT MARKETERS/NOT ELSEW.,2021-22Q1_PC0697
Sandwell Metropolitan Borough Council,http://www.sandwell.gov.uk/info/200202/performance_and_spending/3233/government_procurement_cards,20-May-2021,Director of Law & Governance,OFFICE DEPOT UK,Assistant Chief Executive (Excl SIU),122.48,STATIONERY/OFFICE SUPPLIES/PRINTING & WRITING PAP.,2021-22Q1_PC0698
Sandwell Metropolitan Borough Council,http://www.sandwell.gov.uk/info/200202/performance_and_spending/3233/government_procurement_cards,20-May-2021,Director of Law & Governance,OFFICE DEPOT UK,Assistant Chief Executive (Excl SIU),8.83,STATIONERY/OFFICE SUPPLIES/PRINTING & WRITING PAP.,2021-22Q1_PC0699
Sandwell Metropolitan Borough Council,http://www.sandwell.gov.uk/info/200202/performance_and_spending/3233/government_procurement_cards,20-May-2021,Total ASCHWB,Amazon.co.uk MK5SP5Y64,Total Adult Social Care,6.12,DIRECT MARKETING-OTHER DIRECT MARKETERS/NOT ELSEW.,2021-22Q1_PC0700
Sandwell Metropolitan Borough Council,http://www.sandwell.gov.uk/info/200202/performance_and_spending/3233/government_procurement_cards,20-May-2021,Total ASCHWB,OFFICE DEPOT UK,Total Adult Social Care,137.23,STATIONERY/OFFICE SUPPLIES/PRINTING & WRITING PAP.,2021-22Q1_PC0701
Sandwell Metropolitan Borough Council,http://www.sandwell.gov.uk/info/200202/performance_and_spending/3233/government_procurement_cards,20-May-2021,Total ASCHWB,AMZNMKTPLACE AMAZON.CO,Total Adult Social Care,89.99,MISCELLANEOUS AND SPECIALTY RETAIL STORES,2021-22Q1_PC0702
Sandwell Metropolitan Borough Council,http://www.sandwell.gov.uk/info/200202/performance_and_spending/3233/government_procurement_cards,20-May-2021,Total ASCHWB,AMZNMKTPLACE AMAZON.CO,Total Adult Social Care,21.98,MISCELLANEOUS AND SPECIALTY RETAIL STORES,2021-22Q1_PC0703
Sandwell Metropolitan Borough Council,http://www.sandwell.gov.uk/info/200202/performance_and_spending/3233/government_procurement_cards,20-May-2021,Total ASCHWB,OFFICE DEPOT UK,Total Adult Social Care,52.16,STATIONERY/OFFICE SUPPLIES/PRINTING & WRITING PAP.,2021-22Q1_PC0704
Sandwell Metropolitan Borough Council,http://www.sandwell.gov.uk/info/200202/performance_and_spending/3233/government_procurement_cards,20-May-2021,Director of Law & Governance,WESTMINSTER FORUM PROJ,Assistant Chief Executive (Excl SIU),228,"CONSULTING, MANAGEMENT, AND PUBLIC RELATIONS SVCS",2021-22Q1_PC0705
Sandwell Metropolitan Borough Council,http://www.sandwell.gov.uk/info/200202/performance_and_spending/3233/government_procurement_cards,20-May-2021,FINANCE (Inc SIU),SAINSBURYS SACAT0558,Assistant Chief Executive (Excl SIU),27.5,"GROCERY STORES, SUPERMARKETS",2021-22Q1_PC0706
Sandwell Metropolitan Borough Council,http://www.sandwell.gov.uk/info/200202/performance_and_spending/3233/government_procurement_cards,21-May-2021,Total Borough Economy,OFFICE DEPOT UK,Neighbourhoods,41.99,STATIONERY/OFFICE SUPPLIES/PRINTING & WRITING PAP.,2021-22Q1_PC0707
Sandwell Metropolitan Borough Council,http://www.sandwell.gov.uk/info/200202/performance_and_spending/3233/government_procurement_cards,21-May-2021,Total Housing Revenue Account,Staffordshire Builders,Total Housing Revenue Account,15.6,"BUILDING MATERIALS, LUMBER STORES",2021-22Q1_PC0708
Sandwell Metropolitan Borough Council,http://www.sandwell.gov.uk/info/200202/performance_and_spending/3233/government_procurement_cards,21-May-2021,Total Borough Economy,OFFICE DEPOT UK,Total Adult Social Care,34.4,STATIONERY/OFFICE SUPPLIES/PRINTING & WRITING PAP.,2021-22Q1_PC0709
Sandwell Metropolitan Borough Council,http://www.sandwell.gov.uk/info/200202/performance_and_spending/3233/government_procurement_cards,21-May-2021,Total Borough Economy,ARGOS LTD,Total Adult Social Care,29.99,DISCOUNT STORES,2021-22Q1_PC0710
Sandwell Metropolitan Borough Council,http://www.sandwell.gov.uk/info/200202/performance_and_spending/3233/government_procurement_cards,21-May-2021,FINANCE (Inc SIU),OFFICE DEPOT UK,Total Adult Social Care,3.47,STATIONERY/OFFICE SUPPLIES/PRINTING & WRITING PAP.,2021-22Q1_PC0711
Sandwell Metropolitan Borough Council,http://www.sandwell.gov.uk/info/200202/performance_and_spending/3233/government_procurement_cards,21-May-2021,Housing & Assets Total,AMZNMktplace,Neighbourhoods,32.99,MISCELLANEOUS AND SPECIALTY RETAIL STORES,2021-22Q1_PC0712
Sandwell Metropolitan Borough Council,http://www.sandwell.gov.uk/info/200202/performance_and_spending/3233/government_procurement_cards,21-May-2021,Childrens Services,FACEBK E68H24KKS2,Childrens Services,17,ADVERTISING SERVICES,2021-22Q1_PC0713
Sandwell Metropolitan Borough Council,http://www.sandwell.gov.uk/info/200202/performance_and_spending/3233/government_procurement_cards,21-May-2021,Housing & Assets Total,TRAVELODGE,Neighbourhoods,119.3,TRAVELODGE,2021-22Q1_PC0714
Sandwell Metropolitan Borough Council,http://www.sandwell.gov.uk/info/200202/performance_and_spending/3233/government_procurement_cards,21-May-2021,Director of Law & Governance,OFFICIALES,Assistant Chief Executive (Excl SIU),79.21,"ATTORNEYS, LEGAL SERVICES",2021-22Q1_PC0715
Sandwell Metropolitan Borough Council,http://www.sandwell.gov.uk/info/200202/performance_and_spending/3233/government_procurement_cards,21-May-2021,Director of Law & Governance,OFFICE DEPOT UK,Assistant Chief Executive (Excl SIU),122.4,STATIONERY/OFFICE SUPPLIES/PRINTING & WRITING PAP.,2021-22Q1_PC0716
Sandwell Metropolitan Borough Council,http://www.sandwell.gov.uk/info/200202/performance_and_spending/3233/government_procurement_cards,24-May-2021,Total Housing Revenue Account,AMZNMKTPLACE AMAZON.CO,Total Housing Revenue Account,-62.68,MISCELLANEOUS AND SPECIALTY RETAIL STORES,2021-22Q1_PC0717
Sandwell Metropolitan Borough Council,http://www.sandwell.gov.uk/info/200202/performance_and_spending/3233/government_procurement_cards,24-May-2021,Total Business Strategy & Change,EB  DR JESSICA TAYLOR-,Assistant Chief Executive (Excl SIU),38.32,BUSINESS SERVICES-NOT ELSEWHERE CLASSIFIED,2021-22Q1_PC0718
Sandwell Metropolitan Borough Council,http://www.sandwell.gov.uk/info/200202/performance_and_spending/3233/government_procurement_cards,24-May-2021,Total Borough Economy,Amazon.co.uk 2T74U3ZH4,Total Adult Social Care,39.43,DIRECT MARKETING-OTHER DIRECT MARKETERS/NOT ELSEW.,2021-22Q1_PC0719
Sandwell Metropolitan Borough Council,http://www.sandwell.gov.uk/info/200202/performance_and_spending/3233/government_procurement_cards,24-May-2021,Total Public Health,ADOBE STOCK,Public Health,23.99,COMPUTER SOFTWARE STORES,2021-22Q1_PC0720
Sandwell Metropolitan Borough Council,http://www.sandwell.gov.uk/info/200202/performance_and_spending/3233/government_procurement_cards,24-May-2021,Total Borough Economy,WILKO RETAIL LIMITED,Neighbourhoods,17,MISCELLANEOUS GENERAL MERCHANDISE,2021-22Q1_PC0721
Sandwell Metropolitan Borough Council,http://www.sandwell.gov.uk/info/200202/performance_and_spending/3233/government_procurement_cards,24-May-2021,Total Borough Economy,OFFICE DEPOT UK,Neighbourhoods,15.59,STATIONERY/OFFICE SUPPLIES/PRINTING & WRITING PAP.,2021-22Q1_PC0722
Sandwell Metropolitan Borough Council,http://www.sandwell.gov.uk/info/200202/performance_and_spending/3233/government_procurement_cards,24-May-2021,Total Borough Economy,AMZNMktplace,Neighbourhoods,31.09,MISCELLANEOUS AND SPECIALTY RETAIL STORES,2021-22Q1_PC0723
